Body Name,Body,Service Level,Expense Type,Expense Code,Narrative,Date,Transaction Number,Amount,Capital and Revenue,Supplier Name,Supplier ID
South Ribble Borough Council,http://statistics.data.gov.uk/id/local-authority/30UE,Capital,Cap Contract Payment,C230,Replacement of log roll edgings at Withy grove and Gregson green,22/03/2023,0000485496,"27,954.60",Revenue,A & G Landscapes & Groundworks LTD,0
South Ribble Borough Council,http://statistics.data.gov.uk/id/local-authority/30UE,Central Support Services,Agency Staff,1121,"Depot Cleaner 27th Feb- 3rd March, 4 hours a day at 13.20per hour",22/03/2023,0000486903,264.00,Revenue,ACE PERSONNEL,0
South Ribble Borough Council,http://statistics.data.gov.uk/id/local-authority/30UE,Economic Development,Publicity & Promotion,4842,"Please supply Bags for life as per NAME REDACTED Market Manager request 930.00 plus VAT for 10,000 bags as per quote dated 27th Februar",29/03/2023,0000486720,930.00,Revenue,AD OPTIONS LTD,0
South Ribble Borough Council,http://statistics.data.gov.uk/id/local-authority/30UE,Capital,Cap Contract Payment,C230,Leyland Town Deal - Asbestos Remediation at Heaton Works and Adjacent (Vacant) NFM Iddons Hardstanding,08/03/2023,0000485779,"35,500.00",Revenue,ADS Environmental Ltd,0
South Ribble Borough Council,http://statistics.data.gov.uk/id/local-authority/30UE,Community Safety Services,Maintenance & Repair,4013,"Maintenance of the Closed Circuit Television System , Charge for the Period 05-01-2023 to 04-01-2024",22/03/2023,0000486779,491.98,Revenue,ADT FIRE & SECURITY PLC,0
South Ribble Borough Council,http://statistics.data.gov.uk/id/local-authority/30UE,Central Support Services,Reactive Repair & Maintenance,2020,", Civic Centre � Water Supply as per NAME REDACTED request , , , , �	To provide cold water supply for new water cooler , , , , Total Cost",01/03/2023,0000485627,680.00,Revenue,Ainscoe Plumbing & Heating Ltd,0
South Ribble Borough Council,http://statistics.data.gov.uk/id/local-authority/30UE,Central Support Services,Reactive Repair & Maintenance,2020,"Civic Centre � Gents Hot Tap, , , , �	To supply and fit new hot tap in the gents toilet, , , , Total Cost	160.00 + vat",01/03/2023,0000485627,160.00,Revenue,Ainscoe Plumbing & Heating Ltd,0
South Ribble Borough Council,http://statistics.data.gov.uk/id/local-authority/30UE,Central Support Services,Reactive Repair & Maintenance,2020,"Civic Centre, , , , �	To supply and fit new filter to Lincat Boiler in CAB office, , , , Total Cost	180.00 + vat",01/03/2023,0000485627,180.00,Revenue,Ainscoe Plumbing & Heating Ltd,0
South Ribble Borough Council,http://statistics.data.gov.uk/id/local-authority/30UE,Central Support Services,Reactive Repair & Maintenance,2020,"Civic Centre � Drainage Leak DWP Entrance, , , , �	To replace section of above ground drainage that is currently leaking., , , , ",01/03/2023,0000485627,410.00,Revenue,Ainscoe Plumbing & Heating Ltd,0
South Ribble Borough Council,http://statistics.data.gov.uk/id/local-authority/30UE,Surplus or Deficit on Trading,Reactive Repair & Maintenance,2020,"Worden Park � Radiator Install as per NAME REDACTED request �	To re-install radiator in corridor outside w/c along with new thermostatic ",01/03/2023,0000485742,540.00,Revenue,Ainscoe Plumbing & Heating Ltd,0
South Ribble Borough Council,http://statistics.data.gov.uk/id/local-authority/30UE,Recreation & Sport,Reactive Repair & Maintenance,2020,"Penwortham Holme Pavilion as per NAME REDACTED request This is for a new hot water gyzer within the pavilion, damaged when we had a big f",01/03/2023,0000485743,360.00,Revenue,Ainscoe Plumbing & Heating Ltd,0
South Ribble Borough Council,http://statistics.data.gov.uk/id/local-authority/30UE,Surplus or Deficit on Trading,Reactive Repair & Maintenance,2020,Requested by NAME REDACTED - Supply and fit a new water heater in the Accessible toilet at Longton Brickcroft.,22/03/2023,0000486727,285.00,Revenue,Ainscoe Plumbing & Heating Ltd,0
South Ribble Borough Council,http://statistics.data.gov.uk/id/local-authority/30UE,Tourism,Reactive Repair & Maintenance,2020,"Worden Hall kitchen services, Worden Park � New Sink Services as per NAME REDACTED request , , �	To provide hot & cold water supplies and",22/03/2023,0000487089,920.00,Revenue,Ainscoe Plumbing & Heating Ltd,0
South Ribble Borough Council,http://statistics.data.gov.uk/id/local-authority/30UE,Economic Development,Investment & Improvement,485K,"ALCIUM SOFTWARE � DEVELOPMENT QUOTE, Please find below quote details for requested development work:, Item 1) , Import of survey ",01/03/2023,0000485199,250.00,Revenue,ALICIUM SOFTWARE,0
South Ribble Borough Council,http://statistics.data.gov.uk/id/local-authority/30UE,Economic Development,Investment & Improvement,485K,"ALCIUM SOFTWARE � DEVELOPMENT QUOTE, Please find below quote details for requested development work:, Item 1) , Online jobseeker ",01/03/2023,0000485208,750.00,Revenue,ALICIUM SOFTWARE,0
South Ribble Borough Council,http://statistics.data.gov.uk/id/local-authority/30UE,Capital,Cap Contract Payment,C230,Leyland Town Deal - Barrel Collection and Recycling Services,08/03/2023,0000484733,295.00,Revenue,Alison Thornton,0
South Ribble Borough Council,http://statistics.data.gov.uk/id/local-authority/30UE,Capital,Cap Contract Payment,C230,"for DNO Connections and M&E Works in line with the Decarbonisation Scheme, across the leisure centres and civic centre please., ,",22/03/2023,0000485782,"88,146.49",Revenue,Alliance Leisure Services Limited,0
South Ribble Borough Council,http://statistics.data.gov.uk/id/local-authority/30UE,Capital,Cap Contract Payment,C230,"final M&E Works in line with the Decarbonisation Scheme, across the leisure centre and civic centre , The Civic Centre Decarbonis",22/03/2023,0000485783,"25,112.10",Revenue,Alliance Leisure Services Limited,0
South Ribble Borough Council,http://statistics.data.gov.uk/id/local-authority/30UE,Capital,Cap Contract Payment,C230,"for DNO Connections and M&E Works in line with the Decarbonisation Scheme, across the leisure centres and civic centre please., ,",22/03/2023,0000485784,"103,462.72",Revenue,Alliance Leisure Services Limited,0
South Ribble Borough Council,http://statistics.data.gov.uk/id/local-authority/30UE,Capital,Cap Contract Payment,C230,"Penwortham Leisure Centre Decarbonisation Works:, Sub-Total : 2,179,797.00, + VAT 435,959.40, Total: 2,615,756.40",22/03/2023,0000485785,"63,530.31",Revenue,Alliance Leisure Services Limited,0
South Ribble Borough Council,http://statistics.data.gov.uk/id/local-authority/30UE,Capital,Cap Contract Payment,C230,"South Ribble Tennis Centre Decarbonisation Works:, Sub-Total : 409,412.27, + VAT 81,882.45, Total: 491,294.72",22/03/2023,0000485786,"70,027.07",Revenue,Alliance Leisure Services Limited,0
South Ribble Borough Council,http://statistics.data.gov.uk/id/local-authority/30UE,Local Tax Collection,Bank Charges,4811,PostOffice,01/03/2023,0000485539,325.12,Revenue,ALLPAY LTD,0
South Ribble Borough Council,http://statistics.data.gov.uk/id/local-authority/30UE,Local Tax Collection,Bank Charges,4811,PayPoint,01/03/2023,0000485539,57.12,Revenue,ALLPAY LTD,0
South Ribble Borough Council,http://statistics.data.gov.uk/id/local-authority/30UE,Local Tax Collection,Bank Charges,4811,WebconnecT,01/03/2023,0000485539,46.00,Revenue,ALLPAY LTD,0
South Ribble Borough Council,http://statistics.data.gov.uk/id/local-authority/30UE,Central Support Services,Agency Staff,1121,Agency Staff w/e 19/02/2023,22/03/2023,0000486890,"6,821.81",Revenue,ALS Managed Services Ltd,0
South Ribble Borough Council,http://statistics.data.gov.uk/id/local-authority/30UE,Central Support Services,Agency Staff,1121,Back dated remediation of pay following pay increase for Jun-Dec 2022.,22/03/2023,0000486892,"4,553.01",Revenue,ALS Managed Services Ltd,0
South Ribble Borough Council,http://statistics.data.gov.uk/id/local-authority/30UE,Central Support Services,Agency Staff,1121,Agency Staff w/e 05/03/2023,22/03/2023,0000487005,"7,176.76",Revenue,ALS Managed Services Ltd,0
South Ribble Borough Council,http://statistics.data.gov.uk/id/local-authority/30UE,Central Support Services,Agency Staff,1121,Agency Staff w/e 12/02/2023,22/03/2023,0000487058,"7,278.09",Revenue,ALS Managed Services Ltd,0
South Ribble Borough Council,http://statistics.data.gov.uk/id/local-authority/30UE,Central Support Services,Agency Staff,1121,Agency Staff w/e 26/02/2023,22/03/2023,0000487059,"7,574.60",Revenue,ALS Managed Services Ltd,0
South Ribble Borough Council,http://statistics.data.gov.uk/id/local-authority/30UE,Central Support Services,Agency Staff,1121,Agency Staff w/e 12/03/2023,29/03/2023,0000487297,"6,113.23",Revenue,ALS Managed Services Ltd,0
South Ribble Borough Council,http://statistics.data.gov.uk/id/local-authority/30UE,Central Support Services,Agency Staff,1121,Agency Staff w/e 19/03/2023,29/03/2023,0000487435,"6,594.66",Revenue,ALS Managed Services Ltd,0
South Ribble Borough Council,http://statistics.data.gov.uk/id/local-authority/30UE,Short Term Creditors,Amount Received,0140,Works to dipping pond at Longton Brickcroft,01/03/2023,0000485478,"3,930.00",Revenue,Andrew McClelland,0
South Ribble Borough Council,http://statistics.data.gov.uk/id/local-authority/30UE,Central Support Services,Legal,4821,Settlement Agreement for NAME REDACTED,22/03/2023,0000485898,350.00,Revenue,Antrobus Solicitors,0
South Ribble Borough Council,http://statistics.data.gov.uk/id/local-authority/30UE,Recreation & Sport,Planned Annual Repair & Maintenance,2021,South Ribble Tennis Centre,29/03/2023,0000487282,"2,125.00",Revenue,APEC Environmental Ltd,0
South Ribble Borough Council,http://statistics.data.gov.uk/id/local-authority/30UE,Central Support Services,Planned Annual Repair & Maintenance,2021,"Asbestos surveys for the following sites as per ref CH/1/060/PK and NAME REDACTED request , South Ribble Borough Council, Civic Cen",29/03/2023,0000487283,"1,275.00",Revenue,APEC Environmental Ltd,0
South Ribble Borough Council,http://statistics.data.gov.uk/id/local-authority/30UE,Capital,Capital Grant,C570,DFG WORK FOR ADAPTATION FOR LEVEL ACCESS BATHROOM WORKS AT ADDRESS REDACTED AS PER SRBC PLANS AND QUOTE SUPPLI,01/03/2023,0000485787,"5,685.00",Revenue,APG DOMESTIC SERVICES,0
South Ribble Borough Council,http://statistics.data.gov.uk/id/local-authority/30UE,Capital,Capital Grant,C570,DFG WORK FOR ADAPTATION FOR LEVEL ACCESS SHOWER AT ADDRESS REDACTED AS PER SRBC PLANS AND QUOTE SUPPLIED OF 6520.00.CL,22/03/2023,0000486870,"5,678.61",Revenue,APG DOMESTIC SERVICES,0
South Ribble Borough Council,http://statistics.data.gov.uk/id/local-authority/30UE,Capital,Capital Grant,C570,DFG WORK FOR ADAPTATION FOR LEVEL ACCESS BATHROOM AT ADDRESS REDACTED AS PER SRBC PLANS AND QUOTE SUPPLIED OF 5625,22/03/2023,0000486872,"4,037.07",Revenue,APG DOMESTIC SERVICES,0
South Ribble Borough Council,http://statistics.data.gov.uk/id/local-authority/30UE,Capital,Capital Grant,C570,"DFG WORK FOR ADAPTATION FOR LEVEL ACCESS BATHROOM AT ADDRESS REDACTED AS PER SRBC PLANS AND QUOTE SUPPLIED OF 5832.00, TO",22/03/2023,0000486954,"6,172.00",Revenue,APG DOMESTIC SERVICES,0
South Ribble Borough Council,http://statistics.data.gov.uk/id/local-authority/30UE,Planning Policy,Professional Fees,4510,Local Housing Need Update,29/03/2023,0000487260,"8,000.00",Revenue,arc4 Limited,0
South Ribble Borough Council,http://statistics.data.gov.uk/id/local-authority/30UE,Central Support Services,Engineering Inspection Insurance,1802,"Insurance premium 1st January 2023 - 31st December 2023, , Engineering Insurance - British Engineering - premium 546.23 - IPT 6",01/03/2023,0000485315,845.87,Revenue,Arthur J. Gallagher,0
South Ribble Borough Council,http://statistics.data.gov.uk/id/local-authority/30UE,Central Support Services,Engineering Inspection Insurance,1802,"Insurance premium 1st January 2023 - 31st December 2023, , Engineering Inspection - British Engineering - Premium 4538.78 - IPT ",01/03/2023,0000485315,"4,538.78",Revenue,Arthur J. Gallagher,0
South Ribble Borough Council,http://statistics.data.gov.uk/id/local-authority/30UE,Central Support Services,Fidelity Guarantee,1800,AJG - Insurance Brokerage & Consultancy 1st Jan 2023 - 31st December 2023 840,22/03/2023,0000487087,840.00,Revenue,Arthur J. Gallagher,0
South Ribble Borough Council,http://statistics.data.gov.uk/id/local-authority/30UE,Democratic Represent and  Mgnt,At Home Expenditure,4629,"Quote: QU-0002, Catering event for , 60 - 80 People , On - Tuesday 7th March 2023, To include: Meat / Vegetarian / Vegan",22/03/2023,0000487069,"1,120.00",Revenue,Artisan Deli Limited,0
South Ribble Borough Council,http://statistics.data.gov.uk/id/local-authority/30UE,Economic Development,Planned Annual Repair & Maintenance,2021,Date 3 Feb 2023 asper NAME REDACTED Expiry 5 Mar 2023 Quote Number QU-0871 Reference Leyland Market Sweet Stall,29/03/2023,0000487143,595.00,Revenue,AVALON DOORS & AWNINGS LTD,0
South Ribble Borough Council,http://statistics.data.gov.uk/id/local-authority/30UE,Street Cleansing,Operational Equip & Tools,4010,Notice for abandoned vehicle stickers A4 (500),01/03/2023,0000485629,375.00,Revenue,B & D PRINT SERVICES LTD,0
South Ribble Borough Council,http://statistics.data.gov.uk/id/local-authority/30UE,Recycling,Contract Printing,4127,40000x A6 Reminder Waste Wheelie Bin Stickers (on rolls) as per quote 172460,15/03/2023,0000486706,"1,750.00",Revenue,B & D PRINT SERVICES LTD,0
South Ribble Borough Council,http://statistics.data.gov.uk/id/local-authority/30UE,Central Support Services,Miscellaneous Expenses,4851,"50,000x A6 Wheelie Bin Stickers SRBC (on rolls) - 50,000 of each sort quote 172459",15/03/2023,0000486707,"2,004.00",Revenue,B & D PRINT SERVICES LTD,0
South Ribble Borough Council,http://statistics.data.gov.uk/id/local-authority/30UE,Short Term Creditors,Manual Control,0001,,01/03/2023,0000485651,289.23,Revenue,B.I.T.S,0
South Ribble Borough Council,http://statistics.data.gov.uk/id/local-authority/30UE,Capital,Cap Contract Payment,C230,"3 x Betula pendula 6/8 24.00, 3 x Sorbus aucuparia 6/8 36.50, 2 x Acer campestre (fastigiate) 6/8 42.00, 1 x Liquidamber 1.75/",29/03/2023,0000487142,301.50,Revenue,BANNISTER HALL LANDSCAPE SUPPLIES,0
South Ribble Borough Council,http://statistics.data.gov.uk/id/local-authority/30UE,Short Term Creditors,Amount Paid,0030,chaps payment,29/03/2023,0000487232,"19,201.74",Revenue,Barclays Bank Plc,0
South Ribble Borough Council,http://statistics.data.gov.uk/id/local-authority/30UE,Short Term Creditors,Amount Paid,0030,chaps payment,29/03/2023,0000487233,"23,780.07",Revenue,Barclays Bank Plc,0
South Ribble Borough Council,http://statistics.data.gov.uk/id/local-authority/30UE,Short Term Creditors,Amount Paid,0030,difference,29/03/2023,0000487234,"12,133.98",Revenue,Barclays Bank Plc,0
South Ribble Borough Council,http://statistics.data.gov.uk/id/local-authority/30UE,Short Term Creditors,Amount Paid,0030,28 sEPTEMBER 2022,29/03/2023,0000487235,"23,780.07",Revenue,Barclays Bank Plc,0
South Ribble Borough Council,http://statistics.data.gov.uk/id/local-authority/30UE,Short Term Creditors,Amount Paid,0030,28 October 2022,29/03/2023,0000487236,770.22,Revenue,Barclays Bank Plc,0
South Ribble Borough Council,http://statistics.data.gov.uk/id/local-authority/30UE,Short Term Creditors,Amount Paid,0030,28th nov 22,29/03/2023,0000487237,"27,064.60",Revenue,Barclays Bank Plc,0
South Ribble Borough Council,http://statistics.data.gov.uk/id/local-authority/30UE,Short Term Creditors,Amount Paid,0030,28th Dec 22,29/03/2023,0000487238,"18,085.75",Revenue,Barclays Bank Plc,0
South Ribble Borough Council,http://statistics.data.gov.uk/id/local-authority/30UE,Short Term Creditors,Amount Paid,0030,28th Jan 23,29/03/2023,0000487239,"12,443.28",Revenue,Barclays Bank Plc,0
South Ribble Borough Council,http://statistics.data.gov.uk/id/local-authority/30UE,Short Term Creditors,Amount Paid,0030,28th Feb 23,29/03/2023,0000487240,"16,646.43",Revenue,Barclays Bank Plc,0
South Ribble Borough Council,http://statistics.data.gov.uk/id/local-authority/30UE,Housing Advice,Contributions to Other Bodies,4730,AFFORDABLE WARMTH SCHEME FOR INSULATION AT ADDRESS REDACTED AS PER QUOTE SUPPLIED OF 709.00 ( NO VAT),08/03/2023,0000485925,709.00,Revenue,Bartons of Duke Street Ltd,0
South Ribble Borough Council,http://statistics.data.gov.uk/id/local-authority/30UE,Housing Advice,Contributions to Other Bodies,4730,AFFORDABLE WARMTH SCHEME FOR INSULATION AT ADDRESS REDACTED AS PER QUOTE SUPPLIED OF 763 ( NO VAT),08/03/2023,0000485926,763.00,Revenue,Bartons of Duke Street Ltd,0
South Ribble Borough Council,http://statistics.data.gov.uk/id/local-authority/30UE,Housing Advice,Contributions to Other Bodies,4730,AFFORDABLE WARMTH SCHEME FOR INSULATION AT ADDRESS REDACTED AS PER QUOTE SUPPLIED OF 1197 ( NO VAT),22/03/2023,0000486940,"1,197.00",Revenue,Bartons of Duke Street Ltd,0
South Ribble Borough Council,http://statistics.data.gov.uk/id/local-authority/30UE,Housing Advice,Contributions to Other Bodies,4730,AFFORDABLE WARMTH SCHEME FOR INSULATION AT ADDRESS REDACTED AS PER QUOTE SUPPLIED OF 929 ( NO VAT),22/03/2023,0000486946,929.00,Revenue,Bartons of Duke Street Ltd,0
South Ribble Borough Council,http://statistics.data.gov.uk/id/local-authority/30UE,Housing Advice,Contributions to Other Bodies,4730,AFFORDABLE WARMTH SCHEME FOR INSULATION AT ADDRESS REDACTED AS PER QUOTE SUPPLIED OF 721.00 ( NO VAT),22/03/2023,0000487057,721.00,Revenue,Bartons of Duke Street Ltd,0
South Ribble Borough Council,http://statistics.data.gov.uk/id/local-authority/30UE,Open Spaces,GM Refurbishment,4657,"Cable etc and connection of illuminated bollards at Hurst Grange Park, Penwortham",01/03/2023,0000485291,"2,397.50",Revenue,BELEC ELECTRICAL LTD,0
South Ribble Borough Council,http://statistics.data.gov.uk/id/local-authority/30UE,Surplus or Deficit on Trading,Reactive Repair & Maintenance,2020,"Replacement of LED lighting (External flood lights at Kingsfold Playing Fields). As per NAME REDACTED request , , 779.00",08/03/2023,0000485815,779.00,Revenue,BELEC ELECTRICAL LTD,0
South Ribble Borough Council,http://statistics.data.gov.uk/id/local-authority/30UE,Economic Development,Reactive Repair & Maintenance,2020,"2:00 Hours Cafe - hot water thermostat check and re set 2 54.00, 5:00 Hours Cheese stall 3 call outs and install new stat (stat p",08/03/2023,0000485816,303.00,Revenue,BELEC ELECTRICAL LTD,0
South Ribble Borough Council,http://statistics.data.gov.uk/id/local-authority/30UE,Surplus or Deficit on Trading,Reactive Repair & Maintenance,2020,"11:00 Hours Installation of additional sockets to 3 locations requested x 2 men, Hurst grange coach house, Kingsfold cc, Worden h",08/03/2023,0000485817,335.00,Revenue,BELEC ELECTRICAL LTD,0
South Ribble Borough Council,http://statistics.data.gov.uk/id/local-authority/30UE,Central Support Services,Reactive Repair & Maintenance,2020,"Product column lamp 295.00, 5:00 Hours Installation of new column light near screening unit 135.00, Net Total 430.00",08/03/2023,0000485820,430.00,Revenue,BELEC ELECTRICAL LTD,0
South Ribble Borough Council,http://statistics.data.gov.uk/id/local-authority/30UE,Central Support Services,Reactive Repair & Maintenance,2020,20:00 Hours remove power from ceiling tiles ready for new frame ceiling being fitted at civic centre east wing and west wings and,08/03/2023,0000485820,540.00,Revenue,BELEC ELECTRICAL LTD,0
South Ribble Borough Council,http://statistics.data.gov.uk/id/local-authority/30UE,Central Support Services,Reactive Repair & Maintenance,2020,"12:00 Hours partial rewire of ring main to central island aluminium stantion socket, after desk relocation to centre of the room.",08/03/2023,0000485820,392.00,Revenue,BELEC ELECTRICAL LTD,0
South Ribble Borough Council,http://statistics.data.gov.uk/id/local-authority/30UE,Surplus or Deficit on Trading,Reactive Repair & Maintenance,2020,to attend site re-instate electrical supply and move RCD following roof leaks. New roof has now been fit. Price tbc - 150: at He,22/03/2023,0000486849,250.90,Revenue,BELEC ELECTRICAL LTD,0
South Ribble Borough Council,http://statistics.data.gov.uk/id/local-authority/30UE,Central Support Services,Emergency Lighting,2031,"QUOTE EST SRBC 23/06, , Install wiring and test points for 6 additional emergency lights to, shower rooms, storeroom in canteen, ",22/03/2023,0000486853,"1,040.00",Revenue,BELEC ELECTRICAL LTD,0
South Ribble Borough Council,http://statistics.data.gov.uk/id/local-authority/30UE,Central Support Services,Reactive Repair & Maintenance,2020,"QUOTE EST SRBC 23/04, , Install socket supply from shed to external position at Moss side depot., , 25M 3 core SWA, SWA gland pac",22/03/2023,0000486855,479.00,Revenue,BELEC ELECTRICAL LTD,0
South Ribble Borough Council,http://statistics.data.gov.uk/id/local-authority/30UE,Central Support Services,Emergency Lighting,2031,"QUOTE EST SRBC 23/05, , Repair / replace 26 emergency lights that have failed the test, sequence at the civic centre., , Emergenc",22/03/2023,0000486856,"1,766.00",Revenue,BELEC ELECTRICAL LTD,0
South Ribble Borough Council,http://statistics.data.gov.uk/id/local-authority/30UE,Surplus or Deficit on Trading,Planned Annual Repair & Maintenance,2021,"Much Hoole Pavilion 	Fixed Wire Test	Yearly		Sports Pavilion	250.00",22/03/2023,0000486864,250.00,Revenue,BELEC ELECTRICAL LTD,0
South Ribble Borough Council,http://statistics.data.gov.uk/id/local-authority/30UE,Surplus or Deficit on Trading,Planned Annual Repair & Maintenance,2021,Annual Contract 2022/2023 for Convector Fan and Emergency Lighting for Carr Street Community Centre,29/03/2023,0000487266,235.00,Revenue,BELEC ELECTRICAL LTD,0
South Ribble Borough Council,http://statistics.data.gov.uk/id/local-authority/30UE,Central Support Services,Planned Annual Repair & Maintenance,2021,Annual Contract 2022/2023 for Convector Fan and Emergency Lighting at Civic Centre,29/03/2023,0000487266,648.00,Revenue,BELEC ELECTRICAL LTD,0
South Ribble Borough Council,http://statistics.data.gov.uk/id/local-authority/30UE,Surplus or Deficit on Trading,Planned Annual Repair & Maintenance,2021,Annual Contract 2022/2023 for Convector Fan and Emergency lighting at Higher Walton Community Centre,29/03/2023,0000487266,235.00,Revenue,BELEC ELECTRICAL LTD,0
South Ribble Borough Council,http://statistics.data.gov.uk/id/local-authority/30UE,Surplus or Deficit on Trading,Planned Annual Repair & Maintenance,2021,Annual Contract 2022/2023 for Convector Fan and Emergency Lighting at Hurst Grange Park,29/03/2023,0000487266,108.00,Revenue,BELEC ELECTRICAL LTD,0
South Ribble Borough Council,http://statistics.data.gov.uk/id/local-authority/30UE,Economic Development,Planned Annual Repair & Maintenance,2021,Annual Contract 2022/2023 Convector Fan and Emergency Lighting at Leyland Market,29/03/2023,0000487266,239.00,Revenue,BELEC ELECTRICAL LTD,0
South Ribble Borough Council,http://statistics.data.gov.uk/id/local-authority/30UE,Surplus or Deficit on Trading,Planned Annual Repair & Maintenance,2021,Annual Contract 2022/2023 Convector Fan and Emergency Lighting at Longton Brickcroft,29/03/2023,0000487266,108.00,Revenue,BELEC ELECTRICAL LTD,0
South Ribble Borough Council,http://statistics.data.gov.uk/id/local-authority/30UE,Surplus or Deficit on Trading,Planned Annual Repair & Maintenance,2021,Annual Contract 2022/2023 Convector Fan and Emergency Lighting at Moss Side Community Centre,29/03/2023,0000487266,154.00,Revenue,BELEC ELECTRICAL LTD,0
South Ribble Borough Council,http://statistics.data.gov.uk/id/local-authority/30UE,Central Support Services,Planned Annual Repair & Maintenance,2021,Annual Contract 2022/2023 Convector Fan and Emergency Lighting at Moss Side Depot,29/03/2023,0000487266,216.00,Revenue,BELEC ELECTRICAL LTD,0
South Ribble Borough Council,http://statistics.data.gov.uk/id/local-authority/30UE,Surplus or Deficit on Trading,Planned Annual Repair & Maintenance,2021,Annual Contract 2022/2023 Convector Fan and Emergency Lighting at Museum,29/03/2023,0000487266,270.00,Revenue,BELEC ELECTRICAL LTD,0
South Ribble Borough Council,http://statistics.data.gov.uk/id/local-authority/30UE,Surplus or Deficit on Trading,Planned Annual Repair & Maintenance,2021,Annual Contract 2022/2023 Convector Fan and Emergency Lighting at Sports Pavilions to include remedial work as agreed with NAME REDACTED,29/03/2023,0000487266,594.00,Revenue,BELEC ELECTRICAL LTD,0
South Ribble Borough Council,http://statistics.data.gov.uk/id/local-authority/30UE,Development Control,Professional Fees,4510,Heritage consultancy services 22/23,08/03/2023,0000485812,643.50,Revenue,BLACKBURN WITH DARWEN BOROUGH COUNCIL,0
South Ribble Borough Council,http://statistics.data.gov.uk/id/local-authority/30UE,Short Term Creditors,Manual Control,0001,,01/03/2023,0000485724,"1,221.00",Revenue,BLF Joinery Ltd,0
South Ribble Borough Council,http://statistics.data.gov.uk/id/local-authority/30UE,Central Support Services,Operational Equip & Tools,4010,"2 X ACETYLENE 50L SIZE L @ 18.85 EACH per month, October 2022 - March 2023",08/03/2023,0000485279,42.70,Revenue,BOC GASES,0
South Ribble Borough Council,http://statistics.data.gov.uk/id/local-authority/30UE,Central Support Services,Operational Equip & Tools,4010,"DISSOLVED ACETYLENE SIZE M @ 8.85 PER MONTH, October 2022 - March 2023",08/03/2023,0000485279,9.50,Revenue,BOC GASES,0
South Ribble Borough Council,http://statistics.data.gov.uk/id/local-authority/30UE,Central Support Services,Operational Equip & Tools,4010,"2 X ARGOSHIELD LIGHT SIZE W @ 12.40 EACH PER MONTH, October 2022 - March 2023",08/03/2023,0000485279,26.70,Revenue,BOC GASES,0
South Ribble Borough Council,http://statistics.data.gov.uk/id/local-authority/30UE,Street Cleansing,Operational Equip & Tools,4010,"CYLINDER PROPANE SIZE B @ 2.75 PER MONTH, October 2022 - March 2023",08/03/2023,0000485279,2.95,Revenue,BOC GASES,0
South Ribble Borough Council,http://statistics.data.gov.uk/id/local-authority/30UE,Central Support Services,Operational Equip & Tools,4010,"NON DIRECT DEBIT ACCOUNT FEE @ 5.00 PER MONTH, October 2022 - March 2023",08/03/2023,0000485279,5.00,Revenue,BOC GASES,0
South Ribble Borough Council,http://statistics.data.gov.uk/id/local-authority/30UE,Central Support Services,Operational Equip & Tools,4010,"2 x Oxygen Size W @ 151.00 pe qw month period, February 2022- January 2024",08/03/2023,0000485279,302.00,Revenue,BOC GASES,0
South Ribble Borough Council,http://statistics.data.gov.uk/id/local-authority/30UE,Community Development,Professional Fees,4510,"HAF provision for February half term. 13-16 February, 240 spaces, 12 per head.",01/03/2023,0000485634,"2,880.00",Revenue,Box Clever CIC,0
South Ribble Borough Council,http://statistics.data.gov.uk/id/local-authority/30UE,Capital,Capital Grant,C570,DFG WORK TO COMPLETE BEDROOM/BATHROOM ADAPTATION AT ADDRESS REDACTED AS PER QUOTE SUPPLIED 37514.00. CUST CONTRIBUTION,22/03/2023,0000487098,"10,000.00",Revenue,Bright Construction North West Ltd,0
South Ribble Borough Council,http://statistics.data.gov.uk/id/local-authority/30UE,Street Cleansing,Telephones-Rental,4261,QO76 O&,15/03/2023,0000485997,214.72,Revenue,BRITISH TELECOMMUNICATIONS PLC,0
South Ribble Borough Council,http://statistics.data.gov.uk/id/local-authority/30UE,Street Cleansing,Telephones-Rental,4261,LATE FEE 4/12/22,15/03/2023,0000485997,40.00,Revenue,BRITISH TELECOMMUNICATIONS PLC,0
South Ribble Borough Council,http://statistics.data.gov.uk/id/local-authority/30UE,Open Spaces,GM Refurbishment,4657,"2x BXPU 1522-RM - Birmingham Pu Removable Bollards with ground socket, Coated black RAL 9005, Red reflective band - 271 each - (",01/03/2023,0000485123,"2,112.00",Revenue,BROXAP LTD,0
South Ribble Borough Council,http://statistics.data.gov.uk/id/local-authority/30UE,Central Support Services,Materials General,4040,12 x Black Broxap Derby Slimline Litter Bin with ashtray.,15/03/2023,0000485986,"3,480.00",Revenue,BROXAP LTD,0
South Ribble Borough Council,http://statistics.data.gov.uk/id/local-authority/30UE,Central Support Services,Materials General,4040,"1x suction box ram, 1x rod end, 2x bushes, 1x pin, 1x locking nut VIN REDACTED",22/03/2023,0000486750,617.73,Revenue,Bucher Municipal Ltd,0
South Ribble Borough Council,http://statistics.data.gov.uk/id/local-authority/30UE,Central Support Services,Materials General,4040,"1x filter kit,VIN REDACTED",22/03/2023,0000486750,150.16,Revenue,Bucher Municipal Ltd,0
South Ribble Borough Council,http://statistics.data.gov.uk/id/local-authority/30UE,Central Support Services,Materials General,4040,"1 x bump stop , 4 x pins, 1 x lift ram spacer, 1 x leaf flap wear plate, 1 x leaf flap cylinder, 4 x bush, 1 x nozzle wear plate ",29/03/2023,0000487365,"1,158.70",Revenue,Bucher Municipal Ltd,0
South Ribble Borough Council,http://statistics.data.gov.uk/id/local-authority/30UE,Central Support Services,Materials General,4040,1 HYDRAULIC FILTER SET PO20 ZRX VIN REDACTED,22/03/2023,0000486878,312.53,Revenue,C P DAVIDSON & SONS LTD,0
South Ribble Borough Council,http://statistics.data.gov.uk/id/local-authority/30UE,Central Support Services,Materials General,4040,"Hydraulic filter kit, VIN REDACTED",29/03/2023,0000487138,312.53,Revenue,C P DAVIDSON & SONS LTD,0
South Ribble Borough Council,http://statistics.data.gov.uk/id/local-authority/30UE,Central Support Services,Business Continuity,4245,"DWP LA Data Share (LADS) Programme: IT Costs for work completed, during the period 1/10/2021 to 31/3/2022 per correspondence date",22/03/2023,0000487044,"5,638.02",Revenue,CAPITA BUSINESS SERVICES LTD,0
South Ribble Borough Council,http://statistics.data.gov.uk/id/local-authority/30UE,Central Support Services,Other Fees,4520,EOY WEBINARS AND SUPPORT MARCH 2023 FOR 2023/2024,29/03/2023,0000487419,"11,045.00",Revenue,CAPITA BUSINESS SERVICES LTD,0
South Ribble Borough Council,http://statistics.data.gov.uk/id/local-authority/30UE,Central Support Services,Agency Staff,1121,"Provision of a temporary Auditor, contract from 9th November 2022 to 26th May 2022,",08/03/2023,0000485330,676.50,Revenue,Castlefield Recruitment Limited,0
South Ribble Borough Council,http://statistics.data.gov.uk/id/local-authority/30UE,Central Support Services,Agency Staff,1121,Provision of a temporary Auditor 12 weeks,01/03/2023,0000485727,748.11,Revenue,Castlefield Recruitment Limited,0
South Ribble Borough Council,http://statistics.data.gov.uk/id/local-authority/30UE,Central Support Services,Agency Staff,1121,Provision of a temporary Auditor 12 weeks,01/03/2023,0000485746,742.50,Revenue,Castlefield Recruitment Limited,0
South Ribble Borough Council,http://statistics.data.gov.uk/id/local-authority/30UE,Central Support Services,Agency Staff,1121,Provision of a temporary Auditor 12 weeks,01/03/2023,0000485747,734.25,Revenue,Castlefield Recruitment Limited,0
South Ribble Borough Council,http://statistics.data.gov.uk/id/local-authority/30UE,Capital,Cap Contract Payment,C230,"Alloy software and implementation, Capital costs",01/03/2023,0000482208,475.00,Revenue,Causeway Technologies LTD,0
South Ribble Borough Council,http://statistics.data.gov.uk/id/local-authority/30UE,Central Support Services,Short Course,1402,First Aid training 07/03/2023 - 09/03/2023 for NAME REDACTED,29/03/2023,0000486834,945.00,Revenue,Centaur Training Services (North West) Ltd,0
South Ribble Borough Council,http://statistics.data.gov.uk/id/local-authority/30UE,Central Support Services,Short Course,1402,First aid training for NAME REDACTED - 07/03/23 - 09/03/23,29/03/2023,0000486834,135.00,Revenue,Centaur Training Services (North West) Ltd,0
South Ribble Borough Council,http://statistics.data.gov.uk/id/local-authority/30UE,Central Support Services,Short Course,1402,1st Aid Training for NAME REDACTED - 07/03/2023 - 09/03/2023,29/03/2023,0000486834,135.00,Revenue,Centaur Training Services (North West) Ltd,0
South Ribble Borough Council,http://statistics.data.gov.uk/id/local-authority/30UE,Central Support Services,Short Course,1402,First Aid training 07/03/2023 - 09/03/2023 for NAME REDACTED,29/03/2023,0000486834,405.00,Revenue,Centaur Training Services (North West) Ltd,0
South Ribble Borough Council,http://statistics.data.gov.uk/id/local-authority/30UE,Parking Services,Processing Centre Charges,4516,Notice processing services- back office - January 2023,08/03/2023,0000485804,291.42,Revenue,Chipside Ltd,0
South Ribble Borough Council,http://statistics.data.gov.uk/id/local-authority/30UE,Planning Policy,Professional Fees,4510,Shared local plans costs 2020/21,01/03/2023,0000475046,"67,118.00",Revenue,CHORLEY BOROUGH COUNCIL,0
South Ribble Borough Council,http://statistics.data.gov.uk/id/local-authority/30UE,Central Support Services,Property Insurance,2811,Insurance claim payment 600.02 paid to incorrect council,01/03/2023,0000485486,600.02,Revenue,CHORLEY BOROUGH COUNCIL,0
South Ribble Borough Council,http://statistics.data.gov.uk/id/local-authority/30UE,Central Support Services,Materials General,4040,"Filter kit, VIN REDACTED",15/03/2023,0000485623,393.48,Revenue,CICELEY COMMERCIALS LTD,0
South Ribble Borough Council,http://statistics.data.gov.uk/id/local-authority/30UE,Central Support Services,Materials General,4040,1 service filter kit VIN REDACTED,22/03/2023,0000486771,390.79,Revenue,CICELEY COMMERCIALS LTD,0
South Ribble Borough Council,http://statistics.data.gov.uk/id/local-authority/30UE,Central Support Services,Materials General,4040,"Filter kit, VIN REDACTED",29/03/2023,0000487327,433.19,Revenue,CICELEY COMMERCIALS LTD,0
South Ribble Borough Council,http://statistics.data.gov.uk/id/local-authority/30UE,Central Support Services,Software Licensing,4243,"Licence and Support and Maintenance 9/11/22 to 30/08/23, Abritas V14 upgrade based on annual billing price 1546.07",22/03/2023,0000487196,996.35,Revenue,CIVICA UK LTD,0
South Ribble Borough Council,http://statistics.data.gov.uk/id/local-authority/30UE,Homelessness,Temporary Accommodation,5311,Purchase order for The Claremont Hotel in Preston for homeless individuals (all statutory duty placements) accommodated at the ho,22/03/2023,0000486925,"3,975.00",Revenue,CLAREMONT HOTEL,0
South Ribble Borough Council,http://statistics.data.gov.uk/id/local-authority/30UE,Homelessness,Temporary Accommodation,5311,"Claremont Hotel invoice for the period 06/03/23 to 12/03/23., , Guests:, ,NAME REDACTED",22/03/2023,0000487136,"1,948.00",Revenue,CLAREMONT HOTEL,0
South Ribble Borough Council,http://statistics.data.gov.uk/id/local-authority/30UE,Homelessness,Temporary Accommodation,5311,"Homelessness placements at the Claremont Hotel in Preston for the period 13.03.23 to 19.03.23., , Guests:, , NAME REDACTED",29/03/2023,0000487318,"2,569.00",Revenue,CLAREMONT HOTEL,0
South Ribble Borough Council,http://statistics.data.gov.uk/id/local-authority/30UE,Democratic Represent and  Mgnt,Room Hire and Events,4630,"Sign language for the Council Cabinet Meeting at St Mary`s Church, Penwortham on 16 November 2022",01/03/2023,0000485625,358.40,Revenue,CO SIGN LTD,0
South Ribble Borough Council,http://statistics.data.gov.uk/id/local-authority/30UE,Capital,Cap Contract Payment,C230,"For the provision of works to the pavilion, car park extension and associated works at Bamber Bridge sports hub",29/03/2023,0000487395,"71,733.82",Revenue,Code Building Solutions Limited,0
South Ribble Borough Council,http://statistics.data.gov.uk/id/local-authority/30UE,Capital,Cap Contract Payment,C230,"For the provision of works to the pavilion, car park extension and associated works at Bamber Bridge sports hub",29/03/2023,0000487438,"28,883.65",Revenue,Code Building Solutions Limited,0
South Ribble Borough Council,http://statistics.data.gov.uk/id/local-authority/30UE,Community Development,Professional Fees,4510,"HAF provision for over February half term. 13 and 14 February, 50 spaces, 14 per head at 700 and 50 spaces at 12 per head at �",29/03/2023,0000486863,"1,300.00",Revenue,Community Network and Outreach,0
South Ribble Borough Council,http://statistics.data.gov.uk/id/local-authority/30UE,Community Development,Core Fund,4861,Funds to provide a warm space for a minimum of 3 months at ADDRESS REDACTED on a Tuesday 10am-1pm with a light snack and a drink,29/03/2023,0000487084,500.00,Revenue,Community Network and Outreach,0
South Ribble Borough Council,http://statistics.data.gov.uk/id/local-authority/30UE,Short Term Creditors,Amount Paid,0030,NOVEMBER 2022 - CHILDCARE VOUCHERS (V),29/03/2023,0000485289,657.00,Revenue,COMPUTERSHARE VOUCHER SERVICES,0
South Ribble Borough Council,http://statistics.data.gov.uk/id/local-authority/30UE,Short Term Creditors,Amount Paid,0030,Service charge,29/03/2023,0000485289,39.42,Revenue,COMPUTERSHARE VOUCHER SERVICES,0
South Ribble Borough Council,http://statistics.data.gov.uk/id/local-authority/30UE,Short Term Creditors,Amount Paid,0030,FEBRUARY 2023 - CHILDCARE VOUCHERS (V),29/03/2023,0000485331,320.00,Revenue,COMPUTERSHARE VOUCHER SERVICES,0
South Ribble Borough Council,http://statistics.data.gov.uk/id/local-authority/30UE,Short Term Creditors,Amount Paid,0030,serv charge,29/03/2023,0000485331,19.20,Revenue,COMPUTERSHARE VOUCHER SERVICES,0
South Ribble Borough Council,http://statistics.data.gov.uk/id/local-authority/30UE,Short Term Creditors,Amount Paid,0030,MARCH 2023 - CHILDCARE VOUCHERS (V),29/03/2023,0000485999,320.00,Revenue,COMPUTERSHARE VOUCHER SERVICES,0
South Ribble Borough Council,http://statistics.data.gov.uk/id/local-authority/30UE,Short Term Creditors,Amount Paid,0030,Service charge,29/03/2023,0000485999,19.20,Revenue,COMPUTERSHARE VOUCHER SERVICES,0
South Ribble Borough Council,http://statistics.data.gov.uk/id/local-authority/30UE,Central Support Services,Miscellaneous Expenses,4851,BLUE 204 WHEELIE BINS X 360 ( @ 20.45),01/03/2023,0000485558,"7,362.00",Revenue,Contenur UK Ltd,0
South Ribble Borough Council,http://statistics.data.gov.uk/id/local-authority/30UE,Central Support Services,Miscellaneous Expenses,4851,GREY 240 WHEELIE BINS X 360 ( @ 19.60),01/03/2023,0000485558,"7,056.00",Revenue,Contenur UK Ltd,0
South Ribble Borough Council,http://statistics.data.gov.uk/id/local-authority/30UE,Central Support Services,Miscellaneous Expenses,4851,BROWN 240 WHEELIE BINS X 360 (@ 19.60),01/03/2023,0000485558,"7,056.00",Revenue,Contenur UK Ltd,0
South Ribble Borough Council,http://statistics.data.gov.uk/id/local-authority/30UE,Central Support Services,Miscellaneous Expenses,4851,140 Litre Grey bin x50,29/03/2023,0000487385,857.50,Revenue,Contenur UK Ltd,0
South Ribble Borough Council,http://statistics.data.gov.uk/id/local-authority/30UE,Capital,Cap Vehicles,C440,20x 360ltr Anthracite Grey bins @ 39.50 per bin.,29/03/2023,0000487387,790.00,Revenue,Contenur UK Ltd,0
South Ribble Borough Council,http://statistics.data.gov.uk/id/local-authority/30UE,Capital,Cap Vehicles,C440,Delivery,29/03/2023,0000487387,50.00,Revenue,Contenur UK Ltd,0
South Ribble Borough Council,http://statistics.data.gov.uk/id/local-authority/30UE,Central Support Services,Miscellaneous Expenses,4851,GREEN 55L GRAB BOXES 1050@ 6.06,01/03/2023,0000485490,"6,363.00",Revenue,Coral Mouldings (Product) Ltd,0
South Ribble Borough Council,http://statistics.data.gov.uk/id/local-authority/30UE,Central Support Services,Miscellaneous Expenses,4851,YELLOW LIDS 1080@ 2.41,01/03/2023,0000485490,"2,602.80",Revenue,Coral Mouldings (Product) Ltd,0
South Ribble Borough Council,http://statistics.data.gov.uk/id/local-authority/30UE,Capital,Capital Grant,C570,DFG WORK FOR ADAPTATION FOR BEDROOM AND BATHROOM ADAPTATION AT ADDRESS REDACTED AS PER SRBC PLANS AND QUOTE SUPPLIED OF ,29/03/2023,0000487211,"10,000.00",Revenue,Cornerstone Building & Maintenance Ltd,0
South Ribble Borough Council,http://statistics.data.gov.uk/id/local-authority/30UE,Recycling,Publicity & Promotion,4842,"Mailing 2, vol 1624 mailed 21/12 today, total charge is 1,154.01, Postage 735.51, Services 118.50, Tech Charge 300.00",01/03/2023,0000485615,736.59,Revenue,CRITIQOM,0
South Ribble Borough Council,http://statistics.data.gov.uk/id/local-authority/30UE,Recycling,Publicity & Promotion,4842,"For mailing 1, vol 13216 mailed Nov 2022, total charge for PO is 6,473.39, This is made up of the following:-, , Postage 5059.2",08/03/2023,0000485616,300.00,Revenue,CRITIQOM,0
South Ribble Borough Council,http://statistics.data.gov.uk/id/local-authority/30UE,Local Tax Collection,Postage General,4291,POSTAGE FOR AUG 2022 TO MARCH 2023,01/03/2023,0000485621,369.74,Revenue,CRITIQOM,0
South Ribble Borough Council,http://statistics.data.gov.uk/id/local-authority/30UE,Recycling,Publicity & Promotion,4842,"Mailing 2, vol 1624 mailed 21/12 today, total charge is 1,154.01, Postage 735.51, Services 118.50, Tech Charge 300.00",08/03/2023,0000485641,428.63,Revenue,CRITIQOM,0
South Ribble Borough Council,http://statistics.data.gov.uk/id/local-authority/30UE,Development Control,Professional Fees,4510,Large mailouts for planning apps including Lancashire Business Park,01/03/2023,0000485730,302.94,Revenue,CRITIQOM,0
South Ribble Borough Council,http://statistics.data.gov.uk/id/local-authority/30UE,Local Tax Collection,Postage General,4291,POSTAGE FOR AUG 2022 TO MARCH 2023,08/03/2023,0000485821,373.20,Revenue,CRITIQOM,0
South Ribble Borough Council,http://statistics.data.gov.uk/id/local-authority/30UE,Local Tax Collection,Stationery General,4130,STATIONERY FOR FEB TO MARCH 2023,22/03/2023,0000486906,268.11,Revenue,CRITIQOM,0
South Ribble Borough Council,http://statistics.data.gov.uk/id/local-authority/30UE,Local Tax Collection,Postage General,4291,POSTAGE FOR AUG 2022 TO MARCH 2023,22/03/2023,0000486908,"1,194.76",Revenue,CRITIQOM,0
South Ribble Borough Council,http://statistics.data.gov.uk/id/local-authority/30UE,Local Tax Collection,Postage General,4291,POSTAGE FOR AUG 2022 TO MARCH 2023,22/03/2023,0000487011,317.57,Revenue,CRITIQOM,0
South Ribble Borough Council,http://statistics.data.gov.uk/id/local-authority/30UE,Local Tax Collection,Postage General,4291,POSTAGE FOR AUG 2022 TO MARCH 2023,29/03/2023,0000487255,388.93,Revenue,CRITIQOM,0
South Ribble Borough Council,http://statistics.data.gov.uk/id/local-authority/30UE,Recreation & Sport,Telephones-Rental,4261,,01/03/2023,0000485540,471.50,Revenue,Daisy Communications LTD,0
South Ribble Borough Council,http://statistics.data.gov.uk/id/local-authority/30UE,Recreation & Sport,Telephones-Rental,4261,,01/03/2023,0000485541,471.50,Revenue,Daisy Communications LTD,0
South Ribble Borough Council,http://statistics.data.gov.uk/id/local-authority/30UE,Economic Development,Computer Software,4242,"Citizenspace Renewal 2023-2024 12 month subscription , 7497.50",01/03/2023,0000485600,"7,497.50",Revenue,Delib Ltd,0
South Ribble Borough Council,http://statistics.data.gov.uk/id/local-authority/30UE,Central Support Services,Materials General,4040,"Engine Filter kit, Hydraulic filter kit,  VIN REDACTED",29/03/2023,0000487270,622.32,Revenue,DENNIS EAGLE LTD,0
South Ribble Borough Council,http://statistics.data.gov.uk/id/local-authority/30UE,Central Support Services,Materials General,4040,1 rear airbag VIN REDACTED,29/03/2023,0000487271,339.66,Revenue,DENNIS EAGLE LTD,0
South Ribble Borough Council,http://statistics.data.gov.uk/id/local-authority/30UE,General Government Grants,Contribution to Reserves,4865,,29/03/2023,0000485692,"5,676,948.00",Revenue,Department for Communities and Local Government,0
South Ribble Borough Council,http://statistics.data.gov.uk/id/local-authority/30UE,General Government Grants,Contribution to Reserves,4865,,29/03/2023,0000485692,"124,400.00",Revenue,Department for Communities and Local Government,0
South Ribble Borough Council,http://statistics.data.gov.uk/id/local-authority/30UE,General Government Grants,Contribution to Reserves,4865,,29/03/2023,0000485692,-842.00,Revenue,Department for Communities and Local Government,0
South Ribble Borough Council,http://statistics.data.gov.uk/id/local-authority/30UE,General Government Grants,Contribution to Reserves,4865,,29/03/2023,0000485692,"-2,178.00",Revenue,Department for Communities and Local Government,0
South Ribble Borough Council,http://statistics.data.gov.uk/id/local-authority/30UE,General Government Grants,Contribution to Reserves,4865,,29/03/2023,0000485692,"-42,754.00",Revenue,Department for Communities and Local Government,0
South Ribble Borough Council,http://statistics.data.gov.uk/id/local-authority/30UE,General Government Grants,Contribution to Reserves,4865,,29/03/2023,0000485692,120.00,Revenue,Department for Communities and Local Government,0
South Ribble Borough Council,http://statistics.data.gov.uk/id/local-authority/30UE,Central Support Services,Reactive Repair & Maintenance,2020,Please attend (Moss Side Depot Gas System Service and Room Integrity Test) as per NAME REDACTED request � Biannual Electrical/Mecha,08/03/2023,0000485873,880.00,Revenue,DES Electrical Services Ltd,0
South Ribble Borough Council,http://statistics.data.gov.uk/id/local-authority/30UE,Central Support Services,Planned Annual Repair & Maintenance,2021,Annual Service for 2022/2023 of Fire Damper System at Civic Centre as per NAME REDACTED and verbal quote - previous order cancelled,29/03/2023,0000487247,608.00,Revenue,DES Electrical Services Ltd,0
South Ribble Borough Council,http://statistics.data.gov.uk/id/local-authority/30UE,Central Support Services,Furniture,4017,"4 x Aspen Rectangular Desk  1200x800x730 , Maple Top , Each with Cable Basket 1000mm , , Desk Placement locations - Civic Centre",01/03/2023,0000484693,472.40,Revenue,Diamond Business Interiors Ltd,0
South Ribble Borough Council,http://statistics.data.gov.uk/id/local-authority/30UE,Central Support Services,Planned Annual Repair & Maintenance,2021,To also include an additional 725.00 for the hazardous waste to be removed please. As per NAME REDACTED request as part of PPM programme,29/03/2023,0000486893,"2,810.00",Revenue,DRAIN ALERT LTD,0
South Ribble Borough Council,http://statistics.data.gov.uk/id/local-authority/30UE,Central Support Services,Planned Annual Repair & Maintenance,2021,"2 days High Performance Jet Vac Tanker to remove hazardous waste from the Quadraceptor and the two stage oil, separator near the ",22/03/2023,0000487103,990.00,Revenue,DRAIN ALERT LTD,0
South Ribble Borough Council,http://statistics.data.gov.uk/id/local-authority/30UE,Central Support Services,Office Requisites,4136,"Engineer callout plus first hour  260.00 1  260.00, Engineer each hour after  135.00 1  135.00, Consumable Kit for the Fujits",15/03/2023,0000486710,941.00,Revenue,E FILE UK LTD,0
South Ribble Borough Council,http://statistics.data.gov.uk/id/local-authority/30UE,Central Support Services,Electricity,2303,1/1 to 28/2823,22/03/2023,0000486835,292.27,Revenue,EOn A-ED5ECBBB 3 Heaton Street,0
South Ribble Borough Council,http://statistics.data.gov.uk/id/local-authority/30UE,Central Support Services,Electricity,2303,1/2 to 28/2/23,29/03/2023,0000487342,306.96,Revenue,EOn A-ED5ECBBB 3 Heaton Street,0
South Ribble Borough Council,http://statistics.data.gov.uk/id/local-authority/30UE,Central Support Services,Materials General,4040,"1x Bearing, 2 x Washers, 4 x O rings, 4 x sping discs, 1 x Nut, 1x Trunin , 1x Gland nut, 2x Cam rings, 1X ball and cage set, , P",01/03/2023,0000485050,332.11,Revenue,F R SHARROCK LTD,0
South Ribble Borough Council,http://statistics.data.gov.uk/id/local-authority/30UE,Central Support Services,Materials General,4040,"Service kit, Stop buffers, VIN REDACTED",01/03/2023,0000485494,537.08,Revenue,F R SHARROCK LTD,0
South Ribble Borough Council,http://statistics.data.gov.uk/id/local-authority/30UE,Capital,Cap Vehicles,C440,Replacement tractor for one procured in 2020,01/03/2023,0000485644,"74,002.50",Revenue,F R SHARROCK LTD,0
South Ribble Borough Council,http://statistics.data.gov.uk/id/local-authority/30UE,Central Support Services,Materials General,4040,"10x cylinders, Bin 1293",08/03/2023,0000485788,878.48,Revenue,F R SHARROCK LTD,0
South Ribble Borough Council,http://statistics.data.gov.uk/id/local-authority/30UE,Central Support Services,Materials General,4040,"Coach pully, VIN REDACTED",08/03/2023,0000485936,334.58,Revenue,F R SHARROCK LTD,0
South Ribble Borough Council,http://statistics.data.gov.uk/id/local-authority/30UE,Central Support Services,Materials General,4040,"1x brake light switch, VIN REDACTED",08/03/2023,0000485936,47.51,Revenue,F R SHARROCK LTD,0
South Ribble Borough Council,http://statistics.data.gov.uk/id/local-authority/30UE,Central Support Services,Materials General,4040,"Tandem Pump, VIN REDACTED",08/03/2023,0000485938,367.35,Revenue,F R SHARROCK LTD,0
South Ribble Borough Council,http://statistics.data.gov.uk/id/local-authority/30UE,Central Support Services,Materials General,4040,"Rotar , PMR 35 A2, VIN REDACTED",29/03/2023,0000487102,"1,320.00",Revenue,F R SHARROCK LTD,0
South Ribble Borough Council,http://statistics.data.gov.uk/id/local-authority/30UE,Central Support Services,Materials General,4040,8 Reground Cylinder Bin 1296,29/03/2023,0000487117,285.00,Revenue,F R SHARROCK LTD,0
South Ribble Borough Council,http://statistics.data.gov.uk/id/local-authority/30UE,Open Spaces,GM Refurbishment,4657,50 x 10m multi-coloured string lights @ 19.95 per length,01/03/2023,0000485555,956.50,Revenue,FESTIVE LIGHTS,0
South Ribble Borough Council,http://statistics.data.gov.uk/id/local-authority/30UE,Open Spaces,GM Refurbishment,4657,43 x 10 extension cables @ 15.99 per length,01/03/2023,0000485555,687.57,Revenue,FESTIVE LIGHTS,0
South Ribble Borough Council,http://statistics.data.gov.uk/id/local-authority/30UE,Open Spaces,GM Refurbishment,4657,43 x 5 port ring connectors @ 5.99 each,01/03/2023,0000485555,300.57,Revenue,FESTIVE LIGHTS,0
South Ribble Borough Council,http://statistics.data.gov.uk/id/local-authority/30UE,Central Support Services,Materials General,4040,FOOTBALL PITCH LINE MARKER PAINT 10LTRS-PITCHMARKER Q2,01/03/2023,0000485646,511.68,Revenue,Fleet Line Markers Limited,0
South Ribble Borough Council,http://statistics.data.gov.uk/id/local-authority/30UE,Central Support Services,Materials General,4040,FOOTBALL PITCH LINE MARKER PAINT 10LTRS-PITCHMARKER Q2,22/03/2023,0000486927,767.52,Revenue,Fleet Line Markers Limited,0
South Ribble Borough Council,http://statistics.data.gov.uk/id/local-authority/30UE,Parking Services,Maintenance & Repair,4013,Call out to ticket machine - Ecroyd Street,08/03/2023,0000485899,258.00,Revenue,Flowbird Smart City UK Ltd,0
South Ribble Borough Council,http://statistics.data.gov.uk/id/local-authority/30UE,Community Development,Core Fund,4861,Grant payment for Warm Welcome Boost Funding. Payment is to support groups who use the library as a venue to extend their offer.,29/03/2023,0000486829,500.00,Revenue,Friend`s of Kingsfold Library,0
South Ribble Borough Council,http://statistics.data.gov.uk/id/local-authority/30UE,Community Development,Core Fund,4861,"Funds towards the recycling project, towards purchasing recycling bins for the school.",29/03/2023,0000487275,800.00,Revenue,Friends of Coupe Green,0
South Ribble Borough Council,http://statistics.data.gov.uk/id/local-authority/30UE,Central Support Services,Planned Annual Repair & Maintenance,2021,"ADDERSS REDACTED as per NAME REDACTED request , Measured survey of existing 1st floor and proposed la",01/03/2023,0000485749,827.00,Revenue,FuZED Architecture and Design Ltd,0
South Ribble Borough Council,http://statistics.data.gov.uk/id/local-authority/30UE,Surplus or Deficit on Trading,Planned Annual Repair & Maintenance,2021,"Holland House Pavilion, Walton-le-Dale - architectural services, relating to the preparation of proposed floor plan and elevation",15/03/2023,0000486721,375.00,Revenue,FuZED Architecture and Design Ltd,0
South Ribble Borough Council,http://statistics.data.gov.uk/id/local-authority/30UE,Central Support Services,Departmental Course Fees,1420,3 x Refresher MOT Training courses,29/03/2023,0000484383,291.00,Revenue,GB MOT Training Ltd,0
South Ribble Borough Council,http://statistics.data.gov.uk/id/local-authority/30UE,Open Spaces,GM Refurbishment,4657,For 1x Ledon Spring and clamps as per quote 25074.,29/03/2023,0000486756,307.00,Revenue,GB SPORT & LEISURE UK LTD,0
South Ribble Borough Council,http://statistics.data.gov.uk/id/local-authority/30UE,Open Spaces,GM Refurbishment,4657,delivery,29/03/2023,0000486756,30.70,Revenue,GB SPORT & LEISURE UK LTD,0
South Ribble Borough Council,http://statistics.data.gov.uk/id/local-authority/30UE,Central Support Services,Materials General,4040,SLIDE BEARING 1000565 (BIN G059),08/03/2023,0000485647,354.60,Revenue,GEESINK NORBA LTD,0
South Ribble Borough Council,http://statistics.data.gov.uk/id/local-authority/30UE,Central Support Services,Materials General,4040,EUROVIM BIN LIFT ARM PIVOT PIN SEAL 1000440 (BIN G060),08/03/2023,0000485647,124.18,Revenue,GEESINK NORBA LTD,0
South Ribble Borough Council,http://statistics.data.gov.uk/id/local-authority/30UE,Central Support Services,Materials General,4040,Distance Sensor-5044512-bin G024,22/03/2023,0000486930,677.26,Revenue,GEESINK NORBA LTD,0
South Ribble Borough Council,http://statistics.data.gov.uk/id/local-authority/30UE,Central Support Services,Materials General,4040,Safety Barrier-5012241-bin G015,22/03/2023,0000486930,140.83,Revenue,GEESINK NORBA LTD,0
South Ribble Borough Council,http://statistics.data.gov.uk/id/local-authority/30UE,Central Support Services,Materials General,4040,Sensor bin locator-1007323-bin G010,22/03/2023,0000486930,370.56,Revenue,GEESINK NORBA LTD,0
South Ribble Borough Council,http://statistics.data.gov.uk/id/local-authority/30UE,Central Support Services,Materials General,4040,"Topveer for switch-1007323-1, bin G062",22/03/2023,0000486930,34.74,Revenue,GEESINK NORBA LTD,0
South Ribble Borough Council,http://statistics.data.gov.uk/id/local-authority/30UE,Central Support Services,Materials General,4040,"Filter Kit GPM4-5025256-1, bin G027",22/03/2023,0000486930,542.54,Revenue,GEESINK NORBA LTD,0
South Ribble Borough Council,http://statistics.data.gov.uk/id/local-authority/30UE,Central Support Services,Materials General,4040,Transport,22/03/2023,0000486930,25.00,Revenue,GEESINK NORBA LTD,0
South Ribble Borough Council,http://statistics.data.gov.uk/id/local-authority/30UE,Central Support Services,Legal,4821,Cuerdale Garden Village 27.01.2023 invoice,29/03/2023,0000487293,"1,050.00",Revenue,Giles Cannock,0
South Ribble Borough Council,http://statistics.data.gov.uk/id/local-authority/30UE,Community Development,Core Fund,4861,Funds from Eastern Parishes Hub towards assistance for the unit for rent and resources,29/03/2023,0000487369,500.00,Revenue,Girlguiding Hoghton District,0
South Ribble Borough Council,http://statistics.data.gov.uk/id/local-authority/30UE,Open Spaces,Materials General,4040,Elwood Bench - Dark oak sides and black enviropol slats for the seat and back part no 133/6010 with Plaque (option2) as per oder ,08/03/2023,0000485933,931.97,Revenue,GLASDON UK LTD,0
South Ribble Borough Council,http://statistics.data.gov.uk/id/local-authority/30UE,Central Support Services,Reactive Repair & Maintenance,2020,To repair of the leaking pipework at the Depot - request raised by NAME REDACTED,01/03/2023,0000485648,"1,166.50",Revenue,GOS Heating Ltd,0
South Ribble Borough Council,http://statistics.data.gov.uk/id/local-authority/30UE,Housing Advice,Contributions to Other Bodies,4730,AFFORDABLE WARMTH SCHEME FOR GAS BOILER REPLACEMENT FOLLOWING SERVICE AT ADDRESS REDACTED,01/03/2023,0000485722,"1,759.28",Revenue,GOS Heating Ltd,0
South Ribble Borough Council,http://statistics.data.gov.uk/id/local-authority/30UE,Housing Advice,Contributions to Other Bodies,4730,AFFORDABLE WARMTH SCHEME FOR GAS BOILER REPLACEMENT FOLLOWING SERVICE AT ADDRESS REDACTED,08/03/2023,0000485792,"1,639.00",Revenue,GOS Heating Ltd,0
South Ribble Borough Council,http://statistics.data.gov.uk/id/local-authority/30UE,Surplus or Deficit on Trading,Reactive Repair & Maintenance,2020,For the service at Worden Park. Conservatory The boiler had issues and we had to replace the burner. The cost of the service and ,15/03/2023,0000485991,"1,152.88",Revenue,GOS Heating Ltd,0
South Ribble Borough Council,http://statistics.data.gov.uk/id/local-authority/30UE,Economic Development,Reactive Repair & Maintenance,2020,"for the work to try and get the warm air heater working at the market. As per NAME REDACTED request , , The cost is 825+vat.",22/03/2023,0000486932,825.00,Revenue,GOS Heating Ltd,0
South Ribble Borough Council,http://statistics.data.gov.uk/id/local-authority/30UE,Capital,Capital Grant,C570,DFG WORK FOR ADAPTATION FOR LEVEL ACCESS SHOWER AT ADDRESS REDACTED AS PER SRBC PLANS AND QUOTE SUPPLIED. CU,29/03/2023,0000487389,"3,837.80",Revenue,GOS Heating Ltd,0
South Ribble Borough Council,http://statistics.data.gov.uk/id/local-authority/30UE,Capital,Cap Contract Payment,C230,Quantity Surveying Services - Asbestos Remediation at Heaton Works and Adjacent (Vacant) NFM Iddons Hardstanding,01/03/2023,0000484259,500.00,Revenue,Gosling Consulting Limited,0
South Ribble Borough Council,http://statistics.data.gov.uk/id/local-authority/30UE,Capital,Cap Contract Payment,C230,Quantity Surveying Services - Asbestos Remediation at Heaton Works and Adjacent (Vacant) NFM Iddons Hardstanding,01/03/2023,0000484752,500.00,Revenue,Gosling Consulting Limited,0
South Ribble Borough Council,http://statistics.data.gov.uk/id/local-authority/30UE,Capital,Cap Contract Payment,C230,Leyland Town Deal - Additional Document Management Services @ 525 per month,01/03/2023,0000484753,525.00,Revenue,Gosling Consulting Limited,0
South Ribble Borough Council,http://statistics.data.gov.uk/id/local-authority/30UE,Capital,Cap Professional Fees,C210,Extension of Cost Manager and Employers Agent Services (to 14th April 2023),08/03/2023,0000485950,"7,533.00",Revenue,Gosling Consulting Limited,0
South Ribble Borough Council,http://statistics.data.gov.uk/id/local-authority/30UE,Central Support Services,Software Licensing,4243,Grace Risk Management Annual Licence to 1st March 2024 4000 Grace Business Continuity Annual Licence to 1st March 2024 395 Grac,01/03/2023,0000485656,"5,390.00",Revenue,Grace Governance Solutions Ltd,0
South Ribble Borough Council,http://statistics.data.gov.uk/id/local-authority/30UE,Corporate Management,External Audit Fees,4512,2022/23 Audit Fees,29/03/2023,0000487326,"10,734.92",Revenue,Grant Thornton UK LLP,0
South Ribble Borough Council,http://statistics.data.gov.uk/id/local-authority/30UE,Economic Development,Advertising,4841,Green Man Marketing for NAME REDACTED for Leyland Market 517.50 plus Vat Leyland Market advert & editorial,29/03/2023,0000485744,517.50,Revenue,Green Man Marketing,0
South Ribble Borough Council,http://statistics.data.gov.uk/id/local-authority/30UE,Recreation & Sport,Reactive Repair & Maintenance,2020,Removal of ACMs identified within the Asbestos Sample No: 23/1/B/18/MBK5 Under controlled conditions removal of lose CAF gasket a,01/03/2023,0000485649,850.00,Revenue,Greenfield Removals,0
South Ribble Borough Council,http://statistics.data.gov.uk/id/local-authority/30UE,Recreation & Sport,Reactive Repair & Maintenance,2020,"Bamber Bridge Leisure Centre Asbestos Abatement Works., Removal of 8no Gaskets to pipework to plant room under controlled conditi",08/03/2023,0000485822,"1,450.00",Revenue,Greenfield Removals,0
South Ribble Borough Council,http://statistics.data.gov.uk/id/local-authority/30UE,Local Tax Collection,Professional Fees,4510,re 31300916,01/03/2023,0000484887,"4,960.00",Revenue,Greenhalgh Kerr,0
South Ribble Borough Council,http://statistics.data.gov.uk/id/local-authority/30UE,Community Development,Core Fund,4861,Grant payment from the Penwortham Community Hub towards Guardians of Nature Public Liability Insurance,08/03/2023,0000485303,513.17,Revenue,Guardians of Nature,0
South Ribble Borough Council,http://statistics.data.gov.uk/id/local-authority/30UE,Community Development,External Catering Charges,4575,"HAF provision over February half term. Provide 520 lunches 13-17 February, 5 per head.",01/03/2023,0000485650,"2,600.00",Revenue,Halls Bakery Limited,0
South Ribble Borough Council,http://statistics.data.gov.uk/id/local-authority/30UE,Housing Benefit Administration,Other Fees,4520,HB INFO SUBSCRIPTION 2324,22/03/2023,0000486911,287.50,Revenue,HBINFO LTD,0
South Ribble Borough Council,http://statistics.data.gov.uk/id/local-authority/30UE,Unapportionable Central OHeads,Land Registry Fees,4523,12 Apr 22,29/03/2023,0000486788,648.00,Revenue,HM LAND REGISTRY,0
South Ribble Borough Council,http://statistics.data.gov.uk/id/local-authority/30UE,Short Term Creditors,Amount Received,0140,,08/03/2023,0000485618,636.00,Revenue,HM REVENUE & CUSTOMS,0
South Ribble Borough Council,http://statistics.data.gov.uk/id/local-authority/30UE,Central Support Services,Materials General,4040,1 off 3000X1500X6 HARDOX PLATE,22/03/2023,0000486898,950.00,Revenue,Holdens CVE Limited,0
South Ribble Borough Council,http://statistics.data.gov.uk/id/local-authority/30UE,Central Support Services,Materials General,4040,Cutting 3 plates to size,22/03/2023,0000486898,270.00,Revenue,Holdens CVE Limited,0
South Ribble Borough Council,http://statistics.data.gov.uk/id/local-authority/30UE,Central Support Services,Short Course,1402,Part 7 Housing Act - A Practical Guide - training for NAME REDACTED - 08/03 - 09/03/2023,22/03/2023,0000487066,310.00,Revenue,Housing Review Limited,0
South Ribble Borough Council,http://statistics.data.gov.uk/id/local-authority/30UE,Central Support Services,Short Course,1402,Part 7 Housing Act - A Practical Guide - training for NAME REDACTED 08/03/2023 - 09/03/2023,29/03/2023,0000487241,310.00,Revenue,Housing Review Limited,0
South Ribble Borough Council,http://statistics.data.gov.uk/id/local-authority/30UE,Central Support Services,Consultancy Fees,4541,"Project work, NAME REDACTED TMP 10 x 650",01/03/2023,0000484477,"6,500.00",Revenue,Hybrit Services Limited,0
South Ribble Borough Council,http://statistics.data.gov.uk/id/local-authority/30UE,Central Support Services,Applications Systems,4248,"Professional Services for Telephony:, , Initial CC Build - 3.5 Days, South Ribble CC Build - 4 Days, Go-Live on site - 1 Day, Exp",01/03/2023,0000484923,"6,625.00",Revenue,Hybrit Services Limited,0
South Ribble Borough Council,http://statistics.data.gov.uk/id/local-authority/30UE,Central Support Services,Consultancy Fees,4541,"Project work, NAME REDACTED TMP 10 x 650",01/03/2023,0000485218,"6,500.00",Revenue,Hybrit Services Limited,0
South Ribble Borough Council,http://statistics.data.gov.uk/id/local-authority/30UE,Open Spaces,GM Refurbishment,4657,"2x Yellow 1.2m high Prosafe hydraulic self-closing gate(Quote ref. Q-171868). , Total cost incl. delivery 1800.20.",01/03/2023,0000485451,"1,800.20",Revenue,IAE,0
South Ribble Borough Council,http://statistics.data.gov.uk/id/local-authority/30UE,Central Support Services,Computer Equipment,4241,"10 x IDP SMART 31 and 51 YMCKOK Colour Printer Ribbon with Cleaning Roller 659376, 10 @ 52.25",22/03/2023,0000485904,530.45,Revenue,ID Card Centre Limited,0
South Ribble Borough Council,http://statistics.data.gov.uk/id/local-authority/30UE,Democratic Represent and  Mgnt,Corp Subs to Professional Bodies,4720,Membership Subscription renewal to LG Inform Plus 2023/2024,08/03/2023,0000485270,"1,210.00",Revenue,IDEA IMPROVEMENT & DEV AGENCY for LOCAL GOV,0
South Ribble Borough Council,http://statistics.data.gov.uk/id/local-authority/30UE,Capital,Capital Grant,C570,DFG WORK FOR ADAPTATION FOR A GEBERIT TOILET AND ASSOCIATED WORKS AT ADDRESS REDACTED,22/03/2023,0000487097,"4,129.00",Revenue,Independent Adaptations Ltd,0
South Ribble Borough Council,http://statistics.data.gov.uk/id/local-authority/30UE,Central Support Services,Other Fees,4520,IRRV INTRODUCTION TO COUNCIL TAX MARCH 2023 4 DELEGATES,01/03/2023,0000485748,581.25,Revenue,INST OF REVENUES RATING & VALUATION,0
South Ribble Borough Council,http://statistics.data.gov.uk/id/local-authority/30UE,Central Support Services,Other Fees,4520,IRRV MEMBERSHIP FORUM 2023,15/03/2023,0000486714,"1,560.00",Revenue,INST OF REVENUES RATING & VALUATION,0
South Ribble Borough Council,http://statistics.data.gov.uk/id/local-authority/30UE,Central Support Services,Materials General,4040,1001002 - QC10 - QUICK SET CONCRETE-QC10,22/03/2023,0000486866,"1,367.52",Revenue,INSTARMAC GROUP PLC,0
South Ribble Borough Council,http://statistics.data.gov.uk/id/local-authority/30UE,Street Cleansing,Hiring Expenses,3212,"3.5T Tipper BU22 WBE, Continuation of hire 1.2.23 - 28.2.23",01/03/2023,0000485652,438.82,Revenue,Intack Self Drive Ltd,0
South Ribble Borough Council,http://statistics.data.gov.uk/id/local-authority/30UE,Capital,Cap Contract Payment,C230,Architectural Consultancy,29/03/2023,0000485606,644.30,Revenue,Ivan Wilson Architect,0
South Ribble Borough Council,http://statistics.data.gov.uk/id/local-authority/30UE,Capital,Cap Contract Payment,C230,Hornbeam 60/90,01/03/2023,0000485382,"1,176.00",Revenue,J A JONES & SONS,0
South Ribble Borough Council,http://statistics.data.gov.uk/id/local-authority/30UE,Capital,Cap Contract Payment,C230,Beech 60/90,01/03/2023,0000485382,"1,176.00",Revenue,J A JONES & SONS,0
South Ribble Borough Council,http://statistics.data.gov.uk/id/local-authority/30UE,Capital,Cap Contract Payment,C230,Birch 100/150,01/03/2023,0000485382,375.00,Revenue,J A JONES & SONS,0
South Ribble Borough Council,http://statistics.data.gov.uk/id/local-authority/30UE,Capital,Cap Contract Payment,C230,Crab Apple 100/150,01/03/2023,0000485382,330.00,Revenue,J A JONES & SONS,0
South Ribble Borough Council,http://statistics.data.gov.uk/id/local-authority/30UE,Capital,Cap Contract Payment,C230,Rowan 100/150,01/03/2023,0000485382,474.00,Revenue,J A JONES & SONS,0
South Ribble Borough Council,http://statistics.data.gov.uk/id/local-authority/30UE,Capital,Cap Contract Payment,C230,Wild Cherry 100/150,01/03/2023,0000485382,660.00,Revenue,J A JONES & SONS,0
South Ribble Borough Council,http://statistics.data.gov.uk/id/local-authority/30UE,Capital,Cap Contract Payment,C230,Field Maple 60/90,01/03/2023,0000485382,248.00,Revenue,J A JONES & SONS,0
South Ribble Borough Council,http://statistics.data.gov.uk/id/local-authority/30UE,Capital,Cap Contract Payment,C230,Wild Cherry 60/90,01/03/2023,0000485382,196.00,Revenue,J A JONES & SONS,0
South Ribble Borough Council,http://statistics.data.gov.uk/id/local-authority/30UE,Capital,Cap Contract Payment,C230,Guelder Rose 60/90,01/03/2023,0000485382,236.00,Revenue,J A JONES & SONS,0
South Ribble Borough Council,http://statistics.data.gov.uk/id/local-authority/30UE,Capital,Cap Contract Payment,C230,Hazel 60/90,01/03/2023,0000485382,196.00,Revenue,J A JONES & SONS,0
South Ribble Borough Council,http://statistics.data.gov.uk/id/local-authority/30UE,Capital,Cap Contract Payment,C230,Hawthorn 60/90,01/03/2023,0000485382,"1,740.00",Revenue,J A JONES & SONS,0
South Ribble Borough Council,http://statistics.data.gov.uk/id/local-authority/30UE,Capital,Cap Contract Payment,C230,Blackthorn 60/90,01/03/2023,0000485382,"1,960.00",Revenue,J A JONES & SONS,0
South Ribble Borough Council,http://statistics.data.gov.uk/id/local-authority/30UE,Capital,Cap Contract Payment,C230,Hazels 100/150,01/03/2023,0000485382,52.50,Revenue,J A JONES & SONS,0
South Ribble Borough Council,http://statistics.data.gov.uk/id/local-authority/30UE,Capital,Cap Contract Payment,C230,"Supply and delivery of trees to Much Hoole, 3no Sorbus aucuparia standard bare root 8-10cm, 1no fruiting apple tree (dessert or c",01/03/2023,0000485452,297.00,Revenue,J A JONES & SONS,0
South Ribble Borough Council,http://statistics.data.gov.uk/id/local-authority/30UE,Capital,Cap Contract Payment,C230,Supply and delivery of trees for Bent Lane hedgerow,08/03/2023,0000485825,"1,045.50",Revenue,J A JONES & SONS,0
South Ribble Borough Council,http://statistics.data.gov.uk/id/local-authority/30UE,Capital,Cap Contract Payment,C230,"Farington Parish Council	 	 	 	, , 200x Hawthorn	60/90	@0.87ea 	 , 200x Blackthorn	60/90	 @0.98ea 	 , 					, Delivery 14th Febr",08/03/2023,0000485826,370.00,Revenue,J A JONES & SONS,0
South Ribble Borough Council,http://statistics.data.gov.uk/id/local-authority/30UE,Capital,Cap Contract Payment,C230,"500x Hornbeam 60/90 @ 0.98ea 	, 500x Beech 60/90 @ 0.98ea, 150x Birch 100/150	@ 1.25ea, 150x Crab Apple 100/150 @ 1.10ea	 , ,",08/03/2023,0000485827,"1,412.50",Revenue,J A JONES & SONS,0
South Ribble Borough Council,http://statistics.data.gov.uk/id/local-authority/30UE,Capital,Cap Contract Payment,C230,"1000x Hawthorn 60/90 @0.87ea	, 150x Rowan 100/150 @1.58ea 	 , 150x Wild Cherry 100/150 @2.20ea 	, , Delivery 14th February 202",08/03/2023,0000485828,"1,107.00",Revenue,J A JONES & SONS,0
South Ribble Borough Council,http://statistics.data.gov.uk/id/local-authority/30UE,Capital,Cap Contract Payment,C230,"1000x Blackthorn 60/90 @ 0.98ea 	, 100x Guelder Rose	60/90 @ 1.18ea 	 , 100x Hazel 60/90 @ 0.98ea 	 , 100x Field Maple 60/90 @",08/03/2023,0000485829,"1,418.00",Revenue,J A JONES & SONS,0
South Ribble Borough Council,http://statistics.data.gov.uk/id/local-authority/30UE,Capital,Cap Contract Payment,C230,"1000x Hawthorn 60/90 @0.87ea	, 150x Rowan 100/150 @1.58ea 	 , 150x Wild Cherry 100/150 @2.20ea 	, , Delivery 14th February 202",22/03/2023,0000486804,264.00,Revenue,J A JONES & SONS,0
South Ribble Borough Council,http://statistics.data.gov.uk/id/local-authority/30UE,Capital,Cap Contract Payment,C230,Acer campestre BR 1+1 40-60,29/03/2023,0000486944,132.00,Revenue,J A JONES & SONS,0
South Ribble Borough Council,http://statistics.data.gov.uk/id/local-authority/30UE,Capital,Cap Contract Payment,C230,Betula pendula BR 1+1 40-60,29/03/2023,0000486944,39.00,Revenue,J A JONES & SONS,0
South Ribble Borough Council,http://statistics.data.gov.uk/id/local-authority/30UE,Capital,Cap Contract Payment,C230,Carpinus betulus BR 1+1 40-60,29/03/2023,0000486944,39.00,Revenue,J A JONES & SONS,0
South Ribble Borough Council,http://statistics.data.gov.uk/id/local-authority/30UE,Capital,Cap Contract Payment,C230,Corylus avellana BR 1+1 40-60,29/03/2023,0000486944,179.40,Revenue,J A JONES & SONS,0
South Ribble Borough Council,http://statistics.data.gov.uk/id/local-authority/30UE,Capital,Cap Contract Payment,C230,Crataegus monogyna BR 1+1 40-60,29/03/2023,0000486944,331.50,Revenue,J A JONES & SONS,0
South Ribble Borough Council,http://statistics.data.gov.uk/id/local-authority/30UE,Open Spaces,Plants Trees & Shrubs,4046,"Ilex aquifolium	2L 40/60",29/03/2023,0000486944,95.00,Revenue,J A JONES & SONS,0
South Ribble Borough Council,http://statistics.data.gov.uk/id/local-authority/30UE,Capital,Cap Contract Payment,C230,Malus sylvestris BR 1+1 40-60,29/03/2023,0000486944,74.00,Revenue,J A JONES & SONS,0
South Ribble Borough Council,http://statistics.data.gov.uk/id/local-authority/30UE,Capital,Cap Contract Payment,C230,"Prunus avium	BR 1+1 40-60",29/03/2023,0000486944,39.00,Revenue,J A JONES & SONS,0
South Ribble Borough Council,http://statistics.data.gov.uk/id/local-authority/30UE,Capital,Cap Contract Payment,C230,Prunus spinosa BR 1+1 40-60,29/03/2023,0000486944,292.50,Revenue,J A JONES & SONS,0
South Ribble Borough Council,http://statistics.data.gov.uk/id/local-authority/30UE,Capital,Cap Contract Payment,C230,Sorbus aucuparia BR 1+1 40-60,29/03/2023,0000486944,58.50,Revenue,J A JONES & SONS,0
South Ribble Borough Council,http://statistics.data.gov.uk/id/local-authority/30UE,Capital,Cap Contract Payment,C230,Plum Victoria Br 8-10cm,29/03/2023,0000486944,192.00,Revenue,J A JONES & SONS,0
South Ribble Borough Council,http://statistics.data.gov.uk/id/local-authority/30UE,Capital,Cap Contract Payment,C230,Plum Czar Br 8-10cm,29/03/2023,0000486944,192.00,Revenue,J A JONES & SONS,0
South Ribble Borough Council,http://statistics.data.gov.uk/id/local-authority/30UE,Capital,Cap Contract Payment,C230,Apple Laxtons Superb Br 6-8cm,29/03/2023,0000486944,152.00,Revenue,J A JONES & SONS,0
South Ribble Borough Council,http://statistics.data.gov.uk/id/local-authority/30UE,Capital,Cap Contract Payment,C230,"Apple Howgate Wonder	Br 6-8cm	38.00",29/03/2023,0000486944,152.00,Revenue,J A JONES & SONS,0
South Ribble Borough Council,http://statistics.data.gov.uk/id/local-authority/30UE,Capital,Cap Contract Payment,C230,"Salix alba 	BR 8-10",29/03/2023,0000486944,38.00,Revenue,J A JONES & SONS,0
South Ribble Borough Council,http://statistics.data.gov.uk/id/local-authority/30UE,Capital,Cap Contract Payment,C230,"Rosa rugosa	BR 1+1 40-60",29/03/2023,0000486944,4.68,Revenue,J A JONES & SONS,0
South Ribble Borough Council,http://statistics.data.gov.uk/id/local-authority/30UE,Open Spaces,Plants Trees & Shrubs,4046,Ceanothus Skylark 2L,29/03/2023,0000486944,27.80,Revenue,J A JONES & SONS,0
South Ribble Borough Council,http://statistics.data.gov.uk/id/local-authority/30UE,Open Spaces,Plants Trees & Shrubs,4046,"Euonymus alatus	5L",29/03/2023,0000486944,58.00,Revenue,J A JONES & SONS,0
South Ribble Borough Council,http://statistics.data.gov.uk/id/local-authority/30UE,Open Spaces,Plants Trees & Shrubs,4046,"Buddleia davidii Black Knight	3L, , Plus Delivery 65",29/03/2023,0000486944,8.40,Revenue,J A JONES & SONS,0
South Ribble Borough Council,http://statistics.data.gov.uk/id/local-authority/30UE,Open Spaces,Plants Trees & Shrubs,4046,CARRIAGE CHARGE,29/03/2023,0000486944,65.00,Revenue,J A JONES & SONS,0
South Ribble Borough Council,http://statistics.data.gov.uk/id/local-authority/30UE,Central Support Services,Materials General,4040,"Brake Modulator, VIN REDACTED",15/03/2023,0000484756,"1,095.00",Revenue,JAMES HART (CHORLEY) LTD,0
South Ribble Borough Council,http://statistics.data.gov.uk/id/local-authority/30UE,Central Support Services,Materials General,4040,1 x AdBlue Pump VIN REDACTED,08/03/2023,0000485524,745.00,Revenue,JAMES HART (CHORLEY) LTD,0
South Ribble Borough Council,http://statistics.data.gov.uk/id/local-authority/30UE,Surplus or Deficit on Trading,Planned Annual Repair & Maintenance,2021,"Annual Contract for 2022 - 2023 for the maintenance of the Trend BMS HVAC 4 x day visits (TBA) June, Sept, Dec, March - at the Ci",22/03/2023,0000486833,445.00,Revenue,JBC CONTROL SYSTEM,0
South Ribble Borough Council,http://statistics.data.gov.uk/id/local-authority/30UE,Recreation & Sport,Dev ftarget Sports-Coaching,4894,"x12 SAMBA TRAINER GOAL 12 x 6, 1,189.50 ex vat, 237.90 vat, 1,427.40 inc vat",29/03/2023,0000486907,"1,189.50",Revenue,JOHN HARRISON SPORTS LTD,0
South Ribble Borough Council,http://statistics.data.gov.uk/id/local-authority/30UE,Open Spaces,Materials General,4040,"Treated Sawn Softwoods											, 											, 4x		2.4M		200MM	X	100MM				25.50ea, 											, 9x		2.4M		150 MM	X	150MM				46",29/03/2023,0000486947,604.05,Revenue,JOHN HY MAYOR & SONS LTD,0
South Ribble Borough Council,http://statistics.data.gov.uk/id/local-authority/30UE,Capital,Cap Contract Payment,C230,Description: Exterior refurbishments of Farmyard cottages as per NAME REDACTED request,22/03/2023,0000484299,"29,456.19",Revenue,John Wade Groundworks Ltd t/a Wade Group,0
South Ribble Borough Council,http://statistics.data.gov.uk/id/local-authority/30UE,Open Spaces,GM Refurbishment,4657,Resurfacing and lining works to Worden Hall Car Park,29/03/2023,0000485992,"7,009.33",Revenue,John Wade Groundworks Ltd t/a Wade Group,0
South Ribble Borough Council,http://statistics.data.gov.uk/id/local-authority/30UE,Capital,Cap Contract Payment,C230,Retention release � Bridleway,29/03/2023,0000486701,"1,567.80",Revenue,John Wade Groundworks Ltd t/a Wade Group,0
South Ribble Borough Council,http://statistics.data.gov.uk/id/local-authority/30UE,Street Cleansing,Operational Equip & Tools,4010,Sweeper Chevrons,22/03/2023,0000486851,295.00,Revenue,KDJ Dezigns LTD T/A Sign Dezign,0
South Ribble Borough Council,http://statistics.data.gov.uk/id/local-authority/30UE,Economic Development,Professional Fees,4510,"Music In the Park stickers for refuse vehicles, 3 vehicles (6 stickers) @ 200 each, including fitting",22/03/2023,0000486861,"1,200.00",Revenue,KDJ Dezigns LTD T/A Sign Dezign,0
South Ribble Borough Council,http://statistics.data.gov.uk/id/local-authority/30UE,Central Support Services,Miscellaneous Expenses,4851,6x battery signs for RCV`s,29/03/2023,0000487382,"1,410.00",Revenue,KDJ Dezigns LTD T/A Sign Dezign,0
South Ribble Borough Council,http://statistics.data.gov.uk/id/local-authority/30UE,Open Spaces,GM Refurbishment,4657,Green Flag Applications 2023/24,22/03/2023,0000486882,"1,531.00",Revenue,KEEP BRITAIN TIDY,0
South Ribble Borough Council,http://statistics.data.gov.uk/id/local-authority/30UE,Central Support Services,Clothing and Uniforms,4410,BODYWARMER - WROXHAM FORTRESS- EXTRA LARGE c/w SRBC Logo Front Left Breast in White EMB-WROXHAM,22/03/2023,0000486858,56.56,Revenue,KEY ENGINEERING & HYGIENE SUPPLIES LTD,0
South Ribble Borough Council,http://statistics.data.gov.uk/id/local-authority/30UE,Central Support Services,Clothing and Uniforms,4410,CLEAR SAFETY SPECS EN166.1.F PORTWEST-PS33,22/03/2023,0000486858,24.00,Revenue,KEY ENGINEERING & HYGIENE SUPPLIES LTD,0
South Ribble Borough Council,http://statistics.data.gov.uk/id/local-authority/30UE,Central Support Services,Clothing and Uniforms,4410,WAISTCOAT - SLEEVED - FLUORESCENT LARGE SRBC c/w LOGO FRONT LEFT BREAST & REAR HS COLOUR-PKJENG,22/03/2023,0000486858,30.35,Revenue,KEY ENGINEERING & HYGIENE SUPPLIES LTD,0
South Ribble Borough Council,http://statistics.data.gov.uk/id/local-authority/30UE,Central Support Services,Clothing and Uniforms,4410,GLOVES - WINTER HV EN388 2.2.4.3/Size 10-A185,22/03/2023,0000486858,284.00,Revenue,KEY ENGINEERING & HYGIENE SUPPLIES LTD,0
South Ribble Borough Council,http://statistics.data.gov.uk/id/local-authority/30UE,Central Support Services,Clothing and Uniforms,4410,HI VIS Yellow Traffic fleece EXTRA LARGE with coloured SRBC logo embroidered on LH breast F300,29/03/2023,0000487140,97.16,Revenue,KEY ENGINEERING & HYGIENE SUPPLIES LTD,0
South Ribble Borough Council,http://statistics.data.gov.uk/id/local-authority/30UE,Central Support Services,Clothing and Uniforms,4410,HI VIS POLO (SHORT SLEEVED) - EXTRA LARGE c/w SRBC LOGO FRONT LEFT BREAST & REAR HS COLOUR-S477,29/03/2023,0000487140,69.86,Revenue,KEY ENGINEERING & HYGIENE SUPPLIES LTD,0
South Ribble Borough Council,http://statistics.data.gov.uk/id/local-authority/30UE,Central Support Services,Clothing and Uniforms,4410,BASEBALL CAPS-BB58,29/03/2023,0000487140,60.00,Revenue,KEY ENGINEERING & HYGIENE SUPPLIES LTD,0
South Ribble Borough Council,http://statistics.data.gov.uk/id/local-authority/30UE,Central Support Services,Clothing and Uniforms,4410,SWEATSHIRT NAVY - LARGE c/w SRBC LOGO FRONT LEFT BREAST HS WHITE-UC203,29/03/2023,0000487140,27.76,Revenue,KEY ENGINEERING & HYGIENE SUPPLIES LTD,0
South Ribble Borough Council,http://statistics.data.gov.uk/id/local-authority/30UE,Other Welfare Services,Contributions to Other Bodies,4730,Contribution to refuge services,22/03/2023,0000486874,"1,000.00",Revenue,KEY UNLOCKING FUTURES LTD,0
South Ribble Borough Council,http://statistics.data.gov.uk/id/local-authority/30UE,Regulatory Services,Poisons & Baits,4041,Pesticide stock and PPE & Equipment for NAME REDACTED as per your Quotation 02012303QUO00052/00 (Chorley),29/03/2023,0000487371,"1,935.05",Revenue,KILLGERM CHEMICALS LTD,0
South Ribble Borough Council,http://statistics.data.gov.uk/id/local-authority/30UE,Economic Development,Publicity & Promotion,4842,"Advertisement to appear in the Welcome to, Lancashire guide, SRBC, Invoice No: 24304",22/03/2023,0000486891,795.00,Revenue,Kingfisher Media Ltd,0
South Ribble Borough Council,http://statistics.data.gov.uk/id/local-authority/30UE,Community Development,Core Fund,4861,Grant payment for Warm Welcome BoostFunding.Payment is to support groups who use thelibrary as a venue to support Thursday Thread,29/03/2023,0000486828,250.00,Revenue,Kingsfold Methodist Church,0
South Ribble Borough Council,http://statistics.data.gov.uk/id/local-authority/30UE,Surplus or Deficit on Trading,Planned Annual Repair & Maintenance,2021,"Annual Contract 2022/2023 Quotation ref PM 8155 for water hygiene monitoring at the following sites:, Gregson Lane Pavilion. 154",22/03/2023,0000486956,46.50,Revenue,KNOWSLEY BLD & ENVIRONMENTAL SERVICES LT,0
South Ribble Borough Council,http://statistics.data.gov.uk/id/local-authority/30UE,Surplus or Deficit on Trading,Planned Annual Repair & Maintenance,2021,Herne Avenue Pavilion. Lostock Hall 154.00 Plus Sample 32,22/03/2023,0000486956,46.50,Revenue,KNOWSLEY BLD & ENVIRONMENTAL SERVICES LT,0
South Ribble Borough Council,http://statistics.data.gov.uk/id/local-authority/30UE,Surplus or Deficit on Trading,Planned Annual Repair & Maintenance,2021,Higher Walton Pavilion. 154.00 Plus Sample 32,22/03/2023,0000486956,46.50,Revenue,KNOWSLEY BLD & ENVIRONMENTAL SERVICES LT,0
South Ribble Borough Council,http://statistics.data.gov.uk/id/local-authority/30UE,Surplus or Deficit on Trading,Planned Annual Repair & Maintenance,2021,Holme Pavilion. Bamber Bridge. 154.00 Plus Sample 32,22/03/2023,0000486956,46.50,Revenue,KNOWSLEY BLD & ENVIRONMENTAL SERVICES LT,0
South Ribble Borough Council,http://statistics.data.gov.uk/id/local-authority/30UE,Surplus or Deficit on Trading,Planned Annual Repair & Maintenance,2021,Hutton Pavilion. Hutton 154.00 Plus Sample 32,22/03/2023,0000486956,46.50,Revenue,KNOWSLEY BLD & ENVIRONMENTAL SERVICES LT,0
South Ribble Borough Council,http://statistics.data.gov.uk/id/local-authority/30UE,Surplus or Deficit on Trading,Planned Annual Repair & Maintenance,2021,Worden Park Long Pavilion. 154.00 Plus Sample 32,22/03/2023,0000486956,46.50,Revenue,KNOWSLEY BLD & ENVIRONMENTAL SERVICES LT,0
South Ribble Borough Council,http://statistics.data.gov.uk/id/local-authority/30UE,Surplus or Deficit on Trading,Planned Annual Repair & Maintenance,2021,Longton Pavilion. 154.00 Plus Sample 32,22/03/2023,0000486956,46.50,Revenue,KNOWSLEY BLD & ENVIRONMENTAL SERVICES LT,0
South Ribble Borough Council,http://statistics.data.gov.uk/id/local-authority/30UE,Surplus or Deficit on Trading,Planned Annual Repair & Maintenance,2021,Moss Side Pavilion 154.00 Plus 2 Samples 64,22/03/2023,0000486956,54.50,Revenue,KNOWSLEY BLD & ENVIRONMENTAL SERVICES LT,0
South Ribble Borough Council,http://statistics.data.gov.uk/id/local-authority/30UE,Surplus or Deficit on Trading,Planned Annual Repair & Maintenance,2021,Much Hoole Pavilion 154.00 Plus Sample 32,22/03/2023,0000486956,46.50,Revenue,KNOWSLEY BLD & ENVIRONMENTAL SERVICES LT,0
South Ribble Borough Council,http://statistics.data.gov.uk/id/local-authority/30UE,Surplus or Deficit on Trading,Planned Annual Repair & Maintenance,2021,Penwortham Holme Pavilion 154.00 Plus Sample 32,22/03/2023,0000486956,46.50,Revenue,KNOWSLEY BLD & ENVIRONMENTAL SERVICES LT,0
South Ribble Borough Council,http://statistics.data.gov.uk/id/local-authority/30UE,Surplus or Deficit on Trading,Planned Annual Repair & Maintenance,2021,St Cuthbert�s Pavilion. Lostock Hall 154.00 Plus Sample 32,22/03/2023,0000486956,46.50,Revenue,KNOWSLEY BLD & ENVIRONMENTAL SERVICES LT,0
South Ribble Borough Council,http://statistics.data.gov.uk/id/local-authority/30UE,Surplus or Deficit on Trading,Planned Annual Repair & Maintenance,2021,Withy Grove Pavilion 154.00 Plus 2 Samples 64,22/03/2023,0000486956,54.50,Revenue,KNOWSLEY BLD & ENVIRONMENTAL SERVICES LT,0
South Ribble Borough Council,http://statistics.data.gov.uk/id/local-authority/30UE,Surplus or Deficit on Trading,Planned Annual Repair & Maintenance,2021,Holland House Farm Pavilion 154.00 Plus Sample 32,22/03/2023,0000486956,46.50,Revenue,KNOWSLEY BLD & ENVIRONMENTAL SERVICES LT,0
South Ribble Borough Council,http://statistics.data.gov.uk/id/local-authority/30UE,Surplus or Deficit on Trading,Planned Annual Repair & Maintenance,2021,Kingsfold Pavilion. Penwortham 154.00 Plus 2 Samples 64,22/03/2023,0000486956,54.50,Revenue,KNOWSLEY BLD & ENVIRONMENTAL SERVICES LT,0
South Ribble Borough Council,http://statistics.data.gov.uk/id/local-authority/30UE,Surplus or Deficit on Trading,Planned Annual Repair & Maintenance,2021,Worden Park: The Derby Wing 144.00 Plus Sample 32,22/03/2023,0000486956,44.00,Revenue,KNOWSLEY BLD & ENVIRONMENTAL SERVICES LT,0
South Ribble Borough Council,http://statistics.data.gov.uk/id/local-authority/30UE,Surplus or Deficit on Trading,Planned Annual Repair & Maintenance,2021,Welcome Hall. Carr Street CC 144.00 Plus Sample 32,22/03/2023,0000486956,44.00,Revenue,KNOWSLEY BLD & ENVIRONMENTAL SERVICES LT,0
South Ribble Borough Council,http://statistics.data.gov.uk/id/local-authority/30UE,Surplus or Deficit on Trading,Planned Annual Repair & Maintenance,2021,Worden Park Bungalow 144.00 Plus Sample 32,22/03/2023,0000486956,44.00,Revenue,KNOWSLEY BLD & ENVIRONMENTAL SERVICES LT,0
South Ribble Borough Council,http://statistics.data.gov.uk/id/local-authority/30UE,Surplus or Deficit on Trading,Planned Annual Repair & Maintenance,2021,Worden Park Gardeners Depot 144.00 Plus Sample 32,22/03/2023,0000486956,44.00,Revenue,KNOWSLEY BLD & ENVIRONMENTAL SERVICES LT,0
South Ribble Borough Council,http://statistics.data.gov.uk/id/local-authority/30UE,Surplus or Deficit on Trading,Planned Annual Repair & Maintenance,2021,Hurst Grange Park Depot 144.00 Plus Sample 32,22/03/2023,0000486956,44.00,Revenue,KNOWSLEY BLD & ENVIRONMENTAL SERVICES LT,0
South Ribble Borough Council,http://statistics.data.gov.uk/id/local-authority/30UE,Surplus or Deficit on Trading,Planned Annual Repair & Maintenance,2021,Higher Walton C.C. 144.00 Plus Sample 32,22/03/2023,0000486956,44.00,Revenue,KNOWSLEY BLD & ENVIRONMENTAL SERVICES LT,0
South Ribble Borough Council,http://statistics.data.gov.uk/id/local-authority/30UE,Recreation & Sport,Planned Annual Repair & Maintenance,2021,Moss Side C.C. 144.00 Plus Sample 32,22/03/2023,0000486956,44.00,Revenue,KNOWSLEY BLD & ENVIRONMENTAL SERVICES LT,0
South Ribble Borough Council,http://statistics.data.gov.uk/id/local-authority/30UE,Surplus or Deficit on Trading,Planned Annual Repair & Maintenance,2021,Worden Park: Arts & Crafts Centre 144.00 Plus 3 Samples 96,22/03/2023,0000486956,60.00,Revenue,KNOWSLEY BLD & ENVIRONMENTAL SERVICES LT,0
South Ribble Borough Council,http://statistics.data.gov.uk/id/local-authority/30UE,Economic Development,Planned Annual Repair & Maintenance,2021,Leyland Indoor Market 144.00 Sample 32,22/03/2023,0000486956,44.00,Revenue,KNOWSLEY BLD & ENVIRONMENTAL SERVICES LT,0
South Ribble Borough Council,http://statistics.data.gov.uk/id/local-authority/30UE,Surplus or Deficit on Trading,Planned Annual Repair & Maintenance,2021,Worden Park Bungalow / Rangers Office 144.00 Plus Sample 32,22/03/2023,0000486956,44.00,Revenue,KNOWSLEY BLD & ENVIRONMENTAL SERVICES LT,0
South Ribble Borough Council,http://statistics.data.gov.uk/id/local-authority/30UE,Regulatory Services,Planned Annual Repair & Maintenance,2021,Cross Roads. Leyland 62.00 Plus Sample 32,22/03/2023,0000486956,23.50,Revenue,KNOWSLEY BLD & ENVIRONMENTAL SERVICES LT,0
South Ribble Borough Council,http://statistics.data.gov.uk/id/local-authority/30UE,Regulatory Services,Planned Annual Repair & Maintenance,2021,Hope Terrace Public Toilets. Lostock Hall 62.00 Plus Sample 32,22/03/2023,0000486956,23.50,Revenue,KNOWSLEY BLD & ENVIRONMENTAL SERVICES LT,0
South Ribble Borough Council,http://statistics.data.gov.uk/id/local-authority/30UE,Surplus or Deficit on Trading,Planned Annual Repair & Maintenance,2021,Longton Brickroft Visitors Centre 74.00 Plus Sample 32,22/03/2023,0000486956,26.50,Revenue,KNOWSLEY BLD & ENVIRONMENTAL SERVICES LT,0
South Ribble Borough Council,http://statistics.data.gov.uk/id/local-authority/30UE,Regulatory Services,Planned Annual Repair & Maintenance,2021,Play Ground Public Toilets. Leyland 62.00 Plus Sample 32,22/03/2023,0000486956,23.50,Revenue,KNOWSLEY BLD & ENVIRONMENTAL SERVICES LT,0
South Ribble Borough Council,http://statistics.data.gov.uk/id/local-authority/30UE,Surplus or Deficit on Trading,Planned Annual Repair & Maintenance,2021,South Ribble Museum & Exhibition Centre 74.00 Plus Sample 32,22/03/2023,0000486956,26.50,Revenue,KNOWSLEY BLD & ENVIRONMENTAL SERVICES LT,0
South Ribble Borough Council,http://statistics.data.gov.uk/id/local-authority/30UE,Regulatory Services,Planned Annual Repair & Maintenance,2021,Withy Grove Public Toilets. Bamber Bridge 62.00 Plus Sample 32,22/03/2023,0000486956,23.50,Revenue,KNOWSLEY BLD & ENVIRONMENTAL SERVICES LT,0
South Ribble Borough Council,http://statistics.data.gov.uk/id/local-authority/30UE,Central Support Services,Planned Annual Repair & Maintenance,2021,"Civic Centre, Leyland 588.00 Plus 5 Samples 160",22/03/2023,0000486956,187.00,Revenue,KNOWSLEY BLD & ENVIRONMENTAL SERVICES LT,0
South Ribble Borough Council,http://statistics.data.gov.uk/id/local-authority/30UE,Central Support Services,Planned Annual Repair & Maintenance,2021,Moss Side Depot 432.00 Plus Sample 32,22/03/2023,0000486956,116.00,Revenue,KNOWSLEY BLD & ENVIRONMENTAL SERVICES LT,0
South Ribble Borough Council,http://statistics.data.gov.uk/id/local-authority/30UE,Central Support Services,Planned Annual Repair & Maintenance,2021,"Moss Side Depot (Six Monthly) 124 x 2, Additional Sampling Reques",22/03/2023,0000486956,62.00,Revenue,KNOWSLEY BLD & ENVIRONMENTAL SERVICES LT,0
South Ribble Borough Council,http://statistics.data.gov.uk/id/local-authority/30UE,Tourism,Reactive Repair & Maintenance,2020,To attend Worden Hall on 14th and 20th Sept 2022 and take samples following drains issue as per NAM REDACTED request 544.00 and �,29/03/2023,0000487337,"1,295.00",Revenue,KNOWSLEY BLD & ENVIRONMENTAL SERVICES LT,0
South Ribble Borough Council,http://statistics.data.gov.uk/id/local-authority/30UE,Capital,Cap Contract Payment,C230,Design and build of new playground at Haig Avenue Leyland,22/03/2023,0000483542,"2,619.40",Revenue,KOMPAN LTD,0
South Ribble Borough Council,http://statistics.data.gov.uk/id/local-authority/30UE,Capital,Cap Contract Payment,C230,"Design and Build of New Toddler & Junior Playground, Birch Avenue, Penwortham",08/03/2023,0000485183,"140,786.90",Revenue,KOMPAN LTD,0
South Ribble Borough Council,http://statistics.data.gov.uk/id/local-authority/30UE,Capital,Cap Contract Payment,C230,Retention fee for Haig Avenue playground,29/03/2023,0000486000,"4,341.41",Revenue,KOMPAN LTD,0
South Ribble Borough Council,http://statistics.data.gov.uk/id/local-authority/30UE,Surplus or Deficit on Trading,Rents,2401,"Payment of quarterly rental charge at Forward Industrial Estate, L2 Property Limited for 2023/2024, Quarter 1",22/03/2023,0000486751,"16,147.50",Revenue,L2 Property Limited,0
South Ribble Borough Council,http://statistics.data.gov.uk/id/local-authority/30UE,Surplus or Deficit on Trading,Rents,2401,less ground rent,22/03/2023,0000486751,"-2,850.00",Revenue,L2 Property Limited,0
South Ribble Borough Council,http://statistics.data.gov.uk/id/local-authority/30UE,Central Support Services,Materials General,4040,Red Antifreeze,15/03/2023,0000485994,377.20,Revenue,LANCASHIRE OILS LTD,0
South Ribble Borough Council,http://statistics.data.gov.uk/id/local-authority/30UE,Central Support Services,Materials General,4040,4000ltrs Adblue at 69ppl,29/03/2023,0000487273,"2,415.69",Revenue,LANCASHIRE OILS LTD,0
South Ribble Borough Council,http://statistics.data.gov.uk/id/local-authority/30UE,Central Support Services,Materials General,4040,2 batteries VIN REDACTED,29/03/2023,0000487264,338.00,Revenue,Lancashire Rotating Electrics,0
South Ribble Borough Council,http://statistics.data.gov.uk/id/local-authority/30UE,Waste Collection,Clinical Waste Disposal,5112,October 2022 - Incineration of clinical waste,22/03/2023,0000484341,439.52,Revenue,LANCASHIRE TEACHING FT,0
South Ribble Borough Council,http://statistics.data.gov.uk/id/local-authority/30UE,Waste Collection,Clinical Waste Disposal,5112,November 2022 - Incineration of clinical waste,22/03/2023,0000486896,427.94,Revenue,LANCASHIRE TEACHING FT,0
South Ribble Borough Council,http://statistics.data.gov.uk/id/local-authority/30UE,Waste Collection,Clinical Waste Disposal,5112,December 2022 - Incineration of clinical waste,29/03/2023,0000487338,510.30,Revenue,LANCASHIRE TEACHING FT,0
South Ribble Borough Council,http://statistics.data.gov.uk/id/local-authority/30UE,Waste Collection,Clinical Waste Disposal,5112,May 2022 - Incineration of clinical waste,29/03/2023,0000487400,539.43,Revenue,LANCASHIRE TEACHING FT,0
South Ribble Borough Council,http://statistics.data.gov.uk/id/local-authority/30UE,Central Support Services,Maintenance & Repair,4013,",",01/03/2023,0000483890,"9,490.00",Revenue,LANCS COUNTY COUNCIL,0
South Ribble Borough Council,http://statistics.data.gov.uk/id/local-authority/30UE,Trade Waste,Landfilll Charges,5412,"Quarter 2 Disposal Fee, Landfill Tax & 5% Admin Fee",22/03/2023,0000485385,"61,721.64",Revenue,LANCS COUNTY COUNCIL,0
South Ribble Borough Council,http://statistics.data.gov.uk/id/local-authority/30UE,Community Development,Professional Fees,4510,"Christmas HAF provider: 23rd & 29th December, Please note this will go into the General County Fund account with an email address",15/03/2023,0000485929,840.00,Revenue,LANCS COUNTY COUNCIL,0
South Ribble Borough Council,http://statistics.data.gov.uk/id/local-authority/30UE,Local Land Charges,L C C General,4530,LAND CHARGES - FEBRUARY 2023,22/03/2023,0000487046,828.00,Revenue,LANCS COUNTY COUNCIL,0
South Ribble Borough Council,http://statistics.data.gov.uk/id/local-authority/30UE,Trade Waste,Landfilll Charges,5412,"Quarter 3 Disposal Fee, Landfill Tax & 5% Admin Fee",29/03/2023,0000487285,"60,650.74",Revenue,LANCS COUNTY COUNCIL,0
South Ribble Borough Council,http://statistics.data.gov.uk/id/local-authority/30UE,Central Support Services,Materials General,4040,"1x header tank, 1x service kit, VIN REDACTED",01/03/2023,0000485658,787.32,Revenue,LANCS DAF,0
South Ribble Borough Council,http://statistics.data.gov.uk/id/local-authority/30UE,Central Support Services,Materials General,4040,"1x fuel pressure sensor, VIN REDACTED",01/03/2023,0000485773,257.73,Revenue,LANCS DAF,0
South Ribble Borough Council,http://statistics.data.gov.uk/id/local-authority/30UE,Central Support Services,Materials General,4040,"Rear brake pads, N/s track rod end, Service Kit, Chassie filter, Gear box filter, Split pin/ Nut, VIN REDACTED",08/03/2023,0000485906,716.72,Revenue,LANCS DAF,0
South Ribble Borough Council,http://statistics.data.gov.uk/id/local-authority/30UE,Central Support Services,Materials General,4040,"Head Tank, VIN REDACTED",08/03/2023,0000485948,262.53,Revenue,LANCS DAF,0
South Ribble Borough Council,http://statistics.data.gov.uk/id/local-authority/30UE,Central Support Services,Materials General,4040,"Header Tank, VIN REDACTED",08/03/2023,0000485948,262.53,Revenue,LANCS DAF,0
South Ribble Borough Council,http://statistics.data.gov.uk/id/local-authority/30UE,Central Support Services,Materials General,4040,"Track rod, VIN REDACTED",22/03/2023,0000486781,651.74,Revenue,LANCS DAF,0
South Ribble Borough Council,http://statistics.data.gov.uk/id/local-authority/30UE,Central Support Services,Materials General,4040,"2x suspension holders, 2x centering rings, , VIN REDACTED",22/03/2023,0000486914,"1,091.18",Revenue,LANCS DAF,0
South Ribble Borough Council,http://statistics.data.gov.uk/id/local-authority/30UE,Central Support Services,Materials General,4040,"Header Tank, VIN REDACTED",22/03/2023,0000487042,248.71,Revenue,LANCS DAF,0
South Ribble Borough Council,http://statistics.data.gov.uk/id/local-authority/30UE,Central Support Services,Materials General,4040,"Wiper Blades, VIN REDACTED",22/03/2023,0000487042,44.41,Revenue,LANCS DAF,0
South Ribble Borough Council,http://statistics.data.gov.uk/id/local-authority/30UE,Central Support Services,Materials General,4040,"Passenger seat belt, 2 x Front bushes, Filter kit, , VIN REDACTED",22/03/2023,0000487071,492.23,Revenue,LANCS DAF,0
South Ribble Borough Council,http://statistics.data.gov.uk/id/local-authority/30UE,Central Support Services,Materials General,4040,1 spring and u bolts VIN REDACTED,22/03/2023,0000487079,639.11,Revenue,LANCS DAF,0
South Ribble Borough Council,http://statistics.data.gov.uk/id/local-authority/30UE,Central Support Services,Materials General,4040,1 brake chamber & nuts VIN REDACTED,29/03/2023,0000487228,530.10,Revenue,LANCS DAF,0
South Ribble Borough Council,http://statistics.data.gov.uk/id/local-authority/30UE,Central Support Services,Materials General,4040,"Seat belt, Service kit, 2 x Wiper blades, Wide Angle Mirror, 4 x Anti Roll Bar Bushes, 1 x Adblue Cap, VIN REDACTED",29/03/2023,0000487367,971.08,Revenue,LANCS DAF,0
South Ribble Borough Council,http://statistics.data.gov.uk/id/local-authority/30UE,Open Spaces,Other Fees,4520,"Central Parks, leading the Friends of Preston Junction, April 2022 to March 2023",08/03/2023,0000485924,"5,000.00",Revenue,LANCS WILDLIFE TRUST,0
South Ribble Borough Council,http://statistics.data.gov.uk/id/local-authority/30UE,Capital,Cap Contract Payment,C230,cancelled by credit 007441,29/03/2023,0000485874,"9,700.00",Revenue,Lanpro Services Ltd,0
South Ribble Borough Council,http://statistics.data.gov.uk/id/local-authority/30UE,Capital,Cap Contract Payment,C230,Leyland Town Deal - Public Realm Spec and Legal Plans,29/03/2023,0000485875,"9,720.00",Revenue,Lanpro Services Ltd,0
South Ribble Borough Council,http://statistics.data.gov.uk/id/local-authority/30UE,Capital,Cap Contract Payment,C230,cancelled by credit007437,29/03/2023,0000485890,"21,427.50",Revenue,Lanpro Services Ltd,0
South Ribble Borough Council,http://statistics.data.gov.uk/id/local-authority/30UE,Capital,Cap Contract Payment,C230,cancelled by credit,29/03/2023,0000485891,"4,360.00",Revenue,Lanpro Services Ltd,0
South Ribble Borough Council,http://statistics.data.gov.uk/id/local-authority/30UE,Capital,Cap Contract Payment,C230,cancelled by credit 007436,29/03/2023,0000485892,"6,084.00",Revenue,Lanpro Services Ltd,0
South Ribble Borough Council,http://statistics.data.gov.uk/id/local-authority/30UE,Capital,Cap Contract Payment,C230,cancelled by credit007440,29/03/2023,0000485895,"2,503.90",Revenue,Lanpro Services Ltd,0
South Ribble Borough Council,http://statistics.data.gov.uk/id/local-authority/30UE,Capital,Cap Contract Payment,C230,cancelled by credit007439,29/03/2023,0000485907,"3,360.00",Revenue,Lanpro Services Ltd,0
South Ribble Borough Council,http://statistics.data.gov.uk/id/local-authority/30UE,Capital,Cap Contract Payment,C230,Principal Designer Services - Public Realm RIBA Stages 3-7,29/03/2023,0000485908,"10,925.00",Revenue,Lanpro Services Ltd,0
South Ribble Borough Council,http://statistics.data.gov.uk/id/local-authority/30UE,Community Development,Core Fund,4861,"Installation of new sign posts and painting them black location Church Road, , Gardens FAO NAME REDACTED",15/03/2023,0000485769,"1,570.00",Revenue,LCC SIGN SHOP,0
South Ribble Borough Council,http://statistics.data.gov.uk/id/local-authority/30UE,Open Spaces,Materials General,4040,"8x Open Water signs @ 61.18 each at the , size of 600 x 450mm",29/03/2023,0000487339,489.44,Revenue,LCC SIGN SHOP,0
South Ribble Borough Council,http://statistics.data.gov.uk/id/local-authority/30UE,Open Spaces,Materials General,4040,8x 4m posts x 76mm @ 77.94 each,29/03/2023,0000487339,623.52,Revenue,LCC SIGN SHOP,0
South Ribble Borough Council,http://statistics.data.gov.uk/id/local-authority/30UE,Open Spaces,Materials General,4040,8x Open Water signs @ 61.18 each at the size of 600 x 450mm,29/03/2023,0000487341,489.44,Revenue,LCC SIGN SHOP,0
South Ribble Borough Council,http://statistics.data.gov.uk/id/local-authority/30UE,Open Spaces,Materials General,4040,8x 4m posts x 76mm @ 77.94 each,29/03/2023,0000487341,623.52,Revenue,LCC SIGN SHOP,0
South Ribble Borough Council,http://statistics.data.gov.uk/id/local-authority/30UE,Capital,Cap Contract Payment,C230,Leyland Town Deal - Party Wall Survey,29/03/2023,0000484672,"1,500.00",Revenue,LEA HOUGH & CO,0
South Ribble Borough Council,http://statistics.data.gov.uk/id/local-authority/30UE,Central Support Services,Legal,4821,Settlement Agreement for NAME REDACTED,22/03/2023,0000486826,350.00,Revenue,Lee & Co,0
South Ribble Borough Council,http://statistics.data.gov.uk/id/local-authority/30UE,Community Development,Core Fund,4861,"Funds for the Warm Space at Leyland Baptist Church, on a Thursday, from 10.30am-12.30pm for a minimum of 3 months",29/03/2023,0000487085,500.00,Revenue,LEYLAND BAPTIST CHURCH,0
South Ribble Borough Council,http://statistics.data.gov.uk/id/local-authority/30UE,Surplus or Deficit on Trading,Reactive Repair & Maintenance,2020,"Support for the next 12 months to Leyland in Bloom for the Civic Centre Peace Garden work, planting and maintenance, including ce",29/03/2023,0000486948,500.00,Revenue,Leyland In Bloom,0
South Ribble Borough Council,http://statistics.data.gov.uk/id/local-authority/30UE,Open Spaces,GM Refurbishment,4657,"To replace a 1m section of damaged fencing around the playground at Holland House Farm Playground, Walton Le Dale.",01/03/2023,0000485487,320.00,Revenue,Leyland Lane Wrought Iron Gates & Railings,0
South Ribble Borough Council,http://statistics.data.gov.uk/id/local-authority/30UE,Open Spaces,Materials General,4040,20 No 90x90x500 galvanised sleeves @ 29.50 each,08/03/2023,0000485955,590.00,Revenue,Leyland Lane Wrought Iron Gates & Railings,0
South Ribble Borough Council,http://statistics.data.gov.uk/id/local-authority/30UE,Community Development,Core Fund,4861,Funds for x2 warm spaces at the Leyland URC for a minimum of 3 months on a Tuesday 10am-12pm and also on a Thursday 12-4pm and th,29/03/2023,0000487051,"1,000.00",Revenue,LEYLAND UNITED REFORMED CHURCH,0
South Ribble Borough Council,http://statistics.data.gov.uk/id/local-authority/30UE,Central Support Services,Materials General,4040,"6 x Air Clamp Ram @ 139 each, Bin stock G046, NAME REDACTED",29/03/2023,0000487256,834.00,Revenue,LIJ Fluid Power Ltd,0
South Ribble Borough Council,http://statistics.data.gov.uk/id/local-authority/30UE,Central Support Services,Materials General,4040,Delivery,29/03/2023,0000487256,20.00,Revenue,LIJ Fluid Power Ltd,0
South Ribble Borough Council,http://statistics.data.gov.uk/id/local-authority/30UE,Central Support Services,Individual Subs Prof. Bodies,1741,SRBC Employer Accreditation - Invoice No 125339,22/03/2023,0000486827,480.00,Revenue,Living Wage Foundation,0
South Ribble Borough Council,http://statistics.data.gov.uk/id/local-authority/30UE,Community Development,Core Fund,4861,Boost Fund Round 4 Money to support Warm Welcome Projects,08/03/2023,0000485954,"2,674.00",Revenue,LONGTON VM SPORTS & SOCIAL CLUB,0
South Ribble Borough Council,http://statistics.data.gov.uk/id/local-authority/30UE,Central Support Services,Materials General,4040,BLACK SACKS `KEEP SOUTH RIBBLE TIDY` in white-455x760x990-250g Bi Modal Super plus - Keep South Ribble Tidy,22/03/2023,0000486776,"7,080.00",Revenue,MacFarlane Group UK Limited,0
South Ribble Borough Council,http://statistics.data.gov.uk/id/local-authority/30UE,Capital,Capital Grant,C570,DFG WORKS FOR LEVEL ACCESS BATHROOM AT ADDRESS REDACTED NEW PROGRESS PROPERTY SO 50% OF TOTAL QUOTE TO BE P,08/03/2023,0000485835,"3,298.96",Revenue,MAHONEY CONTRACTORS LTD,0
South Ribble Borough Council,http://statistics.data.gov.uk/id/local-authority/30UE,Capital,Capital Grant,C570,DFG WORKS FOR LEVEL ACCESS BATHROOM AT ADDRESS REDACTED  NEW PROGRESS PROPERTY SO 50% OF TOTAL QUOTE TO BE PAID TOTAL QUOTE �,22/03/2023,0000486868,"3,681.72",Revenue,MAHONEY CONTRACTORS LTD,0
South Ribble Borough Council,http://statistics.data.gov.uk/id/local-authority/30UE,Parking Services,Materials General,4040,X2 KELLET LANE,29/03/2023,0000487280,120.00,Revenue,Main Street Signs Ltd,0
South Ribble Borough Council,http://statistics.data.gov.uk/id/local-authority/30UE,Parking Services,Materials General,4040,X2 JACKSON STREET (sign only rear channels),29/03/2023,0000487280,59.00,Revenue,Main Street Signs Ltd,0
South Ribble Borough Council,http://statistics.data.gov.uk/id/local-authority/30UE,Parking Services,Materials General,4040,X1 PRIORY LANE,29/03/2023,0000487280,60.00,Revenue,Main Street Signs Ltd,0
South Ribble Borough Council,http://statistics.data.gov.uk/id/local-authority/30UE,Parking Services,Materials General,4040,X2 ASHTREE COURT T,29/03/2023,0000487280,136.00,Revenue,Main Street Signs Ltd,0
South Ribble Borough Council,http://statistics.data.gov.uk/id/local-authority/30UE,Parking Services,Materials General,4040,X1 THORNTON DRIVE,29/03/2023,0000487280,64.50,Revenue,Main Street Signs Ltd,0
South Ribble Borough Council,http://statistics.data.gov.uk/id/local-authority/30UE,Parking Services,Materials General,4040,X2 POULTON CRESCENT T,29/03/2023,0000487280,145.00,Revenue,Main Street Signs Ltd,0
South Ribble Borough Council,http://statistics.data.gov.uk/id/local-authority/30UE,Parking Services,Materials General,4040,X1 HUDSON COURT T,29/03/2023,0000487280,66.50,Revenue,Main Street Signs Ltd,0
South Ribble Borough Council,http://statistics.data.gov.uk/id/local-authority/30UE,Parking Services,Materials General,4040,X2 NORTHLANDS,29/03/2023,0000487280,120.00,Revenue,Main Street Signs Ltd,0
South Ribble Borough Council,http://statistics.data.gov.uk/id/local-authority/30UE,Parking Services,Materials General,4040,X2 KINGSWOOD ROAD T,29/03/2023,0000487280,139.00,Revenue,Main Street Signs Ltd,0
South Ribble Borough Council,http://statistics.data.gov.uk/id/local-authority/30UE,Parking Services,Materials General,4040,DELIVERY COST,29/03/2023,0000487280,50.00,Revenue,Main Street Signs Ltd,0
South Ribble Borough Council,http://statistics.data.gov.uk/id/local-authority/30UE,Community Safety Services,Consultancy Fees,4541,Provision of services re Domestic Homicide - Review NAME REDACTED,22/03/2023,0000486763,375.00,Revenue,Manus Review and Consulting Limited,0
South Ribble Borough Council,http://statistics.data.gov.uk/id/local-authority/30UE,Economic Development,Partnership,485I,"Partnership payment including STEAM monitoring data, sector business support and website/marketing campaign inclusion 2023",08/03/2023,0000485662,"2,650.00",Revenue,MARKETING LANCASHIRE LIMITED,0
South Ribble Borough Council,http://statistics.data.gov.uk/id/local-authority/30UE,Street Cleansing,External Contractors Charges,4570,"2 loads of road sweepings taken from , Moss Side Depot",08/03/2023,0000485836,320.00,Revenue,Michael Alty,0
South Ribble Borough Council,http://statistics.data.gov.uk/id/local-authority/30UE,Open Spaces,GM Refurbishment,4657,"2no. Loads clean hardcore collected from Holme playing field, Bamber Bridge",22/03/2023,0000487075,420.00,Revenue,Michael Alty,0
South Ribble Borough Council,http://statistics.data.gov.uk/id/local-authority/30UE,Surplus or Deficit on Trading,Reactive Repair & Maintenance,2020,"ESTIMATE NO. 1229 DATE 20/02/2023 as per NAME REDACTED request , Lostock HALL Changing Rooms, Erect Scaffolding, Apply 50mm Z bars to roo",15/03/2023,0000485995,"2,800.00",Revenue,Mick Bamber,0
South Ribble Borough Council,http://statistics.data.gov.uk/id/local-authority/30UE,Surplus or Deficit on Trading,Reactive Repair & Maintenance,2020,"Replace lead flashing(s) to the east facing wall, following reports of a leak to the book binder`s craft unit.",15/03/2023,0000486697,900.00,Revenue,Mick Bamber,0
South Ribble Borough Council,http://statistics.data.gov.uk/id/local-authority/30UE,Surplus or Deficit on Trading,Reactive Repair & Maintenance,2020,"Please attend Hawksbury DR 16 18 22 as per EST 1217 as per NAME REDACTED request , Erect scaffolding, Renew gutter to rear of16 18 22 seam",22/03/2023,0000486998,"3,200.00",Revenue,Mick Bamber,0
South Ribble Borough Council,http://statistics.data.gov.uk/id/local-authority/30UE,Surplus or Deficit on Trading,Planned Annual Repair & Maintenance,2021,Gutter cleaning 2022 / 2023 for 2 visits per year to ADDRESS REDACTED,22/03/2023,0000487000,230.00,Revenue,Mick Bamber,0
South Ribble Borough Council,http://statistics.data.gov.uk/id/local-authority/30UE,Surplus or Deficit on Trading,Planned Annual Repair & Maintenance,2021,Gutter cleaning 2022 / 2023 for 2 visits per year to ADDRESS REDACTED,22/03/2023,0000487000,130.00,Revenue,Mick Bamber,0
South Ribble Borough Council,http://statistics.data.gov.uk/id/local-authority/30UE,Surplus or Deficit on Trading,Planned Annual Repair & Maintenance,2021,Gutter cleaning 2022 / 2023 for 2 visits per year to ADDRESS REDACTED,22/03/2023,0000487000,100.00,Revenue,Mick Bamber,0
South Ribble Borough Council,http://statistics.data.gov.uk/id/local-authority/30UE,Surplus or Deficit on Trading,Planned Annual Repair & Maintenance,2021,Gutter cleaning 2022 / 2023 for 2 visits per year to ADDRESS REDACTED,22/03/2023,0000487000,100.00,Revenue,Mick Bamber,0
South Ribble Borough Council,http://statistics.data.gov.uk/id/local-authority/30UE,Surplus or Deficit on Trading,Planned Annual Repair & Maintenance,2021,Gutter cleaning 2022 / 2023 for 2 visits per year to ADDRESS REDACTED,22/03/2023,0000487000,280.00,Revenue,Mick Bamber,0
South Ribble Borough Council,http://statistics.data.gov.uk/id/local-authority/30UE,Surplus or Deficit on Trading,Planned Annual Repair & Maintenance,2021,Gutter cleaning 2022 / 2023 for 2 visits per year to ADDRESS REDACTED,22/03/2023,0000487000,280.00,Revenue,Mick Bamber,0
South Ribble Borough Council,http://statistics.data.gov.uk/id/local-authority/30UE,Surplus or Deficit on Trading,Planned Annual Repair & Maintenance,2021,Gutter cleaning 2022 / 2023 for 2 visits per year to ADDRESS REDACTED,22/03/2023,0000487000,280.00,Revenue,Mick Bamber,0
South Ribble Borough Council,http://statistics.data.gov.uk/id/local-authority/30UE,Surplus or Deficit on Trading,Planned Annual Repair & Maintenance,2021,Gutter cleaning 2022 / 2023 for 2 visits per year to ADDRESS REDACTED,22/03/2023,0000487000,180.00,Revenue,Mick Bamber,0
South Ribble Borough Council,http://statistics.data.gov.uk/id/local-authority/30UE,Surplus or Deficit on Trading,Planned Annual Repair & Maintenance,2021,Gutter cleaning 2022 / 2023 for 2 visits per year to ADDRESS REDACTED,22/03/2023,0000487000,330.00,Revenue,Mick Bamber,0
South Ribble Borough Council,http://statistics.data.gov.uk/id/local-authority/30UE,Surplus or Deficit on Trading,Planned Annual Repair & Maintenance,2021,Gutter cleaning 2022 / 2023 for 2 visits per year to ADDRESS REDACTED,22/03/2023,0000487000,160.00,Revenue,Mick Bamber,0
South Ribble Borough Council,http://statistics.data.gov.uk/id/local-authority/30UE,Surplus or Deficit on Trading,Planned Annual Repair & Maintenance,2021,Gutter cleaning 2022 / 2023 for 2 visits per year to ADDRESS REDACTED,22/03/2023,0000487000,100.00,Revenue,Mick Bamber,0
South Ribble Borough Council,http://statistics.data.gov.uk/id/local-authority/30UE,Surplus or Deficit on Trading,Planned Annual Repair & Maintenance,2021,Gutter cleaning 2022 / 2023 for 2 visits per year to ADDRESS REDACTED,22/03/2023,0000487000,100.00,Revenue,Mick Bamber,0
South Ribble Borough Council,http://statistics.data.gov.uk/id/local-authority/30UE,Surplus or Deficit on Trading,Planned Annual Repair & Maintenance,2021,Gutter cleaning 2022 / 2023 for 2 visits per year to ADDRESS REDACTED,22/03/2023,0000487000,100.00,Revenue,Mick Bamber,0
South Ribble Borough Council,http://statistics.data.gov.uk/id/local-authority/30UE,Surplus or Deficit on Trading,Planned Annual Repair & Maintenance,2021,Gutter cleaning 2022 / 2023 for 2 visits per year to ADDRESS REDACTED,22/03/2023,0000487000,80.00,Revenue,Mick Bamber,0
South Ribble Borough Council,http://statistics.data.gov.uk/id/local-authority/30UE,Surplus or Deficit on Trading,Planned Annual Repair & Maintenance,2021,Gutter cleaning 2022 / 2023 for 2 visits per year to ADDRESS REDACTED,22/03/2023,0000487000,80.00,Revenue,Mick Bamber,0
South Ribble Borough Council,http://statistics.data.gov.uk/id/local-authority/30UE,Central Support Services,Planned Annual Repair & Maintenance,2021,Gutter cleaning 2022 / 2023 for 2 visits per year to ADDRESS REDACTED,22/03/2023,0000487000,100.00,Revenue,Mick Bamber,0
South Ribble Borough Council,http://statistics.data.gov.uk/id/local-authority/30UE,Surplus or Deficit on Trading,Planned Annual Repair & Maintenance,2021,Gutter cleaning 2022 / 2023 for 2 visits per year to ADDRESS REDACTED,22/03/2023,0000487000,200.00,Revenue,Mick Bamber,0
South Ribble Borough Council,http://statistics.data.gov.uk/id/local-authority/30UE,Central Support Services,External Contractors Charges,4570,Recover VIN REDACTED from Moss Lane Lostock Hall to ADDRESS REDACTED,08/03/2023,0000485888,544.50,Revenue,MILLERS OF LONGTON LTD,0
South Ribble Borough Council,http://statistics.data.gov.uk/id/local-authority/30UE,Central Support Services,External Contractors Charges,4570,Transport VIN REDACTED from ADDRESS REDACTED,08/03/2023,0000485889,297.75,Revenue,MILLERS OF LONGTON LTD,0
South Ribble Borough Council,http://statistics.data.gov.uk/id/local-authority/30UE,Central Support Services,External Contractors Charges,4570,Recover vehicle from Victory Drive Wheelton Lane to ADDRESS REDACTED,29/03/2023,0000487216,275.70,Revenue,MILLERS OF LONGTON LTD,0
South Ribble Borough Council,http://statistics.data.gov.uk/id/local-authority/30UE,Central Support Services,External Contractors Charges,4570,Spec repair VIN REDACTED,08/03/2023,0000485663,120.00,Revenue,MJC Auto Electrics,0
South Ribble Borough Council,http://statistics.data.gov.uk/id/local-authority/30UE,Central Support Services,External Contractors Charges,4570,Spec repair VIN REDACTED,08/03/2023,0000485663,200.00,Revenue,MJC Auto Electrics,0
South Ribble Borough Council,http://statistics.data.gov.uk/id/local-authority/30UE,Community Development,Miscellaneous Expenses,4851,"Supply of 3000 wristbands for Penwortham Live 2023 and 3000 wristbands for Longton Live 2023., , Unit Cost 0.25, Subtotal 1500,",29/03/2023,0000486881,750.00,Revenue,MUNCO INTERNATIONAL T/A ADBAND LTD,0
South Ribble Borough Council,http://statistics.data.gov.uk/id/local-authority/30UE,Community Development,Miscellaneous Expenses,4851,"Supply of 3000 wristbands for Penwortham Live 2023 and 3000 wristbands for Longton Live 2023., , Unit Cost 0.25, Subtotal 1500,",29/03/2023,0000486937,750.00,Revenue,MUNCO INTERNATIONAL T/A ADBAND LTD,0
South Ribble Borough Council,http://statistics.data.gov.uk/id/local-authority/30UE,Central Support Services,Office Requisites,4136,card machine,01/03/2023,0000485768,"2,254.18",Revenue,MYPREMIER LTD,0
South Ribble Borough Council,http://statistics.data.gov.uk/id/local-authority/30UE,Central Support Services,IT Consumables,413A,"Duronic Dual Monitor Arm Stand DM152 | Double PC Desk Mount | BLACK | Height Adjustable |  20.01  1,600.80, For Two 13-27 LED L",22/03/2023,0000486757,"1,600.80",Revenue,MYPREMIER LTD,0
South Ribble Borough Council,http://statistics.data.gov.uk/id/local-authority/30UE,Central Support Services,IT Consumables,413A,carriage,22/03/2023,0000486757,65.00,Revenue,MYPREMIER LTD,0
South Ribble Borough Council,http://statistics.data.gov.uk/id/local-authority/30UE,Surplus or Deficit on Trading,Advertising,4841,"As per advert ref: NMC6214154, , Lancashire Evening Post: Planning Notices, 7 x 3cm, Black, 2 Inserts, from 22.12.22 to 29.12.22,",08/03/2023,0000484857,"1,134.00",Revenue,National World Publishing Limited,0
South Ribble Borough Council,http://statistics.data.gov.uk/id/local-authority/30UE,Local Tax Collection,Advertising,4841,COUNCIL TAX ADVERTISING APRIL 2023,29/03/2023,0000487433,"1,444.50",Revenue,National World Publishing Limited,0
South Ribble Borough Council,http://statistics.data.gov.uk/id/local-authority/30UE,Central Support Services,Scanning,4150,SRBC 2023/24 DOL contract renewal for day to day off premise scanning,29/03/2023,0000487420,"4,500.00",Revenue,NEC Software Solutions UK Ltd,0
South Ribble Borough Council,http://statistics.data.gov.uk/id/local-authority/30UE,Capital,Capital Grant,C570,DFG WORKS FUNDED BY LANCASHIRE COUNTY COUNCIL AT ADDRESS REDACTED- TOTAL FUNDED BY LCC 40000.00,01/03/2023,0000485721,"15,000.00",Revenue,Neil Maitland,0
South Ribble Borough Council,http://statistics.data.gov.uk/id/local-authority/30UE,Capital,Capital Grant,C570,DFG WORKS FUNDED BY LANCASHIRE COUNTY COUNCIL AT ADDRESS REDACTED- TOTAL FUNDED BY LCC 40000.00,29/03/2023,0000487210,"5,000.00",Revenue,Neil Maitland,0
South Ribble Borough Council,http://statistics.data.gov.uk/id/local-authority/30UE,Open Spaces,Operational Equip & Tools,4010,Lease charge for 8x lances at 80 for 3 years.,08/03/2023,0000485837,960.00,Revenue,NOMIX ENVIRO LTD,0
South Ribble Borough Council,http://statistics.data.gov.uk/id/local-authority/30UE,Street Cleansing,Operational Equip & Tools,4010,Lease charge for 8x lances at 80 for 3 years.,08/03/2023,0000485837,960.00,Revenue,NOMIX ENVIRO LTD,0
South Ribble Borough Council,http://statistics.data.gov.uk/id/local-authority/30UE,Central Support Services,Materials General,4040,CHANNEL BRUSH - 2.8 mm POLY & 3.3mm WIRE 5 row 700/1000mm - MIDI SWEEPER-78399/2,15/03/2023,0000485838,830.17,Revenue,NORTHERN MUNICIPAL SPARES LTD,0
South Ribble Borough Council,http://statistics.data.gov.uk/id/local-authority/30UE,Central Support Services,Materials General,4040,SCARAB MINI SWEEPER BRUSHES - POLY/WIRE MIX-MATHIEU-0120089,15/03/2023,0000485838,994.00,Revenue,NORTHERN MUNICIPAL SPARES LTD,0
South Ribble Borough Council,http://statistics.data.gov.uk/id/local-authority/30UE,Central Support Services,Materials General,4040,SCARAB MINI SWEEPER BRUSHES - POLY/WIRE MIX MATHIEU-0120089,29/03/2023,0000487362,"2,007.04",Revenue,NORTHERN MUNICIPAL SPARES LTD,0
South Ribble Borough Council,http://statistics.data.gov.uk/id/local-authority/30UE,Central Support Services,Materials General,4040,4 ROW CHANNEL BRUSH - C/W 4 NUTS/BOLTS 835/66,29/03/2023,0000487362,294.11,Revenue,NORTHERN MUNICIPAL SPARES LTD,0
South Ribble Borough Council,http://statistics.data.gov.uk/id/local-authority/30UE,Central Support Services,Materials General,4040,CHANNEL BRUSH - 2.8 mm POLY & 3.3mm WIRE 5 row 700/1000mm - MIDI SWEEPER 78399/2,29/03/2023,0000487362,830.17,Revenue,NORTHERN MUNICIPAL SPARES LTD,0
South Ribble Borough Council,http://statistics.data.gov.uk/id/local-authority/30UE,Capital,Cap Contract Payment,C230,Worden Hall - Portaloo Hire (Phase 2 - Drainage Works),08/03/2023,0000485549,"2,976.00",Revenue,Northwest Portable Toilet Company Ltd,0
South Ribble Borough Council,http://statistics.data.gov.uk/id/local-authority/30UE,Surplus or Deficit on Trading,Reactive Repair & Maintenance,2020,"Please provide as per quot18 Jan 2023 Expiry1 Feb 2023 Quote Number QU-0404, , Worden Park as per NAME REDACTED request - 1 STD portable ",29/03/2023,0000487215,390.00,Revenue,Northwest Portable Toilet Company Ltd,0
South Ribble Borough Council,http://statistics.data.gov.uk/id/local-authority/30UE,Economic Development,Electricity,2303,1/12 to 31/12/22,08/03/2023,0000485935,"2,016.37",Revenue,NPOWER A0007226045 - Leyland Market,0
South Ribble Borough Council,http://statistics.data.gov.uk/id/local-authority/30UE,Economic Development,Electricity,2303,Leyland Market Northcote St,08/03/2023,0000485959,"2,069.11",Revenue,NPOWER A0007226045 - Leyland Market,0
South Ribble Borough Council,http://statistics.data.gov.uk/id/local-authority/30UE,Economic Development,Electricity,2303,1/1 to 31/1/23,22/03/2023,0000486746,"1,928.71",Revenue,NPOWER A0007226045 - Leyland Market,0
South Ribble Borough Council,http://statistics.data.gov.uk/id/local-authority/30UE,Parking Services,Parking Attendants,4514,"Variable Fee Car Park Enforcement , Feb 2023 - Variable Recharge Items",22/03/2023,0000486997,"1,681.68",Revenue,NSL LTD,0
South Ribble Borough Council,http://statistics.data.gov.uk/id/local-authority/30UE,Central Support Services,Planned Annual Repair & Maintenance,2021,To provide gritting of areas on plan as per Jason Ascoft dated 12 Dec 2022 until further notice - estimated 20 visits at 135.00 ,22/03/2023,0000486951,540.00,Revenue,Nurture Landscapes Ltd,0
South Ribble Borough Council,http://statistics.data.gov.uk/id/local-authority/30UE,Other Welfare Services,Materials General,4040,"OUTSTANDING BALANCE OF RENT ACCOUNT FOR 82 GOLDCREST AVENUE 516.92, , 4 WEEKS - 15/08/2022  09/09/2022 , , TENANCY NUMBER 10377",15/03/2023,0000483978,516.92,Revenue,Onward Homes Ltd,0
South Ribble Borough Council,http://statistics.data.gov.uk/id/local-authority/30UE,Central Support Services,Computer Software,4242,WEB BENEFITS CALCULATOR 2023/24,22/03/2023,0000487077,675.00,Revenue,OTECH LTD,0
South Ribble Borough Council,http://statistics.data.gov.uk/id/local-authority/30UE,Recreation & Sport,Planned Annual Repair & Maintenance,2021,"Call out for Invoice No: Invoice Date: Account No: 22073887|U4 10/11/22 ACC6699 at BBLC as per NAME REDACTED , Site: Repair Referen",01/03/2023,0000485751,311.00,Revenue,OTIS LTD,0
South Ribble Borough Council,http://statistics.data.gov.uk/id/local-authority/30UE,Parking Services,Cash Collection Charges Car Parks,4855,RingGo Fee Transactions - Feb 2023,22/03/2023,0000487002,112.15,Revenue,Park Now Limited,0
South Ribble Borough Council,http://statistics.data.gov.uk/id/local-authority/30UE,Parking Services,Cash Collection Charges Car Parks,4855,"RingGo Text Summary, Reminder & , Processing Fees - Feb 2023",22/03/2023,0000487002,208.20,Revenue,Park Now Limited,0
South Ribble Borough Council,http://statistics.data.gov.uk/id/local-authority/30UE,Central Support Services,Consumable Clng Materials,2711,"AA201	JANGRO MICRO MINI TOILET ROLL 100M X 90MM 2 PLY (24), RECYCLED, 12 @ 11.70",01/03/2023,0000485564,227.16,Revenue,Pattersons (Bristol) Ltd,0
South Ribble Borough Council,http://statistics.data.gov.uk/id/local-authority/30UE,Central Support Services,Consumable Clng Materials,2711,"AE234	BLUE TORK S-FOLD HAND TOWEL 1PLY (4000SHT), 10 @ 14.45",01/03/2023,0000485564,268.70,Revenue,Pattersons (Bristol) Ltd,0
South Ribble Borough Council,http://statistics.data.gov.uk/id/local-authority/30UE,Central Support Services,Consumable Clng Materials,2711,"BG030-SF	GIANT AEROSOL AIR FRESHENER 750ML SUMMER BLAST, 1 @ 16.28",01/03/2023,0000485564,18.36,Revenue,Pattersons (Bristol) Ltd,0
South Ribble Borough Council,http://statistics.data.gov.uk/id/local-authority/30UE,Central Support Services,Consumable Clng Materials,2711,"BG030-CG	GIANT AEROSOL AIR FRESHENER 750ML CITRUS BLAST, 1 @ 16.28",01/03/2023,0000485564,18.36,Revenue,Pattersons (Bristol) Ltd,0
South Ribble Borough Council,http://statistics.data.gov.uk/id/local-authority/30UE,Central Support Services,Consumable Clng Materials,2711,"BC015-75	JANGRO THICKENED BLEACH DETERGENT 750ML, 12 @ 0.50",01/03/2023,0000485564,7.20,Revenue,Pattersons (Bristol) Ltd,0
South Ribble Borough Council,http://statistics.data.gov.uk/id/local-authority/30UE,Central Support Services,Consumable Clng Materials,2711,"BK104-5	JANGRO HAND SOAP UNPERFUMED 5LTR, 4 @ 4.91",01/03/2023,0000485564,21.16,Revenue,Pattersons (Bristol) Ltd,0
South Ribble Borough Council,http://statistics.data.gov.uk/id/local-authority/30UE,Central Support Services,Consumable Clng Materials,2711,"CM180	JANGRO REFUSE SACKS 18X29X39 180G HEAVY DUTY BLACK (200), 6 @ 12.56",01/03/2023,0000485564,77.82,Revenue,Pattersons (Bristol) Ltd,0
South Ribble Borough Council,http://statistics.data.gov.uk/id/local-authority/30UE,Central Support Services,Consumable Clng Materials,2711,"HA015-G	EXEL PY MOP HEAD 250 GRM, COLOUR CODED - GREEN, 20 @ 0.77",01/03/2023,0000485564,17.20,Revenue,Pattersons (Bristol) Ltd,0
South Ribble Borough Council,http://statistics.data.gov.uk/id/local-authority/30UE,Central Support Services,Consumable Clng Materials,2711,"HL005-R	JANGRO FOAM BACKED SOURING PADS MULTIPURPOSE COLOUR CODED RED, 2 @ 1.32",01/03/2023,0000485564,2.76,Revenue,Pattersons (Bristol) Ltd,0
South Ribble Borough Council,http://statistics.data.gov.uk/id/local-authority/30UE,Democratic Represent and  Mgnt,Consumable Clng Materials,2711,"AA201-JANGRO MICRO MINI TOILET ROLL 100M X 90MM 2 PLY (24), RECYCLED, 18.93 x 6",22/03/2023,0000486941,113.58,Revenue,Pattersons (Bristol) Ltd,0
South Ribble Borough Council,http://statistics.data.gov.uk/id/local-authority/30UE,Democratic Represent and  Mgnt,Consumable Clng Materials,2711,"AE233-JANGRO GREEN S/V FOLD HAND TOWEL 1PLY (25X21CM), 3600 PER CASE, , 11.43 x 2",22/03/2023,0000486941,22.86,Revenue,Pattersons (Bristol) Ltd,0
South Ribble Borough Council,http://statistics.data.gov.uk/id/local-authority/30UE,Democratic Represent and  Mgnt,Consumable Clng Materials,2711,"BA028-75-JANGRO GLASS & MIRROR CLEANER 750ML, 1.21 x 3",22/03/2023,0000486941,3.63,Revenue,Pattersons (Bristol) Ltd,0
South Ribble Borough Council,http://statistics.data.gov.uk/id/local-authority/30UE,Democratic Represent and  Mgnt,Consumable Clng Materials,2711,"BA048-5-JANGRO CLEANER DISINFECTANT CONCENTRATE 5LTR, MULTI PURPOSE DETERGENT, DISINFECTANT & DEODORISER WHICH WILL CLEAN AND KIL",22/03/2023,0000486941,10.56,Revenue,Pattersons (Bristol) Ltd,0
South Ribble Borough Council,http://statistics.data.gov.uk/id/local-authority/30UE,Democratic Represent and  Mgnt,Consumable Clng Materials,2711,"BC015-75- JANGRO THICKENED BLEACH 750ML, 0.60 x 12",22/03/2023,0000486941,7.20,Revenue,Pattersons (Bristol) Ltd,0
South Ribble Borough Council,http://statistics.data.gov.uk/id/local-authority/30UE,Democratic Represent and  Mgnt,Consumable Clng Materials,2711,BD051-5/BD041-5 - JANGRO LEMON OR PINE MULTI SURFACE FLOOR GEL IDEAL FOR SPRAY CLEANING OR DAMP MOPPING 4.90 x 1,22/03/2023,0000486941,4.90,Revenue,Pattersons (Bristol) Ltd,0
South Ribble Borough Council,http://statistics.data.gov.uk/id/local-authority/30UE,Democratic Represent and  Mgnt,Consumable Clng Materials,2711,"CM820 - CONTRACT REFUSE SACKS (HEAVY DUTY) 18`` x 29`` x 38`` BLACK, 10.39 x 2",22/03/2023,0000486941,20.78,Revenue,Pattersons (Bristol) Ltd,0
South Ribble Borough Council,http://statistics.data.gov.uk/id/local-authority/30UE,Democratic Represent and  Mgnt,Consumable Clng Materials,2711,"EA005-M - WORKPLACE FIRST AID KIT MEDIUM, 19.60 x 3",22/03/2023,0000486941,58.80,Revenue,Pattersons (Bristol) Ltd,0
South Ribble Borough Council,http://statistics.data.gov.uk/id/local-authority/30UE,Democratic Represent and  Mgnt,Consumable Clng Materials,2711,"HL005-B/HL005-R/HL005-G/HL005-Y - JANGRO SOFT EASIGRIP SPONGE SCOURING PAD VARIOUS COLOURS , 1.38 x 1",22/03/2023,0000486941,1.38,Revenue,Pattersons (Bristol) Ltd,0
South Ribble Borough Council,http://statistics.data.gov.uk/id/local-authority/30UE,Democratic Represent and  Mgnt,Consumable Clng Materials,2711,"JG412630 - GLADE PACIFIC BREEZE 500ML AEROSOL , 20.44 x 1",22/03/2023,0000486941,20.40,Revenue,Pattersons (Bristol) Ltd,0
South Ribble Borough Council,http://statistics.data.gov.uk/id/local-authority/30UE,Democratic Represent and  Mgnt,Consumable Clng Materials,2711,"SC990714/SC990715/SC990716/SC990717 - BULLDOG MOP BUCKET C/W HANDLE, SIEVE & GRID 8 LITRE VARIOUS COLOURS 9.27",22/03/2023,0000486941,9.27,Revenue,Pattersons (Bristol) Ltd,0
South Ribble Borough Council,http://statistics.data.gov.uk/id/local-authority/30UE,Democratic Represent and  Mgnt,Consumable Clng Materials,2711,TEMP025 - ANTIBACTERIAL UNIVERSAL WIPES 1.63 x 1,22/03/2023,0000486941,1.68,Revenue,Pattersons (Bristol) Ltd,0
South Ribble Borough Council,http://statistics.data.gov.uk/id/local-authority/30UE,Recreation & Sport,Consumable Clng Materials,2711,"AA102 JANGRO CORELESS TOILET ROLL 800 SHEETS 100M X 90MM 2 PLY (36), 32.29 x 1",29/03/2023,0000487055,32.39,Revenue,Pattersons (Bristol) Ltd,0
South Ribble Borough Council,http://statistics.data.gov.uk/id/local-authority/30UE,Recreation & Sport,Consumable Clng Materials,2711,"AD205- JANGRO STANDARD JUMBO 2PLY 400M 76MM CORE SHRINK WRAPPED (6), 19.88 x 1",29/03/2023,0000487055,19.88,Revenue,Pattersons (Bristol) Ltd,0
South Ribble Borough Council,http://statistics.data.gov.uk/id/local-authority/30UE,Recreation & Sport,Consumable Clng Materials,2711,"AE233 - JANGRO GREEN S/V FOLD HAND TOWEL 1PLY (25X21CM), 3600 PER CASE,,  11.43 x 1",29/03/2023,0000487055,11.43,Revenue,Pattersons (Bristol) Ltd,0
South Ribble Borough Council,http://statistics.data.gov.uk/id/local-authority/30UE,Recreation & Sport,Consumable Clng Materials,2711,"AE806-B - JANGRO BLUE V-FOLD HAND TOWEL 1PLY (25x21CM) 5000 PER CASE, 23.65 x 1",29/03/2023,0000487055,23.65,Revenue,Pattersons (Bristol) Ltd,0
South Ribble Borough Council,http://statistics.data.gov.uk/id/local-authority/30UE,Recreation & Sport,Consumable Clng Materials,2711,"AF113 - JANGRO CENTREFEED ROLL 2PLY 20CM 150MTR BLUE (6), RECYCLED, 13.57 x1",29/03/2023,0000487055,13.57,Revenue,Pattersons (Bristol) Ltd,0
South Ribble Borough Council,http://statistics.data.gov.uk/id/local-authority/30UE,Recreation & Sport,Consumable Clng Materials,2711,BA010-75 - JANGRO MULTI-PURPOSE CONCENTRATED HARD SURFACE CLEANER FRAGRANCED 750ML - 8.89 x1,29/03/2023,0000487055,8.88,Revenue,Pattersons (Bristol) Ltd,0
South Ribble Borough Council,http://statistics.data.gov.uk/id/local-authority/30UE,Recreation & Sport,Consumable Clng Materials,2711,"BA032-75 - JANGRO AIR FRESHENER TRIGGER SPRAY 750ML, 11.08",29/03/2023,0000487055,11.34,Revenue,Pattersons (Bristol) Ltd,0
South Ribble Borough Council,http://statistics.data.gov.uk/id/local-authority/30UE,Recreation & Sport,Consumable Clng Materials,2711,"BA035 - JANGRO TELEPHONE & PC, ALL PURPOSE ANTI-BAC WIPES (100 WIPES), 1.53 x 2",29/03/2023,0000487055,3.06,Revenue,Pattersons (Bristol) Ltd,0
South Ribble Borough Council,http://statistics.data.gov.uk/id/local-authority/30UE,Recreation & Sport,Consumable Clng Materials,2711,"BA048-75 - JANGRO CLEANER DISINFECTANT CONCENTRATE 750ml, MULTI PURPOSE DETERGENT, DISINFECTANT & DEODORISER WHICH WILL CLEAN AND",29/03/2023,0000487055,6.66,Revenue,Pattersons (Bristol) Ltd,0
South Ribble Borough Council,http://statistics.data.gov.uk/id/local-authority/30UE,Recreation & Sport,Consumable Clng Materials,2711,"BB034-5 - JANGRO CONCENTRATED FRAGRANCED GREEN DETERGENT 5LTR, 3.58 x 1",29/03/2023,0000487055,3.58,Revenue,Pattersons (Bristol) Ltd,0
South Ribble Borough Council,http://statistics.data.gov.uk/id/local-authority/30UE,Recreation & Sport,Consumable Clng Materials,2711,"BB045-5 - JANGRO CONCENTRATED GREEN DETERGENT 5LTR,  2.64 x 1",29/03/2023,0000487055,2.64,Revenue,Pattersons (Bristol) Ltd,0
South Ribble Borough Council,http://statistics.data.gov.uk/id/local-authority/30UE,Recreation & Sport,Consumable Clng Materials,2711,"BB028-1 - JANGRO SUPREME HIGH FOAMING WASHING UP LIQUID - 22% WASHING UP LIQUID DETERGENT, 1 LITRE 16.22 x 1",29/03/2023,0000487055,16.20,Revenue,Pattersons (Bristol) Ltd,0
South Ribble Borough Council,http://statistics.data.gov.uk/id/local-authority/30UE,Recreation & Sport,Consumable Clng Materials,2711,BC010-75 - JANGRO BACTERICIDAL CLEANER PERFUMED 750ML READY TO USE SPRAY BOTTLE MULTI-SURFACE CLEANER - 1.64 x 6,29/03/2023,0000487055,9.84,Revenue,Pattersons (Bristol) Ltd,0
South Ribble Borough Council,http://statistics.data.gov.uk/id/local-authority/30UE,Recreation & Sport,Consumable Clng Materials,2711,"BC017-5 - JANGRO PERFUMED GENERAL PURPOSE FLORAL DISINFECTANT SUITABLE FOR USE ON FLOORS, TOILETS, SINKS & DRAINS 5LTR - 2.16 x ",29/03/2023,0000487055,4.32,Revenue,Pattersons (Bristol) Ltd,0
South Ribble Borough Council,http://statistics.data.gov.uk/id/local-authority/30UE,Recreation & Sport,Consumable Clng Materials,2711,BC040-1 - JANGRO PERFUMED THICKENED TOILET CLEANER 1LTR - 0.98 x 6,29/03/2023,0000487055,5.88,Revenue,Pattersons (Bristol) Ltd,0
South Ribble Borough Council,http://statistics.data.gov.uk/id/local-authority/30UE,Recreation & Sport,Consumable Clng Materials,2711,BC040-5 - JANGRO PERFUMED THICKENED TOILET CLEANER WITH A NEUTRAL PH FOR DAILY ROUTINE CLEANING 5LTR - 3.85 x 1,29/03/2023,0000487055,3.85,Revenue,Pattersons (Bristol) Ltd,0
South Ribble Borough Council,http://statistics.data.gov.uk/id/local-authority/30UE,Recreation & Sport,Consumable Clng Materials,2711,BC045-1 - JANGRO PERFUMED MULTI SURFACE TOILET & WASHROOM CLEANER DESCALER 1 LTR - 0.94 x 6,29/03/2023,0000487055,5.64,Revenue,Pattersons (Bristol) Ltd,0
South Ribble Borough Council,http://statistics.data.gov.uk/id/local-authority/30UE,Recreation & Sport,Consumable Clng Materials,2711,BC060-1 - JANGRO PREMIUM FRAGRANCED THICKENED ACIDIC TOILET CLEANER & LIMESCALE REMOVER 1 LTR - 2.17 x 6,29/03/2023,0000487055,13.02,Revenue,Pattersons (Bristol) Ltd,0
South Ribble Borough Council,http://statistics.data.gov.uk/id/local-authority/30UE,Recreation & Sport,Consumable Clng Materials,2711,BF042-1 - NTRL WASHING UP LIQUID 1 LTR - 1.87 x 2,29/03/2023,0000487055,3.74,Revenue,Pattersons (Bristol) Ltd,0
South Ribble Borough Council,http://statistics.data.gov.uk/id/local-authority/30UE,Recreation & Sport,Consumable Clng Materials,2711,BK101-5 - JANGRO PINK PEARLISED LIQUID HAND SOAP SUITABLE FOR ALL MANUAL DISPENSERS - 5LTR - 3.93 x 1,29/03/2023,0000487055,3.93,Revenue,Pattersons (Bristol) Ltd,0
South Ribble Borough Council,http://statistics.data.gov.uk/id/local-authority/30UE,Recreation & Sport,Consumable Clng Materials,2711,CE008-B/G/R/Y - JANGRO TRIGGER SPRAY BOTTLE 600ML BLUE/GREEN/RED/YELLOW - 0.40 x 4,29/03/2023,0000487055,1.60,Revenue,Pattersons (Bristol) Ltd,0
South Ribble Borough Council,http://statistics.data.gov.uk/id/local-authority/30UE,Recreation & Sport,Consumable Clng Materials,2711,CG001-B/CG001-R/CG001-G/CG001-Y - JANGRO ALL PURPOSE LIGHTWEIGHT WIPES 48x36CM BLUE/GREEN/RED/YELLOW (50) - 1.81 x 3,29/03/2023,0000487055,5.43,Revenue,Pattersons (Bristol) Ltd,0
South Ribble Borough Council,http://statistics.data.gov.uk/id/local-authority/30UE,Recreation & Sport,Consumable Clng Materials,2711,CG106-B/G/P/Y - EXEL MICROFIBRE SUPER CLOTH 40X 40CM BLUE/GREEN/PINK/YELLOW (10) - 2.73 x 2,29/03/2023,0000487055,7.80,Revenue,Pattersons (Bristol) Ltd,0
South Ribble Borough Council,http://statistics.data.gov.uk/id/local-authority/30UE,Recreation & Sport,Consumable Clng Materials,2711,HA001-12 - KENTUCKY MULTI-YARN MOP HEAD 12OZ 340GM - 1.01 x 2,29/03/2023,0000487055,2.02,Revenue,Pattersons (Bristol) Ltd,0
South Ribble Borough Council,http://statistics.data.gov.uk/id/local-authority/30UE,Recreation & Sport,Consumable Clng Materials,2711,HA001-16 - KENTUCKY MULTI-FOLD MP HEAD 16OZ 450GM - 1.21 x 2,29/03/2023,0000487055,2.42,Revenue,Pattersons (Bristol) Ltd,0
South Ribble Borough Council,http://statistics.data.gov.uk/id/local-authority/30UE,Recreation & Sport,Consumable Clng Materials,2711,HA007 - WOODEN KENTUCKY MOP HANDLE 54`` - 3.81 x 1,29/03/2023,0000487055,3.81,Revenue,Pattersons (Bristol) Ltd,0
South Ribble Borough Council,http://statistics.data.gov.uk/id/local-authority/30UE,Recreation & Sport,Consumable Clng Materials,2711,HN023-12 - BROOM HEAD & WOODEN HANDLE 12� BASSINE COMPLETE - 4.43 x 1,29/03/2023,0000487055,4.43,Revenue,Pattersons (Bristol) Ltd,0
South Ribble Borough Council,http://statistics.data.gov.uk/id/local-authority/30UE,Recreation & Sport,Consumable Clng Materials,2711,HN023-18 - 18`` BASSINE BROOM HEAD & HANDLE - 9.65 x 1,29/03/2023,0000487055,9.65,Revenue,Pattersons (Bristol) Ltd,0
South Ribble Borough Council,http://statistics.data.gov.uk/id/local-authority/30UE,Recreation & Sport,Consumable Clng Materials,2711,HN203 - JANGRO TOILET BRUSH & HOLDER CLOSED - 2.54 x 4,29/03/2023,0000487055,10.16,Revenue,Pattersons (Bristol) Ltd,0
South Ribble Borough Council,http://statistics.data.gov.uk/id/local-authority/30UE,Recreation & Sport,Consumable Clng Materials,2711,BG030-CG/BG030-CR/BG030-MB/BG030-SF - GIANT AEROSOL AIR FRESHENER 750ML VARIOUS FRAGRANCES - 18.41 - x 6,29/03/2023,0000487055,18.36,Revenue,Pattersons (Bristol) Ltd,0
South Ribble Borough Council,http://statistics.data.gov.uk/id/local-authority/30UE,Recreation & Sport,Consumable Clng Materials,2711,JG412630 - GLADE PACIFIC BREEZE 500ML AEROSOL - 20.44 x 12,29/03/2023,0000487055,20.40,Revenue,Pattersons (Bristol) Ltd,0
South Ribble Borough Council,http://statistics.data.gov.uk/id/local-authority/30UE,Economic Development,Professional Fees,4510,"providing electric, lighting and services for Leyland Light Switch On",29/03/2023,0000487333,675.00,Revenue,Paul K Sound & Vision,0
South Ribble Borough Council,http://statistics.data.gov.uk/id/local-authority/30UE,Central Support Services,Planned Annual Repair & Maintenance,2021,"Date10 Feb 2023 Expiry 12 Mar 2023, Quote Number QU-0791, Reference Moss side depot, Building works, Removal of all walls from si",29/03/2023,0000487219,"9,555.00",Revenue,PDP PROPERTY SERVICES LTD,0
South Ribble Borough Council,http://statistics.data.gov.uk/id/local-authority/30UE,Recycling,Contract Printing,4127,Provision & Posting of Garden Waste February 2023.,22/03/2023,0000486899,"14,325.93",Revenue,Permiserv Ltd,0
South Ribble Borough Council,http://statistics.data.gov.uk/id/local-authority/30UE,Central Support Services,Software Licensing,4243,"50:50 Split , Microsoft licenses as detailed in quote 01312614 and 01312612",22/03/2023,0000486801,"182,854.87",Revenue,PHOENIX SOFTWARE LTD,0
South Ribble Borough Council,http://statistics.data.gov.uk/id/local-authority/30UE,Central Support Services,Software Licensing,4243,Microsoft Anniversary and visio,22/03/2023,0000486802,"1,101.64",Revenue,PHOENIX SOFTWARE LTD,0
South Ribble Borough Council,http://statistics.data.gov.uk/id/local-authority/30UE,Central Support Services,Legal,4821,NAME REDACTED -v- South Ribble Borough Council-brief on appeal and for the next date,22/03/2023,0000486780,"1,250.00",Revenue,PIERS RILEY-SMITH,0
South Ribble Borough Council,http://statistics.data.gov.uk/id/local-authority/30UE,Tourism,Fuel Oil,2301,"Order of Kerosene fuel oil, for Worden Park formal conservatory. Requested by NAME REDACTED",01/03/2023,0000485732,848.72,Revenue,PILKINGTON OILS,0
South Ribble Borough Council,http://statistics.data.gov.uk/id/local-authority/30UE,Tourism,Fuel Oil,2301,"Emergency order of Kerosene fuel oil, for Worden Park formal conservatory.",01/03/2023,0000485736,830.00,Revenue,PILKINGTON OILS,0
South Ribble Borough Council,http://statistics.data.gov.uk/id/local-authority/30UE,Central Support Services,External Contractors Charges,4570,"ATTENDED SITE AND REPLACED BURST , HOSE ON BIN WAGON AS REQUIRED, , VIN REDACTED",01/03/2023,0000485753,133.19,Revenue,Pirtek,0
South Ribble Borough Council,http://statistics.data.gov.uk/id/local-authority/30UE,Central Support Services,Materials General,4040,3 x replacement hoses for a bin,01/03/2023,0000485753,251.53,Revenue,Pirtek,0
South Ribble Borough Council,http://statistics.data.gov.uk/id/local-authority/30UE,Central Support Services,Agency Staff,1121,Enforcement consultancy services,22/03/2023,0000485813,"1,140.00",Revenue,Planning Control & PACE Solutions,0
South Ribble Borough Council,http://statistics.data.gov.uk/id/local-authority/30UE,Central Support Services,Agency Staff,1121,Planning Enforcement consultancy services,08/03/2023,0000485840,"1,406.00",Revenue,Planning Control & PACE Solutions,0
South Ribble Borough Council,http://statistics.data.gov.uk/id/local-authority/30UE,Central Support Services,Agency Staff,1121,Enforcement consultancy services,08/03/2023,0000485841,"1,919.00",Revenue,Planning Control & PACE Solutions,0
South Ribble Borough Council,http://statistics.data.gov.uk/id/local-authority/30UE,Central Support Services,Agency Staff,1121,Enforcement consultancy services,29/03/2023,0000487311,"1,045.00",Revenue,Planning Control & PACE Solutions,0
South Ribble Borough Council,http://statistics.data.gov.uk/id/local-authority/30UE,Development Control,Refunded Income,485R,refund plan app greenfields,22/03/2023,0000485920,462.00,Revenue,Planning Portal,0
South Ribble Borough Council,http://statistics.data.gov.uk/id/local-authority/30UE,Community Development,Core Fund,4861,To provide funds for the outdoor area update and for play equipment for the Higher Walton nursery,29/03/2023,0000487278,500.00,Revenue,Playdor Limited,0
South Ribble Borough Council,http://statistics.data.gov.uk/id/local-authority/30UE,Capital,Cap Contract Payment,C230,"Re : Bamber Bridge Sports Hub - banner frames and banner (replaces previous quote 18259), , ITEM 1., Free standing post mounted b",22/03/2023,0000485941,"1,357.91",Revenue,Poppy Signs Ltd,0
South Ribble Borough Council,http://statistics.data.gov.uk/id/local-authority/30UE,Central Support Services,Paper Bulk,4133,"40 x Boxes of: Evolution Everyday A4, 80gsm, (200 Reams)",29/03/2023,0000487217,991.00,Revenue,PREMIER PAPER GROUP LTD,0
South Ribble Borough Council,http://statistics.data.gov.uk/id/local-authority/30UE,Central Support Services,Paper Bulk,4133,"2 x Boxes of: Evolution Everyday A3 80gsm, (10 Reams)",29/03/2023,0000487217,99.25,Revenue,PREMIER PAPER GROUP LTD,0
South Ribble Borough Council,http://statistics.data.gov.uk/id/local-authority/30UE,Culture & Heritage,Operational Equip & Tools,4010,"180 x 106mm Clear Sleeves 50 Micron, C780-1806, Price 12.00, Q:1, , Record Storage Boxes - 7`` / 10`` / 12`` sizes - Record Stora",08/03/2023,0000485806,569.94,Revenue,Preservation Equipment Ltd,0
South Ribble Borough Council,http://statistics.data.gov.uk/id/local-authority/30UE,Economic Development,Contributions to Other Bodies,4730,Preston Community Transport,22/03/2023,0000485261,"7,500.00",Revenue,Preston Community Transport,0
South Ribble Borough Council,http://statistics.data.gov.uk/id/local-authority/30UE,Elections,Postage General,4291,2023 PI Refresh � initial and reminder postage costs,01/03/2023,0000485767,"1,190.35",Revenue,PRINT IMAGE FACILITIES LLP,0
South Ribble Borough Council,http://statistics.data.gov.uk/id/local-authority/30UE,Homelessness,Contributions to Other Bodies,4730,"reduction of joint tenancy at ADDRESS REDACTED, TENANCY REF ref 500081419, NAME REDACTED",29/03/2023,0000487374,623.54,Revenue,PROGRESS HOUSING GRP ref:DNSOU001,0
South Ribble Borough Council,http://statistics.data.gov.uk/id/local-authority/30UE,Homelessness,Contributions to Other Bodies,4730,"Purchase order for Progress Housing Group totaling 1,433.99 for individual, ``NAME REDACTED``, to cover rent arrears at 2 Pine Court (1,34",29/03/2023,0000487386,"1,441.25",Revenue,PROGRESS HOUSING GRP ref:DNSOU001,0
South Ribble Borough Council,http://statistics.data.gov.uk/id/local-authority/30UE,Open Spaces,GM Refurbishment,4657,1X spinner deck and fixings. Quote - J3403,08/03/2023,0000485886,280.04,Revenue,PROLUDIC LTD,0
South Ribble Borough Council,http://statistics.data.gov.uk/id/local-authority/30UE,Open Spaces,GM Refurbishment,4657,x1 rope ladder(as per quotation J2565 Jan 23). Total cost 534.57,08/03/2023,0000485887,534.57,Revenue,PROLUDIC LTD,0
South Ribble Borough Council,http://statistics.data.gov.uk/id/local-authority/30UE,Open Spaces,GM Refurbishment,4657,"Junior multiclimber Rope Ladder and Cargo net spares as per Quotation ref. 2211.36091. , Total cost 573.02 including delivery.",29/03/2023,0000487261,552.72,Revenue,PROLUDIC LTD,0
South Ribble Borough Council,http://statistics.data.gov.uk/id/local-authority/30UE,Surplus or Deficit on Trading,Fire Extinguishers - R&M,2037,For Hurst Grange Coach House � Engineer to call out to attend site to rectify the issues we are having with the signal dropping i,08/03/2023,0000485885,458.00,Revenue,Protec Fire Protection Plc,0
South Ribble Borough Council,http://statistics.data.gov.uk/id/local-authority/30UE,Tourism,Reactive Repair & Maintenance,2020,"Put in place any appropriate signage or barriers to prevent any unauthorised person to enter area., RE: GATE, To Manufacture and ",01/03/2023,0000485668,680.00,Revenue,PSR & Sons Joiners & Building Contractors,0
South Ribble Borough Council,http://statistics.data.gov.uk/id/local-authority/30UE,Tourism,Reactive Repair & Maintenance,2020,LABOUR,01/03/2023,0000485668,30.00,Revenue,PSR & Sons Joiners & Building Contractors,0
South Ribble Borough Council,http://statistics.data.gov.uk/id/local-authority/30UE,Surplus or Deficit on Trading,Reactive Repair & Maintenance,2020,"REF: WORDEN PARK CONFERENCE ROOM BARN as per NAME REDACTED request , , OUR REF LRS Q 6495 9 TH FEBUARY 2023, , Put in place any appropria",08/03/2023,0000485942,"2,256.00",Revenue,PSR & Sons Joiners & Building Contractors,0
South Ribble Borough Council,http://statistics.data.gov.uk/id/local-authority/30UE,Surplus or Deficit on Trading,Reactive Repair & Maintenance,2020,"REF: WORDEN PARK BARN, , OUR REF LRS Q 6496 9 TH FEBUARY 2023 as per NAME REDACTED request , , Put in place any appropriate signage or ba",08/03/2023,0000485943,80.00,Revenue,PSR & Sons Joiners & Building Contractors,0
South Ribble Borough Council,http://statistics.data.gov.uk/id/local-authority/30UE,Surplus or Deficit on Trading,Reactive Repair & Maintenance,2020,Materials,08/03/2023,0000485943,"1,400.00",Revenue,PSR & Sons Joiners & Building Contractors,0
South Ribble Borough Council,http://statistics.data.gov.uk/id/local-authority/30UE,Tourism,Reactive Repair & Maintenance,2020,"Requested by NAME REDACTED NEW Kitchen Units - Worden Hall, �	To Supply and install new Kitchen units approx. 1760 mm long using a High Qu",22/03/2023,0000486894,"2,000.00",Revenue,PSR & Sons Joiners & Building Contractors,0
South Ribble Borough Council,http://statistics.data.gov.uk/id/local-authority/30UE,Tourism,Reactive Repair & Maintenance,2020,lbour,22/03/2023,0000486894,100.00,Revenue,PSR & Sons Joiners & Building Contractors,0
South Ribble Borough Council,http://statistics.data.gov.uk/id/local-authority/30UE,Central Support Services,Reactive Repair & Maintenance,2020,"OUR REF LRS Q 6528 6 TH MARCH 2023 as per NAME REDACTED Request , , REF: REMEDIAL WORKS TO CIVIC CENTRE 1st and 3RD FLOOR RE: WINDOW LOCKS",22/03/2023,0000486924,300.00,Revenue,PSR & Sons Joiners & Building Contractors,0
South Ribble Borough Council,http://statistics.data.gov.uk/id/local-authority/30UE,Central Support Services,Reactive Repair & Maintenance,2020,LABOUR,22/03/2023,0000486924,70.00,Revenue,PSR & Sons Joiners & Building Contractors,0
South Ribble Borough Council,http://statistics.data.gov.uk/id/local-authority/30UE,Homelessness,Temporary Accommodation,5311,Additional homelessness statutory duty placements at Purple Roomz - bookings made at the end of January after we had already been,08/03/2023,0000485884,823.50,Revenue,Purpleroomz,0
South Ribble Borough Council,http://statistics.data.gov.uk/id/local-authority/30UE,Homelessness,Temporary Accommodation,5311,Purchase order for Purple Roomz hotel in Bamber Bridge for statutory duty homelessness placements made there during February 2023,22/03/2023,0000486923,"20,299.90",Revenue,Purpleroomz,0
South Ribble Borough Council,http://statistics.data.gov.uk/id/local-authority/30UE,Central Support Services,Consultancy Fees,4541,"H & S Consultancy support 18th February 2023 to 17th February 2024., 24hrs per month @ 45 per hour 12,960",08/03/2023,0000485669,"3,240.00",Revenue,QHS SOLUTIONS,0
South Ribble Borough Council,http://statistics.data.gov.uk/id/local-authority/30UE,Capital,Cap Contract Payment,C230,Replacement of Worden Craft unit windows,08/03/2023,0000485932,"25,320.17",Revenue,R Developments Ltd T/A Rosslee Construction Ltd,0
South Ribble Borough Council,http://statistics.data.gov.uk/id/local-authority/30UE,Open Spaces,Hiring Expenses,3212,Hire of dumper and digger for 2 days with delivery,01/03/2023,0000485479,487.00,Revenue,Readyplant Limited,0
South Ribble Borough Council,http://statistics.data.gov.uk/id/local-authority/30UE,Central Support Services,Reactive Repair & Maintenance,2020,Quotation to come to site Moss Side Depot Saturday and Sunday 18th /19th Feb 2023 to carry out alterations to the soil pipe in th,08/03/2023,0000485845,"1,000.00",Revenue,RED ROSE BUILDING MAINTENANCE,0
South Ribble Borough Council,http://statistics.data.gov.uk/id/local-authority/30UE,Central Support Services,Reactive Repair & Maintenance,2020,Materials,08/03/2023,0000485845,500.00,Revenue,RED ROSE BUILDING MAINTENANCE,0
South Ribble Borough Council,http://statistics.data.gov.uk/id/local-authority/30UE,Tourism,Planned Annual Repair & Maintenance,2021,Emptying of grease trap at Worden Hall. Requested by NAME REDACTED,08/03/2023,0000485846,150.00,Revenue,RED ROSE BUILDING MAINTENANCE,0
South Ribble Borough Council,http://statistics.data.gov.uk/id/local-authority/30UE,Tourism,Planned Annual Repair & Maintenance,2021,Materials,08/03/2023,0000485846,400.00,Revenue,RED ROSE BUILDING MAINTENANCE,0
South Ribble Borough Council,http://statistics.data.gov.uk/id/local-authority/30UE,Open Spaces,External Contractors Charges,4570,"Pipe repairs, new manhole and drain tracing/condition survey at Nixon Lane, Leyland as per quote emailed 14th August 2022",15/03/2023,0000485847,"1,250.00",Revenue,RED ROSE BUILDING MAINTENANCE,0
South Ribble Borough Council,http://statistics.data.gov.uk/id/local-authority/30UE,Open Spaces,External Contractors Charges,4570,LABOUR,15/03/2023,0000485847,"1,500.00",Revenue,RED ROSE BUILDING MAINTENANCE,0
South Ribble Borough Council,http://statistics.data.gov.uk/id/local-authority/30UE,Surplus or Deficit on Trading,Reactive Repair & Maintenance,2020,"To attend Hern ave pavilion, Lostock all and apply anti vandal paint to the high level perimeter, following a new roof being fit.",22/03/2023,0000486730,130.00,Revenue,RED ROSE BUILDING MAINTENANCE,0
South Ribble Borough Council,http://statistics.data.gov.uk/id/local-authority/30UE,Surplus or Deficit on Trading,Reactive Repair & Maintenance,2020,labour,22/03/2023,0000486730,120.00,Revenue,RED ROSE BUILDING MAINTENANCE,0
South Ribble Borough Council,http://statistics.data.gov.uk/id/local-authority/30UE,Surplus or Deficit on Trading,Reactive Repair & Maintenance,2020,NAME REDACTED called us out to Worden cafe yesterday as all the toilets where blocked we we spent 3 hrs there yesterday (Thursday 23rd Feb ,22/03/2023,0000486736,300.00,Revenue,RED ROSE BUILDING MAINTENANCE,0
South Ribble Borough Council,http://statistics.data.gov.uk/id/local-authority/30UE,Surplus or Deficit on Trading,Reactive Repair & Maintenance,2020,Quotation to supply and fit a new water supply for the lodge the original supply is lead and this runs under the property. We wil,22/03/2023,0000486931,"1,500.00",Revenue,RED ROSE BUILDING MAINTENANCE,0
South Ribble Borough Council,http://statistics.data.gov.uk/id/local-authority/30UE,Surplus or Deficit on Trading,Reactive Repair & Maintenance,2020,materials,22/03/2023,0000486931,"1,000.00",Revenue,RED ROSE BUILDING MAINTENANCE,0
South Ribble Borough Council,http://statistics.data.gov.uk/id/local-authority/30UE,Recreation & Sport,Reactive Repair & Maintenance,2020,Please attend BBLC as per NAME REDACTED request for fitting new drains at Bamber Bridge leisure centre and to upgrade 4 manholes to 150mm,29/03/2023,0000487206,"2,400.00",Revenue,RED ROSE BUILDING MAINTENANCE,0
South Ribble Borough Council,http://statistics.data.gov.uk/id/local-authority/30UE,Recreation & Sport,Reactive Repair & Maintenance,2020,MATERIALS,29/03/2023,0000487206,"1,100.00",Revenue,RED ROSE BUILDING MAINTENANCE,0
South Ribble Borough Council,http://statistics.data.gov.uk/id/local-authority/30UE,Surplus or Deficit on Trading,Planned Annual Repair & Maintenance,2021,Hurst Grange 2022/2023 280 x 4 visits,29/03/2023,0000487286,180.00,Revenue,RED ROSE BUILDING MAINTENANCE,0
South Ribble Borough Council,http://statistics.data.gov.uk/id/local-authority/30UE,Surplus or Deficit on Trading,Planned Annual Repair & Maintenance,2021,LABOUR,29/03/2023,0000487286,100.00,Revenue,RED ROSE BUILDING MAINTENANCE,0
South Ribble Borough Council,http://statistics.data.gov.uk/id/local-authority/30UE,Open Spaces,Reactive Repair & Maintenance,2020,Dog Wash at Worden Park 2022/2023 550.00 x 4 visits,29/03/2023,0000487288,450.00,Revenue,RED ROSE BUILDING MAINTENANCE,0
South Ribble Borough Council,http://statistics.data.gov.uk/id/local-authority/30UE,Open Spaces,Reactive Repair & Maintenance,2020,LABOUR,29/03/2023,0000487288,100.00,Revenue,RED ROSE BUILDING MAINTENANCE,0
South Ribble Borough Council,http://statistics.data.gov.uk/id/local-authority/30UE,Homelessness,Temporary Accommodation,5311,"Advance payment, as agreed by NAME REDACTED, for homelessness statutory duty accommodation at The Old Steam Mill in Preston",29/03/2023,0000487313,"13,000.00",Revenue,REDDY & CO,0
South Ribble Borough Council,http://statistics.data.gov.uk/id/local-authority/30UE,Central Support Services,Materials General,4040,Imprest stock January 2023 as per the attached sheet,08/03/2023,0000485947,"1,866.38",Revenue,Refuse Vehicle Parts,0
South Ribble Borough Council,http://statistics.data.gov.uk/id/local-authority/30UE,Elections,Postal Voting Costs,4422,RESPONSE PLUS SERVICE FOR EARNSHAW BRIDGE BY-ELECTION,22/03/2023,0000486711,839.84,Revenue,ROYAL MAIL GROUP PLC,0
South Ribble Borough Council,http://statistics.data.gov.uk/id/local-authority/30UE,Local Tax Collection,Postage General,4291,PO BOX DELIVERY ANNUAL FEE,29/03/2023,0000487298,315.00,Revenue,ROYAL MAIL GROUP PLC,0
South Ribble Borough Council,http://statistics.data.gov.uk/id/local-authority/30UE,Capital,Cap Contract Payment,C230,"McKenzie Arms, Bamber Bridge (Housing Development)",01/03/2023,0000485219,"128,792.98",Revenue,RP Tyson Construction Ltd,0
South Ribble Borough Council,http://statistics.data.gov.uk/id/local-authority/30UE,Capital,Cap Contract Payment,C230,"McKenzie Arms, Bamber Bridge (Housing Development)",29/03/2023,0000486876,"147,271.15",Revenue,RP Tyson Construction Ltd,0
South Ribble Borough Council,http://statistics.data.gov.uk/id/local-authority/30UE,Central Support Services,Individual Subs Prof. Bodies,1741,MRTPI Membership fee for NAME REDACTED - Membership No 44851,22/03/2023,0000486768,331.00,Revenue,RTPI,0
South Ribble Borough Council,http://statistics.data.gov.uk/id/local-authority/30UE,Open Spaces,External Contractors Charges,4570,"Fell 1 x oak 1 x ash , 12 Forestway Leyland, Additional works on site following removal of diseased ash trees and poplar",29/03/2023,0000487064,"1,350.00",Revenue,RUSS ASPINALL T/A BEARDWOOD TREE SERVICE,0
South Ribble Borough Council,http://statistics.data.gov.uk/id/local-authority/30UE,Street Cleansing,Operational Equip & Tools,4010,50 No VIbe PD and USB Dual Car Charger @ 5.99 as per your quotation 11401,01/03/2023,0000485687,299.50,Revenue,Rytetype Limited,0
South Ribble Borough Council,http://statistics.data.gov.uk/id/local-authority/30UE,Central Support Services,Materials General,4040,1 x 1000 ltrs Energise Premium Hi- Foaming TFR,08/03/2023,0000485855,"1,020.43",Revenue,Saanro International Ltd,0
South Ribble Borough Council,http://statistics.data.gov.uk/id/local-authority/30UE,Community Development,Core Fund,4861,"Funds for the environmental project, assistance with the pond and other outdoor educational equipment.",29/03/2023,0000487277,"1,000.00",Revenue,Samlesbury C of E School,0
South Ribble Borough Council,http://statistics.data.gov.uk/id/local-authority/30UE,Community Development,Core Fund,4861,Funds towards repairs for the leak in the roof of the War Memorial Hall,29/03/2023,0000487276,"1,000.00",Revenue,SAMLESBURY WAR MEMORIAL HALL,0
South Ribble Borough Council,http://statistics.data.gov.uk/id/local-authority/30UE,Short Term Debtors,Amount Paid,0030,To supply continued Commercial Estates support for the Test Track mixed use development as per NAME REDACTED for 2 years From Apr,01/03/2023,0000485210,853.33,Revenue,Sanderson Weatherall LLP,0
South Ribble Borough Council,http://statistics.data.gov.uk/id/local-authority/30UE,Capital,Consultancy,C259,Professional services rendered in undertaking works in relation to ADDRESS REDACTED,22/03/2023,0000487124,"1,382.50",Revenue,Sanderson Weatherall LLP,0
South Ribble Borough Council,http://statistics.data.gov.uk/id/local-authority/30UE,Capital,Cap Contract Payment,C230,RIBA Stage 4 Extension PCSA and QS Consultancy (Oct-Nov 2022) - Jubilee Gardens,29/03/2023,0000484278,"1,390.00",Revenue,SDA Consulting LLP,0
South Ribble Borough Council,http://statistics.data.gov.uk/id/local-authority/30UE,Central Support Services,Agency Staff,1121,Payment to Sellick Partnership re Locum Solicitor: NAME REDACTED,08/03/2023,0000485095,"2,518.13",Revenue,SELLICK PARTNERSHIP LTD,0
South Ribble Borough Council,http://statistics.data.gov.uk/id/local-authority/30UE,Central Support Services,Agency Staff,1121,Payment for Locum Solicitor NAME REDACTED,22/03/2023,0000486821,"2,686.00",Revenue,SELLICK PARTNERSHIP LTD,0
South Ribble Borough Council,http://statistics.data.gov.uk/id/local-authority/30UE,Recreation & Sport,Publicity & Promotion,4842,"HAF Summer Venue Hire - 12 days @ 50 per day, , Active Health Interviews Venue Hire - 1 day @ 50, , TOTAL COST - 650",29/03/2023,0000486953,650.00,Revenue,Seven Stars Primary School,0
South Ribble Borough Council,http://statistics.data.gov.uk/id/local-authority/30UE,Economic Development,Investment & Improvement,485K,"Full partnership level package for Skills Factory careers, recruitment and skills business support 2023",08/03/2023,0000485193,"5,000.00",Revenue,SHOUT Network Ltd,0
South Ribble Borough Council,http://statistics.data.gov.uk/id/local-authority/30UE,Economic Development,Investment & Improvement,485K,"Stand package for Lancashire Business Expo 2023, Partnership package includes furniture, Wifi, power, promotional materials and g",08/03/2023,0000485195,"1,000.00",Revenue,SHOUT Network Ltd,0
South Ribble Borough Council,http://statistics.data.gov.uk/id/local-authority/30UE,Development Control,Consultancy Fees,4541,"Quote for ADDRESS REDACTED, i. Trim back and reduce the hedging surrounding the property so that, i",22/03/2023,0000485674,"2,480.00",Revenue,SMJ CONTRACT CLEANING,0
South Ribble Borough Council,http://statistics.data.gov.uk/id/local-authority/30UE,Regulatory Services,External Contractors Charges,4570,Works done at ADDRESS REDACTED - per NAME REDACTED,08/03/2023,0000485677,300.00,Revenue,SMJ CONTRACT CLEANING,0
South Ribble Borough Council,http://statistics.data.gov.uk/id/local-authority/30UE,Central Support Services,Applications Systems,4248,"Acrobat Pro for teams, Dreamweaver for teams, Gov, Level 2, Creative Cloud for teams All Apps, Gov, Level 2, InDesign for teams, ",22/03/2023,0000484035,"8,185.37",Revenue,SOFTCAT LIMITED,0
South Ribble Borough Council,http://statistics.data.gov.uk/id/local-authority/30UE,Central Support Services,Technical Support,4246,"Supply of 20 Solo Protect Gold Devices, connection., 24 months maintenance",01/03/2023,0000485151,327.00,Revenue,Solo Protect Ltd,0
South Ribble Borough Council,http://statistics.data.gov.uk/id/local-authority/30UE,Central Support Services,Technical Support,4246,"Supply of 20 Solo Protect Gold Devices, connection., 24 months maintenance",08/03/2023,0000485956,327.00,Revenue,Solo Protect Ltd,0
South Ribble Borough Council,http://statistics.data.gov.uk/id/local-authority/30UE,Short Term Creditors,Leisure - Card Payments,0020,leis payments,01/03/2023,0000485604,"5,552.01",Revenue,South Ribble Leisure Ltd,0
South Ribble Borough Council,http://statistics.data.gov.uk/id/local-authority/30UE,Short Term Creditors,Leisure - Cash Payments,0021,leis payments,01/03/2023,0000485604,"51,575.38",Revenue,South Ribble Leisure Ltd,0
South Ribble Borough Council,http://statistics.data.gov.uk/id/local-authority/30UE,Short Term Creditors,Leisure - Direct Debits,0022,leis payment,01/03/2023,0000485604,"101,592.24",Revenue,South Ribble Leisure Ltd,0
South Ribble Borough Council,http://statistics.data.gov.uk/id/local-authority/30UE,Central Support Services,Short Course,1402,Certificate in Democratic Services Knowledge for NAME REDACTED,01/03/2023,0000485762,"1,140.00",Revenue,South West Councils,0
South Ribble Borough Council,http://statistics.data.gov.uk/id/local-authority/30UE,Central Support Services,External Contractors Charges,4570,Spec Repair to Adblue System VIN REDACTED Supplementary works to VIN REDACTED,29/03/2023,0000487418,315.00,Revenue,Southfield RCV Services Limited,0
South Ribble Borough Council,http://statistics.data.gov.uk/id/local-authority/30UE,Central Support Services,Materials General,4040,"10x scraper wires bin 1060, 10x adjusting rod bin 1111, 5x outer deck pin bin 1252, 5x centre deck pin bin 1251, 4x led lamp bin ",29/03/2023,0000487272,506.95,Revenue,SPALDINGS,0
South Ribble Borough Council,http://statistics.data.gov.uk/id/local-authority/30UE,Central Support Services,Departmental Course Fees,1420,"EFAW - Onsite Module Course Fee for 9.3.23, Emergency First Aid",22/03/2023,0000487078,595.00,Revenue,SPECIALIST TRAINING & CONSULTANCY SERVICES LTD,0
South Ribble Borough Council,http://statistics.data.gov.uk/id/local-authority/30UE,Central Support Services,Departmental Course Fees,1420,Student Notes 12 x 5.00,22/03/2023,0000487078,50.00,Revenue,SPECIALIST TRAINING & CONSULTANCY SERVICES LTD,0
South Ribble Borough Council,http://statistics.data.gov.uk/id/local-authority/30UE,Central Support Services,Departmental Course Fees,1420,Registration Fee for 12 candidates on 9.3.23 @ 8.75,22/03/2023,0000487078,87.50,Revenue,SPECIALIST TRAINING & CONSULTANCY SERVICES LTD,0
South Ribble Borough Council,http://statistics.data.gov.uk/id/local-authority/30UE,Recreation & Sport,Gas,2304,25/10/22 to 24/1/23,08/03/2023,0000485796,998.63,Revenue,SSE 271850110 Moss Side CC Dunkirk Hall,0
South Ribble Borough Council,http://statistics.data.gov.uk/id/local-authority/30UE,Recreation & Sport,Electricity,2303,2/11 to 1/12/22,08/03/2023,0000485239,524.87,Revenue,SSE 711901747 Moss Side CC Dunkirk Hall,0
South Ribble Borough Council,http://statistics.data.gov.uk/id/local-authority/30UE,Recreation & Sport,Electricity,2303,2/12/22 to 1/1/23,08/03/2023,0000485240,526.56,Revenue,SSE 711901747 Moss Side CC Dunkirk Hall,0
South Ribble Borough Council,http://statistics.data.gov.uk/id/local-authority/30UE,Recreation & Sport,Electricity,2303,2/1 to 1/2/23,08/03/2023,0000485402,578.66,Revenue,SSE 711901747 Moss Side CC Dunkirk Hall,0
South Ribble Borough Council,http://statistics.data.gov.uk/id/local-authority/30UE,Recreation & Sport,Electricity,2303,1/11 to 1/12/22,29/03/2023,0000487469,526.10,Revenue,SSE 901903952 Moss Side CC Dunkirk Hall,0
South Ribble Borough Council,http://statistics.data.gov.uk/id/local-authority/30UE,Recreation & Sport,Electricity,2303,2/12/22 to 1/1/23,29/03/2023,0000487470,526.56,Revenue,SSE 901903952 Moss Side CC Dunkirk Hall,0
South Ribble Borough Council,http://statistics.data.gov.uk/id/local-authority/30UE,Recreation & Sport,Electricity,2303,2/1/23 to 1/2/23,29/03/2023,0000487471,578.66,Revenue,SSE 901903952 Moss Side CC Dunkirk Hall,0
South Ribble Borough Council,http://statistics.data.gov.uk/id/local-authority/30UE,Community Development,Core Fund,4861,Grant Payment for Warm Welcome Boost FundingPayment is to support the church in offering a Warm Welcome during their sessions thr,29/03/2023,0000486830,250.00,Revenue,ST LEONARDS PCC,0
South Ribble Borough Council,http://statistics.data.gov.uk/id/local-authority/30UE,Community Development,Core Fund,4861,Grant payment of 1000 from Penwortham Community Hub towards church defribillator.,29/03/2023,0000487050,"1,000.00",Revenue,ST LEONARDS PCC,0
South Ribble Borough Council,http://statistics.data.gov.uk/id/local-authority/30UE,Service Management & Support,Gas Oil,3134,2500l Gas Oil @ 82.89ppl,08/03/2023,0000485441,"2,089.16",Revenue,Standard Fuel Oils LtdMain,0
South Ribble Borough Council,http://statistics.data.gov.uk/id/local-authority/30UE,Service Management & Support,Diesel Fuel,3132,"17000 Ltrs Diesel @ 125.61ppl into the , feeder tank at ADDRES REDACTED key for cabinet is available from the , ",08/03/2023,0000485442,"20,884.83",Revenue,Standard Fuel Oils LtdMain,0
South Ribble Borough Council,http://statistics.data.gov.uk/id/local-authority/30UE,Service Management & Support,Diesel Fuel,3132,"17000 Ltrs Diesel @ 120.99ppl into the , feeder tank at ADDRESS REDACTED key for cabinet is available from the , ",29/03/2023,0000487056,"19,857.60",Revenue,Standard Fuel Oils LtdMain,0
South Ribble Borough Council,http://statistics.data.gov.uk/id/local-authority/30UE,Community Development,Core Fund,4861,To supply 3x SLR-TSR 3 GD-Solar SPID Devices as part of Western Parishes Hub Funding,29/03/2023,0000487230,"8,765.00",Revenue,Stocksigns Limited,0
South Ribble Borough Council,http://statistics.data.gov.uk/id/local-authority/30UE,Economic Development,Investment & Improvement,485K,"Costing on projects:-, , Design the Economic Strategy Framework, Art work @75, Estimated total 675 + VAT",08/03/2023,0000485221,675.00,Revenue,STONE CREATE LTD,0
South Ribble Borough Council,http://statistics.data.gov.uk/id/local-authority/30UE,Economic Development,Investment & Improvement,485K,"Register and name Skills Factory URLs, 88, 2 x Single Skills Factory pull up banners @67 each, 1 x Double Skills Factory Banner",29/03/2023,0000485944,762.00,Revenue,STONE CREATE LTD,0
South Ribble Borough Council,http://statistics.data.gov.uk/id/local-authority/30UE,Economic Development,Investment & Improvement,485K,"Skills Factory Folders, A4 Presentation Folders, Full colour one side, 300 gsm gloss, Trimmed and made up / glued, Laminated both",29/03/2023,0000487330,500.00,Revenue,STONE CREATE LTD,0
South Ribble Borough Council,http://statistics.data.gov.uk/id/local-authority/30UE,Democratic Represent and  Mgnt,External Catering Charges,4575,working lunch for 50 @6.49 per head(not in boxes)to be delivered Saturday 18th Feb before 12.00,08/03/2023,0000485807,324.50,Revenue,Style Catering,0
South Ribble Borough Council,http://statistics.data.gov.uk/id/local-authority/30UE,Democratic Represent and  Mgnt,External Catering Charges,4575,28th Feb lunch buffet (not in boxes) with cake for 40 to be delivered 12.00 mid day. Could he chicken goujons be hot.,22/03/2023,0000486717,259.60,Revenue,Style Catering,0
South Ribble Borough Council,http://statistics.data.gov.uk/id/local-authority/30UE,Democratic Represent and  Mgnt,External Catering Charges,4575,55 working lunch boxes to be delivered before 4 1st March with muffins @ 6.99 a head to include 5 veggies,29/03/2023,0000487201,384.45,Revenue,Style Catering,0
South Ribble Borough Council,http://statistics.data.gov.uk/id/local-authority/30UE,Central Support Services,Software Licensing,4243,Survey Monkey advantage annual plan for the period - March 19th 2023 - March 18th 2024,01/03/2023,0000485497,320.00,Revenue,SURVEY MONKEY,0
South Ribble Borough Council,http://statistics.data.gov.uk/id/local-authority/30UE,Capital,Cap Contract Payment,C230,Leyland Town Deal - Measured Building Surveys,29/03/2023,0000485548,"3,750.00",Revenue,SURVEY OPERATIONS LTD,0
South Ribble Borough Council,http://statistics.data.gov.uk/id/local-authority/30UE,Capital,Cap Contract Payment,C230,Leyland Town Deal - Measured Building Surveys,29/03/2023,0000486836,"3,125.00",Revenue,SURVEY OPERATIONS LTD,0
South Ribble Borough Council,http://statistics.data.gov.uk/id/local-authority/30UE,Capital,Cap Contract Payment,C230,Additional topo for gardens adjacent to Iddons site,29/03/2023,0000487252,575.00,Revenue,SURVEY OPERATIONS LTD,0
South Ribble Borough Council,http://statistics.data.gov.uk/id/local-authority/30UE,Open Spaces,GM Refurbishment,4657,Aktivzone full net assembly with fixings as per quotation CF301122,15/03/2023,0000485676,"2,731.59",Revenue,SUTCLIFFE PLAY LTD,0
South Ribble Borough Council,http://statistics.data.gov.uk/id/local-authority/30UE,Development Control,Professional Fees,4510,Provision of Ecology Advice on Planning Applications - 2022/23,29/03/2023,0000487094,"4,982.00",Revenue,TAMESIDE METROPOLITAN BOROUGH COUNCIL,0
South Ribble Borough Council,http://statistics.data.gov.uk/id/local-authority/30UE,Central Support Services,Materials General,4040,"1 Bin Lift Counter @ 1590.26, 1 Vertical Panel @ 335.97, VIN REDACTED",08/03/2023,0000485684,"1,941.73",Revenue,TERBERG MATEC UK LTD,0
South Ribble Borough Council,http://statistics.data.gov.uk/id/local-authority/30UE,Capital,Cap Contract Payment,C230,Gregson Lane New Community Centre payment 1,22/03/2023,0000487107,"150,000.00",Revenue,THE GREGSON GREEN STEERING GROUP,0
South Ribble Borough Council,http://statistics.data.gov.uk/id/local-authority/30UE,Central Support Services,Software Licensing,4243,"Revenue, , Total rental 3 years -20,551.57",08/03/2023,0000482511,"19,764.40",Revenue,The Networking People (TNP) Ltd,0
South Ribble Borough Council,http://statistics.data.gov.uk/id/local-authority/30UE,Central Support Services,Network and Security,4247,100MB Circuit SRBC PR251DH to Leyland Northcoat Street PR252AA annual rental 01/05/22 to 30/04/23,15/03/2023,0000486708,"2,270.17",Revenue,The Networking People (TNP) Ltd,0
South Ribble Borough Council,http://statistics.data.gov.uk/id/local-authority/30UE,Central Support Services,Computer Equipment,4241,"Satellite site connectivity , Capital � , Licence -2,701.36, Hardware-15,745.83, Install  12,624.88",29/03/2023,0000486884,"3,941.84",Revenue,The Networking People (TNP) Ltd,0
South Ribble Borough Council,http://statistics.data.gov.uk/id/local-authority/30UE,Central Support Services,Computer Equipment,4241,see credit CN104221,22/03/2023,0000487095,788.44,Revenue,The Networking People (TNP) Ltd,0
South Ribble Borough Council,http://statistics.data.gov.uk/id/local-authority/30UE,Central Support Services,Network and Security,4247,"Renewal of TNP Network Service Support (inc 24 RMACs) Period of cover 01/04/2023-31/03/2024, , nnual Support 24x7 SLA - inc. 24 R",29/03/2023,0000487218,"2,640.00",Revenue,The Networking People (TNP) Ltd,0
South Ribble Borough Council,http://statistics.data.gov.uk/id/local-authority/30UE,Central Support Services,Occupational Health,1408,Counselling sessions for TS - Invoice 1182,01/03/2023,0000485755,350.00,Revenue,THE THERAPY COMPANY,0
South Ribble Borough Council,http://statistics.data.gov.uk/id/local-authority/30UE,Central Support Services,Occupational Health,1408,Counselling sessions for CH x 6,22/03/2023,0000486769,260.00,Revenue,THE THERAPY COMPANY,0
South Ribble Borough Council,http://statistics.data.gov.uk/id/local-authority/30UE,Central Support Services,Legal,4821,INFORMATION SERVICES & SOFTWARE SOLUTIONS,22/03/2023,0000485683,"21,538.56",Revenue,THOMSON REUTERS,0
South Ribble Borough Council,http://statistics.data.gov.uk/id/local-authority/30UE,Central Support Services,Gas,2304,31/1 to 21/2/23,22/03/2023,0000486747,"1,899.28",Revenue,Total Gas & power Ltd,0
South Ribble Borough Council,http://statistics.data.gov.uk/id/local-authority/30UE,Central Support Services,Electricity,2303,01 feb 23 - 28 feb 23,22/03/2023,0000487030,"2,753.20",Revenue,Total Gas & power Ltd,0
South Ribble Borough Council,http://statistics.data.gov.uk/id/local-authority/30UE,Open Spaces,Electricity,2303,01 feb 23 - 28 feb 23,22/03/2023,0000487031,603.13,Revenue,Total Gas & power Ltd,0
South Ribble Borough Council,http://statistics.data.gov.uk/id/local-authority/30UE,Central Support Services,Electricity,2303,01 feb 23 - 28 feb 23,22/03/2023,0000487032,"3,570.84",Revenue,Total Gas & power Ltd,0
South Ribble Borough Council,http://statistics.data.gov.uk/id/local-authority/30UE,Tourism,Electricity,2303,01 feb 23 - 28 feb 23,22/03/2023,0000487033,"2,843.37",Revenue,Total Gas & power Ltd,0
South Ribble Borough Council,http://statistics.data.gov.uk/id/local-authority/30UE,Central Support Services,Electricity,2303,01 feb 23 - 28 feb 23,22/03/2023,0000487034,781.59,Revenue,Total Gas & power Ltd,0
South Ribble Borough Council,http://statistics.data.gov.uk/id/local-authority/30UE,Community Development,Core Fund,4861,"Second payment for design, manufacture, delivery and installation of 10 Bug Hotels",29/03/2023,0000487370,"2,500.00",Revenue,Trash Metal Fabrications,0
South Ribble Borough Council,http://statistics.data.gov.uk/id/local-authority/30UE,Service Management & Support,External Contractors Charges,4570,Apollo 2 Fuel management hardware with real time data transfer,22/03/2023,0000486862,"3,143.45",Revenue,TRISCAN SYSTEMS LIMITED,0
South Ribble Borough Council,http://statistics.data.gov.uk/id/local-authority/30UE,Service Management & Support,External Contractors Charges,4570,Web based fuel management software,22/03/2023,0000486862,110.00,Revenue,TRISCAN SYSTEMS LIMITED,0
South Ribble Borough Council,http://statistics.data.gov.uk/id/local-authority/30UE,Central Support Services,External Contractors Charges,4570,Truck Tyre Maintenance - February 2023,29/03/2023,0000487253,"2,747.84",Revenue,Tructyre Fleet Management Ltd,0
South Ribble Borough Council,http://statistics.data.gov.uk/id/local-authority/30UE,Open Spaces,External Contractors Charges,4570,Fell 2 x Lime Trees @ St Marys Churchyard Penwortham,29/03/2023,0000487225,"1,900.00",Revenue,Trunks Tree Care Ltd,0
South Ribble Borough Council,http://statistics.data.gov.uk/id/local-authority/30UE,Central Support Services,Operational Equip & Tools,4010,TUDOR PROFESSIONAL BYPASS LOPPER 28``-BGBD1103,08/03/2023,0000485688,47.64,Revenue,Tudor (UK) Ltd t/a Tudor Environmental,0
South Ribble Borough Council,http://statistics.data.gov.uk/id/local-authority/30UE,Central Support Services,Operational Equip & Tools,4010,TUDOR PROFESSIONAL BYPASS SECATEURS-CON PRO/SEC,08/03/2023,0000485688,88.50,Revenue,Tudor (UK) Ltd t/a Tudor Environmental,0
South Ribble Borough Council,http://statistics.data.gov.uk/id/local-authority/30UE,Central Support Services,Operational Equip & Tools,4010,LITTER PICKER -Soft grip salmon litter pickers LITLP33,08/03/2023,0000485688,246.00,Revenue,Tudor (UK) Ltd t/a Tudor Environmental,0
South Ribble Borough Council,http://statistics.data.gov.uk/id/local-authority/30UE,Central Support Services,Operational Equip & Tools,4010,100677 - RESCUE THROWLINE 25M-IST-LINE,29/03/2023,0000487314,303.20,Revenue,Tudor (UK) Ltd t/a Tudor Environmental,0
South Ribble Borough Council,http://statistics.data.gov.uk/id/local-authority/30UE,Central Support Services,UK Healthcare,1710,01 march 2023,29/03/2023,0000485872,"1,729.60",Revenue,UK healthcare (BDHSC),0
South Ribble Borough Council,http://statistics.data.gov.uk/id/local-authority/30UE,Economic Development,Advertising,4841,Monthly management fee for social media and email campaigns for website November to May,15/03/2023,0000486698,950.00,Revenue,UK Media Events Ltd,0
South Ribble Borough Council,http://statistics.data.gov.uk/id/local-authority/30UE,Economic Development,Advertising,4841,Paid marketing adverts for MITP 23,15/03/2023,0000486709,664.93,Revenue,UK Media Events Ltd,0
South Ribble Borough Council,http://statistics.data.gov.uk/id/local-authority/30UE,Economic Development,Advertising,4841,"A5 Flyers 2000 x Single sided 170gsm Gloss, A5 Flyers, , A4 Flyers 500 x Single sided 170gsm Gloss, A4 Flyers, , , Display, Stand",22/03/2023,0000486749,387.80,Revenue,UK Media Events Ltd,0
South Ribble Borough Council,http://statistics.data.gov.uk/id/local-authority/30UE,Economic Development,Advertising,4841,,22/03/2023,0000486749,137.68,Revenue,UK Media Events Ltd,0
South Ribble Borough Council,http://statistics.data.gov.uk/id/local-authority/30UE,Central Support Services,Short Course,1402,Nature Conservation Course 28/29 March - online,22/03/2023,0000487126,150.00,Revenue,UKHab Ltd,0
South Ribble Borough Council,http://statistics.data.gov.uk/id/local-authority/30UE,Central Support Services,Short Course,1402,Biodiversity Net Gain course - online - 20/21 April 2023,22/03/2023,0000487126,150.00,Revenue,UKHab Ltd,0
South Ribble Borough Council,http://statistics.data.gov.uk/id/local-authority/30UE,Street Cleansing,External Contractors Charges,4570,Specialist clean of highways signs in the South Ribble area - February 2023,01/03/2023,0000485686,"1,606.80",Revenue,ULTRA CLEAN CONSERVATORIES,0
South Ribble Borough Council,http://statistics.data.gov.uk/id/local-authority/30UE,Community Safety Services,Maintenance & Repair,4013,"Renewal of 3 x 30 Gig Data SIMS on E & 3 for the vemotion system, 01/03/23-29/02/24",08/03/2023,0000485780,864.00,Revenue,Vemotion Interactive Ltd,0
South Ribble Borough Council,http://statistics.data.gov.uk/id/local-authority/30UE,Democratic Represent and  Mgnt,External Catering Charges,4575,"6 boxes of milkfresh @ 48.65 a box, 6 boxes of chocolate @62.10 a box",22/03/2023,0000485880,664.50,Revenue,VENDING ENTERPRISES,0
South Ribble Borough Council,http://statistics.data.gov.uk/id/local-authority/30UE,Recreation & Sport,Reactive Repair & Maintenance,2020,Brindle Road parking as per NAME REDACTED and quote dated 11th Jan 2023 VENT 2023 - 109 establish and maintain and remove no parkin,01/03/2023,0000485527,"1,790.00",Revenue,VENTBROOK LTD,0
South Ribble Borough Council,http://statistics.data.gov.uk/id/local-authority/30UE,Recreation & Sport,Reactive Repair & Maintenance,2020,Brindle Road parking as per NAME REDACTED and quote dated 11th Jan 2023 VENT 2023 - 109 establish and maintain and remove no parkin,01/03/2023,0000485528,"1,790.00",Revenue,VENTBROOK LTD,0
South Ribble Borough Council,http://statistics.data.gov.uk/id/local-authority/30UE,Recreation & Sport,Reactive Repair & Maintenance,2020,Brindle Road parking as per NAME REDACTED and quote dated 11th Jan 2023 VENT 2023 - 109 establish and maintain and remove no parkin,01/03/2023,0000485530,"1,790.00",Revenue,VENTBROOK LTD,0
South Ribble Borough Council,http://statistics.data.gov.uk/id/local-authority/30UE,Recreation & Sport,Reactive Repair & Maintenance,2020,Brindle Road parking as per NAME REDACTED and quote dated 11th Jan 2023 VENT 2023 - 109 establish and maintain and remove no parkin,15/03/2023,0000485690,500.00,Revenue,VENTBROOK LTD,0
South Ribble Borough Council,http://statistics.data.gov.uk/id/local-authority/30UE,Recreation & Sport,Reactive Repair & Maintenance,2020,Brindle Road parking as per NAME REDACTED and quote dated 11th Jan 2023 VENT 2023 - 109 establish and maintain and remove no parkin,15/03/2023,0000485760,"1,790.00",Revenue,VENTBROOK LTD,0
South Ribble Borough Council,http://statistics.data.gov.uk/id/local-authority/30UE,Recreation & Sport,Reactive Repair & Maintenance,2020,Brindle Road parking as per NAME REDACTED and quote dated 11th Jan 2023 VENT 2023 - 109 establish and maintain and remove no parkin,15/03/2023,0000485960,"1,540.00",Revenue,VENTBROOK LTD,0
South Ribble Borough Council,http://statistics.data.gov.uk/id/local-authority/30UE,Recreation & Sport,Reactive Repair & Maintenance,2020,Brindle Road parking as per NAME REDACTED and quote dated 11th Jan 2023 VENT 2023 - 109 establish and maintain and remove no parkin,22/03/2023,0000487006,"1,290.00",Revenue,VENTBROOK LTD,0
South Ribble Borough Council,http://statistics.data.gov.uk/id/local-authority/30UE,Central Support Services,External Contractors Charges,4570,"SIM CARD SUBSCRIPTIONS FOR 360 CCTV 6 VEHICLES FOR 6 MONTHS, 17 X 6 VEHICLES X 6 MONTHS",22/03/2023,0000486897,612.00,Revenue,VISION TECHNIQUES UK LTD,0
South Ribble Borough Council,http://statistics.data.gov.uk/id/local-authority/30UE,Central Support Services,Agency Staff,1121,Fees for NAME REDACTED,08/03/2023,0000485447,"4,400.00",Revenue,Vivid Resourcing,0
South Ribble Borough Council,http://statistics.data.gov.uk/id/local-authority/30UE,Corporate Management,Agency Staff,1121,Fees for NAME REDACTED,08/03/2023,0000485790,"5,085.00",Revenue,Vivid Resourcing,0
South Ribble Borough Council,http://statistics.data.gov.uk/id/local-authority/30UE,Central Support Services,Agency Staff,1121,Consultant planning officer NAME REDACTED,08/03/2023,0000485867,"1,968.75",Revenue,Vivid Resourcing,0
South Ribble Borough Council,http://statistics.data.gov.uk/id/local-authority/30UE,Central Support Services,Agency Staff,1121,Consultant planning officer NAME REDACTED,08/03/2023,0000485897,"1,942.50",Revenue,Vivid Resourcing,0
South Ribble Borough Council,http://statistics.data.gov.uk/id/local-authority/30UE,Corporate Management,Agency Staff,1121,Fees for NAME REDACTED,29/03/2023,0000486729,"2,355.00",Revenue,Vivid Resourcing,0
South Ribble Borough Council,http://statistics.data.gov.uk/id/local-authority/30UE,Central Support Services,Agency Staff,1121,Fees for NAME REDACTED,29/03/2023,0000487061,"2,800.00",Revenue,Vivid Resourcing,0
South Ribble Borough Council,http://statistics.data.gov.uk/id/local-authority/30UE,Corporate Management,Agency Staff,1121,Fees for NAME REDACTED,29/03/2023,0000487062,"2,430.00",Revenue,Vivid Resourcing,0
South Ribble Borough Council,http://statistics.data.gov.uk/id/local-authority/30UE,Central Support Services,Government Connect,4212,01 Nov 2022,29/03/2023,0000487156,"2,404.20",Revenue,VODAFONE RE:CABLE & WIRELESS UK,0
South Ribble Borough Council,http://statistics.data.gov.uk/id/local-authority/30UE,Central Support Services,Government Connect,4212,01 Dec 2020,29/03/2023,0000487158,"2,404.20",Revenue,VODAFONE RE:CABLE & WIRELESS UK,0
South Ribble Borough Council,http://statistics.data.gov.uk/id/local-authority/30UE,Central Support Services,Government Connect,4212,01 Dec 2022,29/03/2023,0000487159,"2,404.20",Revenue,VODAFONE RE:CABLE & WIRELESS UK,0
South Ribble Borough Council,http://statistics.data.gov.uk/id/local-authority/30UE,Central Support Services,Government Connect,4212,01 Jan 2013,29/03/2023,0000487169,"2,404.20",Revenue,VODAFONE RE:CABLE & WIRELESS UK,0
South Ribble Borough Council,http://statistics.data.gov.uk/id/local-authority/30UE,Central Support Services,Government Connect,4212,01 Feb 2023,29/03/2023,0000487170,"2,404.20",Revenue,VODAFONE RE:CABLE & WIRELESS UK,0
South Ribble Borough Council,http://statistics.data.gov.uk/id/local-authority/30UE,Central Support Services,Government Connect,4212,01 Mar 2013,29/03/2023,0000487179,"2,404.20",Revenue,VODAFONE RE:CABLE & WIRELESS UK,0
South Ribble Borough Council,http://statistics.data.gov.uk/id/local-authority/30UE,Central Support Services,Government Connect,4212,01 Oct 2022,29/03/2023,0000487352,"1,076.43",Revenue,VODAFONE RE:CABLE & WIRELESS UK,0
South Ribble Borough Council,http://statistics.data.gov.uk/id/local-authority/30UE,Central Support Services,Government Connect,4212,01 Jan 2023,29/03/2023,0000487392,"1,076.43",Revenue,VODAFONE RE:CABLE & WIRELESS UK,0
South Ribble Borough Council,http://statistics.data.gov.uk/id/local-authority/30UE,Central Support Services,Materials General,4040,"x front spring, VIN REDACTED",01/03/2023,0000485776,350.00,Revenue,WALTON SUMMIT TRUCK CENTRE LTD,0
South Ribble Borough Council,http://statistics.data.gov.uk/id/local-authority/30UE,Central Support Services,Materials General,4040,Accident Damage parts VIN REDACTED,08/03/2023,0000485685,"1,817.39",Revenue,WasteParts UK Ltd,0
South Ribble Borough Council,http://statistics.data.gov.uk/id/local-authority/30UE,Economic Development,Water Charges(Metered),2511,01 apr 23 - 31 mar 24,22/03/2023,0000487022,"1,851.49",Revenue,WATER PLUS,0
South Ribble Borough Council,http://statistics.data.gov.uk/id/local-authority/30UE,Surplus or Deficit on Trading,Water Charges(Metered),2511,water,29/03/2023,0000487300,77.28,Revenue,WATER PLUS,0
South Ribble Borough Council,http://statistics.data.gov.uk/id/local-authority/30UE,Surplus or Deficit on Trading,Water Charges(Metered),2511,waste,29/03/2023,0000487300,96.82,Revenue,WATER PLUS,0
South Ribble Borough Council,http://statistics.data.gov.uk/id/local-authority/30UE,Surplus or Deficit on Trading,Water Charges(Metered),2511,DCA FEE,29/03/2023,0000487300,170.00,Revenue,WATER PLUS,0
South Ribble Borough Council,http://statistics.data.gov.uk/id/local-authority/30UE,Central Support Services,Water Charges(Metered),2511,28 may 21 - 28 jun 21,01/03/2023,0000485601,"2,512.33",Revenue,WaterPlus 4080412513 Unit 81 Bison Place,0
South Ribble Borough Council,http://statistics.data.gov.uk/id/local-authority/30UE,Central Support Services,Water Charges(Metered),2511,15 jan 23 - 15 feb 23,22/03/2023,0000486784,"2,686.56",Revenue,WaterPlus 4080412513 Unit 81 Bison Place,0
South Ribble Borough Council,http://statistics.data.gov.uk/id/local-authority/30UE,Central Support Services,Water Charges(Metered),2511,15/2 to 15/3/23,29/03/2023,0000487310,"2,408.05",Revenue,WaterPlus 4080412513 Unit 81 Bison Place,0
South Ribble Borough Council,http://statistics.data.gov.uk/id/local-authority/30UE,Central Support Services,Water Charges(Metered),2511,25/11 to 24/2/23,22/03/2023,0000486740,456.60,Revenue,"WaterPlus 4083872980 Council Offices, West Paddock",0
South Ribble Borough Council,http://statistics.data.gov.uk/id/local-authority/30UE,Parking Services,Water Charges(Metered),2511,01 apr 23 - 31 mar 24,22/03/2023,0000487023,"3,872.69",Revenue,WaterPlus 4123085069 Ecroyd Street Car Park,0
South Ribble Borough Council,http://statistics.data.gov.uk/id/local-authority/30UE,Open Spaces,Water Charges(Metered),2511,,29/03/2023,0000487307,"1,070.96",Revenue,WaterPlus 4191231371 Worden Park,0
South Ribble Borough Council,http://statistics.data.gov.uk/id/local-authority/30UE,Surplus or Deficit on Trading,Water Charges(Metered),2511,01 apr 23 - 31 mar 24,22/03/2023,0000487021,"1,851.49",Revenue,WaterPlus 6000332825 Car Prk Middleforth,0
South Ribble Borough Council,http://statistics.data.gov.uk/id/local-authority/30UE,Capital,Cap Contract Payment,C230,Leyland Town Deal - CPO Legal Advice,29/03/2023,0000485503,"1,295.00",Revenue,WEIGHTMANS LLP,0
South Ribble Borough Council,http://statistics.data.gov.uk/id/local-authority/30UE,Central Support Services,Legal,4821,Legal Advice re Former ADDRESS REDACTED (property management),22/03/2023,0000487007,"1,701.00",Revenue,WEIGHTMANS LLP,0
South Ribble Borough Council,http://statistics.data.gov.uk/id/local-authority/30UE,Recreation & Sport,Planned Annual Repair & Maintenance,2021,"Continuation of hire of unit at Penwortham Holme as per NAME REDACTED request for 2022/2023, April 2022	420.00, May 2022 	434.00, June ",08/03/2023,0000485879,392.00,Revenue,Wernick Hire Ltd,0
South Ribble Borough Council,http://statistics.data.gov.uk/id/local-authority/30UE,Open Spaces,GM Refurbishment,4657,"To supply, install and dismantle 9x Christmas Trees @ 1,273.76 at various locations around the borough as per quotation given 03",01/03/2023,0000484642,"12,038.84",Revenue,WESTFIELD TREE SERVICES LTD,0
South Ribble Borough Council,http://statistics.data.gov.uk/id/local-authority/30UE,Open Spaces,External Contractors Charges,4570,"Fell and remove 1 x Oak tree including stump grinding, along with grinding one further old tree stump within the same car park",01/03/2023,0000485531,"1,875.00",Revenue,WESTFIELD TREE SERVICES LTD,0
South Ribble Borough Council,http://statistics.data.gov.uk/id/local-authority/30UE,Central Support Services,Franked Post,4292,Ongoing post costs,01/03/2023,0000485691,539.17,Revenue,WHISTL  UK LTD,0
South Ribble Borough Council,http://statistics.data.gov.uk/id/local-authority/30UE,Central Support Services,Franked Post,4292,Ongoing post costs,15/03/2023,0000486716,430.07,Revenue,WHISTL  UK LTD,0
South Ribble Borough Council,http://statistics.data.gov.uk/id/local-authority/30UE,Central Support Services,Franked Post,4292,Ongoing post costs,22/03/2023,0000486822,582.13,Revenue,WHISTL  UK LTD,0
South Ribble Borough Council,http://statistics.data.gov.uk/id/local-authority/30UE,Central Support Services,Franked Post,4292,Ongoing post costs,29/03/2023,0000487060,334.37,Revenue,WHISTL  UK LTD,0
South Ribble Borough Council,http://statistics.data.gov.uk/id/local-authority/30UE,Central Support Services,Franked Post,4292,Ongoing post costs,22/03/2023,0000487090,450.67,Revenue,WHISTL  UK LTD,0
South Ribble Borough Council,http://statistics.data.gov.uk/id/local-authority/30UE,Central Support Services,Franked Post,4292,Ongoing post costs,22/03/2023,0000487144,507.19,Revenue,WHISTL  UK LTD,0
South Ribble Borough Council,http://statistics.data.gov.uk/id/local-authority/30UE,Open Spaces,GM Refurbishment,4657,1x spring for a three way springy cockerel with fixings. Total cost 339.39.,01/03/2023,0000485532,339.39,Revenue,WICKSTEED LEISURE LTD,0
South Ribble Borough Council,http://statistics.data.gov.uk/id/local-authority/30UE,Open Spaces,GM Refurbishment,4657,x1 spring/shroud and fixings for Springy Horse as per quotation WLLQ6299,29/03/2023,0000485866,427.16,Revenue,WICKSTEED LEISURE LTD,0
South Ribble Borough Council,http://statistics.data.gov.uk/id/local-authority/30UE,Central Support Services,Office Requisites,4136,nov-march bill,22/03/2023,0000487109,591.84,Revenue,Zen Internet,0
